{"text_format":"1","workbook":"xlsx","n_sheets":12,"sheets":["Prezenční listina","Startovní listina","Výsledková listina","Výsledková listinadle kategorií","Družstva","Běh Vírem","mezičasy 2017","mezičasy 2018","Diplom MSM A5","Diplom MSM A5 (2)","Družstva (prac.)","Výsledková listina (2)"],"not_rendered":{"charts":0,"images":19,"macros":1,"external_links":0,"defined_names":15,"comments":0,"pivot_tables":0},"unopened":[],"bounds":{"document_bytes":16777216,"sheet_cells":100000,"rows_first":2000,"rows_last":500,"rows_between":2000,"halvings":0,"cell_chars":16384,"cell_head_chars":4096},"cells_cut":0,"cells_raw":0,"read":"whole","date_system":"1900"}

{"sheet":"Prezenční listina","index":0,"n_rows":152,"n_cols":19,"rows_kept":152,"cut":false,"hidden":true,"merged":[[5,10,5,12],[0,0,0,7]]}
[{"$f":"\"Prezenční listina - Malý svratecký maraton \"&O2","v":"Prezenční listina - Malý svratecký maraton 2018"}]
["#","Příjmení","Jméno","Narození","Oddíl / Bydliště","Startovní číslo","E-mail","Kategorie","Datum on-line registrace","Město",null,null,null,null,2018,null,null,null,"Pohlaví"]
[1,"Faja","Ondřej",1976,"Brno",22,"ondra.faja@seznam.cz",{"$f":"IF(S3<>\"Ž\",IF($O$2-D3>39,IF($O$2-D3>49,IF($O$2-D3>59,IF($O$2-D3>69,IF($O$2-D3>90,\"\",\"E\"),\"D\"),\"C\"),\"B\"),\"A\"),IF(S3=\"Ž\",IF($O$2-D3>34,IF($O$2-D3>44,IF($O$2-D3>90,\"\",\"H\"),\"G\"),\"F\")))","v":"B"},"2018-08-13","Brno",null,null,null,null,null,null,null,null,{"$f":"IF(LEN(B3)=0,\" \",IF(MID(B3,LEN(B3),1)=\"á\",\"Ž\",\"M\"))","v":"M"}]
[{"$f":"IF(B4<>0,A3+1,\"\")","v":2},"Fanfrdla","Dalimil",1973,"Matyteam Brno",27,"dalimil.salvator@centrum.cz","B","2018-08-18","Brno",null,null,null,null,null,null,null,null,"M"]
[3,"Glier","Michal",1982,"SDH Doubravník",49,"Michalglier@seznam.cz","A","2018-08-06","Doubravník",null,null,null,null,null,null,null,null,"M"]
[4,"Glierová","Renata",1985,"SDH Doubravník",48,"renataglierova@seznam.cz","F","2018-08-17","Doubravník","Rok nastavit v buňce O2",null,null,null,null,null,null,null,"Ž"]
[5,"Hakl","Zdeněk ",1982,"SK Tri Cyklochlubna Žďár nad Sázavou",null,"haklzdenek@seznam.cz","A","2018-08-18","Žďár nad Sázavou ",null,null,null,null,null,null,null,null,"M"]
[6,"Hanák","Jakub",1986,"Plant Powered Runners",null,"jacobakiro@gmail.com","A","2018-05-27","Vír",null,null,null,null,null,null,null,null,"M"]
[7,"Hanslová","Lenka",1973,"Žďár nad Sázavou",28,"brabcoval@seznam.cz","H","2018-08-18","Žďár nad Sázavou",null,null,null,null,null,null,null,null,"Ž"]
[8,"Hýbl","Jiří",1967,"Hrušovany u Brna",35,"hybljura@seznam.cz","C","2018-08-05","Hrušovany u Brna",null,null,null,null,null,null,null,null,"M"]
[9,"Johaníková","Lucie",1986,"AC Moravská Slavia Brno",44,"johanikova.l@email.cz","F","2018-08-17","Brno",null,null,null,null,null,null,null,null,"Ž"]
[10,"Juránek","Jakub",1995,"S.U.P.I.  Martinice",14,"juranekj@centrum.cz","A","2018-03-21","Martinice",null,null,null,null,null,null,null,null,"M"]
[11,"Kalich","Radim",1985,"Odranec",4,"r.kalich@seznam.cz","A","2018-08-16","Odranec",null,null,null,null,null,null,null,null,"M"]
[12,"Klíma","Miroslav",1975,"Emanovy červené trenýrky Brno",25,"klima.miroslav@atlas.cz","B","2018-08-16","Brno",null,null,null,null,null,null,null,null,"M"]
[13,"Komárková","Zdeňka",1974,"SDH Bolešín",1,"zdekom252@seznam.cz","G","2018-08-08","Olešnice na Mor.",null,null,null,null,null,null,null,null,"Ž"]
[14,"Kopečný","Dušan",1973,"Liga 100 Olomouc",10,"dusankopecny@seznam.cz","B","2018-07-04","Prostějov",null,null,null,null,null,null,null,null,"M"]
[15,"Košek","Martin",1984,"Brno",38,"martin.kosek@gmail.com","A","2018-04-29","Brno",null,null,null,null,null,null,null,null,"M"]
[16,"Koutský","Tomáš",1987,"Ledová stěna Vír",23,"koutskyt@gmail.com","A","2018-04-19",null,null,null,null,null,null,null,null,null,"M"]
[17,"Král","Jan",1981,"Brno",16,"mnaf86@centrum.cz","A","2018-08-04","Brno",null,null,null,null,null,null,null,null,"M"]
[18,"Král","Josef",1958,"SDH Bystré",50,"demoshbrno@email.cz","D","2018-08-17","Bystré",null,null,null,null,null,null,null,null,"M"]
[19,"Kratochvíl","Jaroslav",1977,"SDH Hluboké",64,"kratochviljaroslav77@seznam.cz","B","2018-08-18","Moravany",null,null,null,null,null,null,null,null,"M"]
[20,"Kresta","Roman",1965,"Orel Židenice",13,"opa.va@seznam.cz","C","2018-08-10","Brno",null,null,null,null,null,null,null,null,"M"]
[21,"Kropáček","Jaroslav",1970,"Brno",null,"jarda.krop@email.cz","B","2018-08-11","Brno",null,null,null,null,null,null,null,null,"M"]
[22,"Kříž","Miloslav",1961,"Aspire Dobrochov",57,"slavek.kriz@post.cz","C","2018-08-16","79807 Dobrochov 100",null,null,null,null,null,null,null,null,"M"]
[23,"Kuncová","Markéta",1982,"Rožná",53,"kuncmarketa@centrum.cz","G","2018-06-28","Rožná",null,null,null,null,null,null,null,null,"Ž"]
[24,"Lorenčík","Aleš",1973,"Chrudim",52,"Ales.Lorencik@seznam.cz","B","2018-08-06","53701 Chrudim 4, Gorkého 581",null,null,null,null,null,null,null,null,"M"]
[25,"Mareš","Bohumil",1951,"Posilovna Průvan Brno",42,"maresbo@seznam.cz","D","2018-08-07","Brno",null,null,null,null,null,null,null,null,"M"]
[26,"Mlčáková","Hana",1981,"Strážnice",3,"beruna-ja@seznam.cz","G","2018-07-05","Strážnice",null,null,null,null,null,null,null,null,"Ž"]
[27,"Novotný","Petr",1965,"AK Kuřim",null,"gitus@atlas.cz","C","2018-03-07","Kuřim",null,null,null,null,null,null,null,null,"M"]
[28,"Novotný","Jaroslav",1955,"TEP Trutnov",null,"novotny.ez@volny.cz","D","2018-06-06","Trutnov",null,null,null,null,null,null,null,null,"M"]
[29,"Orálek","Daniel",1970,"behejbrno.com",63,"dao@anet-brno.cz","B","2018-08-06","Brno",null,null,null,null,null,null,null,null,"M"]
[30,"Paleček","Miloš",1985,"BIKEŘI ROVE",58,"m.palecek@gmail.com","A","2018-08-17",null,null,null,null,null,null,null,null,null,"M"]
[31,"Pichová","Dagmar",1977,"Brno",8,"DPichova@seznam.cz","G","2018-08-16","Brno",null,null,null,null,null,null,null,null,"Ž"]
[32,"Ptáček","Michal ",1986," Hrdá Ves ",2,"ptacek.sova@gmail.com","A","2018-08-05","Vír ",null,null,null,null,null,null,null,null,"M"]
[33,"Řezníček","Petr",1973,"Polnička",39,"romanreznicek@seznam.cz",{"$f":"IF(S35<>\"Ž\",IF($O$2-D35>39,IF($O$2-D35>49,IF($O$2-D35>59,IF($O$2-D35>69,IF($O$2-D35>90,\"\",\"E\"),\"D\"),\"C\"),\"B\"),\"A\"),IF(S35=\"Ž\",IF($O$2-D35>34,IF($O$2-D35>44,IF($O$2-D35>90,\"\",\"H\"),\"G\"),\"F\")))","v":"B"},"2018-08-11","Polnička",null,null,null,null,null,null,null,null,{"$f":"IF(LEN(B35)=0,\" \",IF(MID(B35,LEN(B35),1)=\"á\",\"Ž\",\"M\"))","v":"M"}]
[{"$f":"IF(B36<>0,A35+1,\"\")","v":34},"Skula","Miroslav",1988,"SRTG Žďár nad Sázavou",24,"msmira@seznam.cz","A","2018-06-08","Domanín",null,null,null,null,null,null,null,null,"M"]
[35,"Svoboda","Petr",1968,"AC Moravská Slavia Brno",37,"pesvoboda@bvk.cz","C","2018-08-16","Brno",null,null,null,null,null,null,null,null,"M"]
[36,"Šerák","Martin",1978,"Liga 100 Olomouc",6,"sherry@sendmail.cz","B","2018-08-08","Bílovice nad Svitavou",null,null,null,null,null,null,null,null,"M"]
[37,"Šimunek","Martin",1966,"Botanka Running Modřice",34,"simunek@servisdmychadel.cz","C","2018-08-17","Modřice",null,null,null,null,null,null,null,null,"M"]
[38,"Tesařová","Marie",1954,"Křižanov",9,"tesarova54@seznam.cz","H","2018-08-16","Křižanov",null,null,null,null,null,null,null,null,"Ž"]
[39,"Vintrlík","Martin",1977,"Triatlon křepice",30,"vintrlik@gmail.com","B","2018-08-09","Křepice",null,null,null,null,null,null,null,null,"M"]
[40,"Viščor","Pavel",1974,"Brno",40,"pava@volny.cz","B","2018-08-18","Brno",null,null,null,null,null,null,null,null,"M"]
[41,"Vondrová","Ludmila",1986,"Dalečín",51,"lida.vondrova@centrum.cz","F","2018-08-10","Dalečín",null,null,null,null,null,null,null,null,"Ž"]
[42,"Zejda","Ivo",1958,"AC Moravská Slavia Brno",12,"zdenek.sudoma@centrum.cz","D","2018-08-17","Brno",null,null,null,null,null,null,null,null,"M"]
[43,"Žličař","Karel",1977,"Železárny Štěpánov",41,"karel.zlicar@zelezarny.cz","B","2018-06-26","Polička",null,null,null,null,null,null,null,null,"M"]
[44,"Jamrichová","Kristina",1987,"Brno",55,"m.pavlasek@gmail.com","F","2018-08-23","Slepá 29, Brno",null,null,null,null,null,null,null,null,"Ž"]
[45,"Pavlásek","Michal",1983,"Brno",54,"m.pavlasek@gmail.com","A","2018-08-23","Vinohrady 26, Brno",null,null,null,null,null,null,null,null,"M"]
[46,"Kocur","Lukáš",1977,"Orel Šitbořice",43,"kocur.lukas85@gmail.com","B",null,null,null,null,null,null,null,null,null,null,"M"]
[47,"Ježová","Martina",1975,"Brno",5,"martinajezova@email.cz","G",null,null,null,null,null,null,null,null,null,null,"Ž"]
[48,"Podsedník","Marek",1985,"Brno",7,"info@mpcolor.cz","A",null,null,null,null,null,null,null,null,null,null,"M"]
[49,"Holý","Josef",1941,"AC Moravská Slavia Brno",11,"holyjosef@upcmail.cz","E",null,null,null,null,null,null,null,null,null,null,"M"]
[50,"Bělehrádek","Pavel",1958,"TJ ČOLEK",15,"belehradekpavel@seznam.cz","D",null,null,null,null,null,null,null,null,null,null,"M"]
[51,"Bečička","Petr",1960,"HAL3000",17,"ld-deklarace@volny.cz","C",null,null,null,null,null,null,null,null,null,null,"M"]
[52,"Dostálová","Vendula",1981,"HAL3000",18,"ld-deklarace@volny.cz","G",null,null,null,null,null,null,null,null,null,null,"Ž"]
[53,"Pivec","Jan",1981,"HAL3000",19,"ld-deklarace@volny.cz","A",null,null,null,null,null,null,null,null,null,null,"M"]
[54,"Forýtek","Michal",1982,"HAL3000",20,"ld-deklarace@volny.cz",{"$f":"IF(S56<>\"Ž\",IF($O$2-D56>39,IF($O$2-D56>49,IF($O$2-D56>59,IF($O$2-D56>69,IF($O$2-D56>90,\"\",\"E\"),\"D\"),\"C\"),\"B\"),\"A\"),IF(S56=\"Ž\",IF($O$2-D56>34,IF($O$2-D56>44,IF($O$2-D56>90,\"\",\"H\"),\"G\"),\"F\")))","v":"A"},null,null,null,null,null,null,null,null,null,null,"M"]
[55,"Trefilová","Ester",1993,"Vír",21,"trefilovaester@seznam.cz","F",null,null,null,null,null,null,null,null,null,null,"Ž"]
[56,"Bartoňková","Nina",1990,"AK Drnovice",26,"n.nefertti@gmail.com","F",null,null,null,null,null,null,null,null,null,null,"Ž"]
[57,"Dvořák","Vojtěch",1975,"Brno",29,"demoshbrno@email.cz","B",null,null,null,null,null,null,null,null,null,null,"M"]
[58,"Pešáková","Mirka",1985,"AC RACERS, Tetčice",31,"Pesakova.Mirka@seznam.cz","F",null,null,null,null,null,null,null,null,null,null,"Ž"]
[59,"Sinkule","Pavel",1981,"SRTG Brno",32,"Pavelsinkule@seznam.cz","A",null,null,null,null,null,null,null,null,null,null,"M"]
[60,"Komárek","Michal",1981,"Bystřice nad Pernštejnem",33,"dderik@seznam.cz","A",null,null,null,null,null,null,null,null,null,null,"M"]
[61,"Nováček","Tomáš",1983,"SDH Kamenná",36,"novacekt@seznam.cz","A",null,null,null,null,null,null,null,null,null,null,"M"]
[62,"Kohut","Jan",1985,"Univerzita Brno",45,"Hkohut@seznam.cz","A",null,null,null,null,null,null,null,null,null,null,"M"]
[63,"Dvořáček","Jiří",1968,"Univerzita Brno",46,"dvorjiri@centrum.cz","C",null,null,null,null,null,null,null,null,null,null,"M"]
[64,"Fric","Petr",1970,"Bystré",47,"petta70@seznam.cz","B",null,null,null,null,null,null,null,null,null,null,"M"]
[65,"Benc","Karel",1975,"Pivonice",56,"benc.karel@seznam.cz",{"$f":"IF(S67<>\"Ž\",IF($O$2-D67>39,IF($O$2-D67>49,IF($O$2-D67>59,IF($O$2-D67>69,IF($O$2-D67>90,\"\",\"E\"),\"D\"),\"C\"),\"B\"),\"A\"),IF(S67=\"Ž\",IF($O$2-D67>34,IF($O$2-D67>44,IF($O$2-D67>90,\"\",\"H\"),\"G\"),\"F\")))","v":"B"},null,null,null,null,null,null,null,null,null,null,{"$f":"IF(LEN(B67)=0,\" \",IF(MID(B67,LEN(B67),1)=\"á\",\"Ž\",\"M\"))","v":"M"}]
[66,"Pokorný","Václav",1978,"Brno",59,"vasekpokorny@centrum.cz","B",null,null,null,null,null,null,null,null,null,null,"M"]
[67,"Tyleček","Pavel",1973,"Jundrováci",60,"paaja@centrum.cz","B",null,null,null,null,null,null,null,null,null,null,"M"]
[68,"Podmelová","Vilma",1962,"AC Moravská Slavia Brno",61,"vilka@centrum.cz","H",null,null,null,null,null,null,null,null,null,null,"Ž"]
[69,"Exner","Jakub",1983,"P-Team",62,"kolo.J@seznam.cz","A",null,null,null,null,null,null,null,null,null,null,"M"]
[70,"Konečný","Libor",1971,"Kuřim",65,"kovokonecny@seznam.cz","B",null,null,null,null,null,null,null,null,null,null,"M"]
[71,"Zourek","Karel",1959,"Bedřichovice",66,"Karel.zourek@seznam.cz","C",null,null,null,null,null,null,null,null,null,null,"M"]
[72,"Příhoda","Jan",1983,"Ždánice",67,"bolzano33@seznam.cz","A",null,null,null,null,null,null,null,null,null,null,"M"]
["",null,null,null,null,null,null,"",null,null,null,null,null,null,null,null,null,null," "]
["",null,null,null,null,null,null,"",null,null,null,null,null,null,null,null,null,null," "]
["",null,null,null,null,null,null,"",null,null,null,null,null,null,null,null,null,null," "]
["",null,null,null,null,null,null,"",null,null,null,null,null,null,null,null,null,null," "]
["",null,null,null,null,null,null,"",null,null,null,null,null,null,null,null,null,null," "]
["",null,null,null,null,null,null,"",null,null,null,null,null,null,null,null,null,null," "]
["",null,null,null,null,null,null,"",null,null,null,null,null,null,null,null,null,null," "]
["",null,null,null,null,null,null,"",null,null,null,null,null,null,null,null,null,null," "]
["",null,null,null,null,null,null,"",null,null,null,null,null,null,null,null,null,null," "]
["",null,null,null,null,null,null,"",null,null,null,null,null,null,null,null,null,null," "]
["",null,null,null,null,null,null,"",null,null,null,null,null,null,null,null,null,null," "]
["",null,null,null,null,null,null,"",null,null,null,null,null,null,null,null,null,null," "]
["",null,null,null,null,null,null,"",null,null,null,null,null,null,null,null,null,null," "]
["",null,null,null,null,null,null,"",null,null,null,null,null,null,null,null,null,null," "]
["",null,null,null,null,null,null,"",null,null,null,null,null,null,null,null,null,null," "]
["",null,null,null,null,null,null,"",null,null,null,null,null,null,null,null,null,null," "]
["",null,null,null,null,null,null,"",null,null,null,null,null,null,null,null,null,null," "]
["",null,null,null,null,null,null,"",null,null,null,null,null,null,null,null,null,null," "]
["",null,null,null,null,null,null,"",null,null,null,null,null,null,null,null,null,null," "]
["",null,null,null,null,null,null,"",null,null,null,null,null,null,null,null,null,null," "]
["",null,null,null,null,null,null,"",null,null,null,null,null,null,null,null,null,null," "]
["",null,null,null,null,null,null,"",null,null,null,null,null,null,null,null,null,null," "]
["",null,null,null,null,null,null,"",null,null,null,null,null,null,null,null,null,null," "]
["",null,null,null,null,null,null,"",null,null,null,null,null,null,null,null,null,null," "]
["",null,null,null,null,null,null,{"$f":"IF(S99<>\"Ž\",IF($O$2-D99>39,IF($O$2-D99>49,IF($O$2-D99>59,IF($O$2-D99>69,IF($O$2-D99>90,\"\",\"E\"),\"D\"),\"C\"),\"B\"),\"A\"),IF(S99=\"Ž\",IF($O$2-D99>34,IF($O$2-D99>44,IF($O$2-D99>90,\"\",\"H\"),\"G\"),\"F\")))","v":""},null,null,null,null,null,null,null,null,null,null,{"$f":"IF(LEN(B99)=0,\" \",IF(MID(B99,LEN(B99),1)=\"á\",\"Ž\",\"M\"))","v":" "}]
[{"$f":"IF(B100<>0,A99+1,\"\")","v":""},null,null,null,null,null,null,"",null,null,null,null,null,null,null,null,null,null," "]
["",null,null,null,null,null,null,"",null,null,null,null,null,null,null,null,null,null," "]
["",null,null,null,null,null,null,"",null,null,null,null,null,null,null,null,null,null," "]
["",null,null,null,null,null,null,"",null,null,null,null,null,null,null,null,null,null," "]
["",null,null,null,null,null,null,"",null,null,null,null,null,null,null,null,null,null," "]
["",null,null,null,null,null,null,"",null,null,null,null,null,null,null,null,null,null," "]
["",null,null,null,null,null,null,"",null,null,null,null,null,null,null,null,null,null," "]
["",null,null,null,null,null,null,"",null,null,null,null,null,null,null,null,null,null," "]
["",null,null,null,null,null,null,"",null,null,null,null,null,null,null,null,null,null," "]
["",null,null,null,null,null,null,"",null,null,null,null,null,null,null,null,null,null," "]
["",null,null,null,null,null,null,"",null,null,null,null,null,null,null,null,null,null," "]
["",null,null,null,null,null,null,"",null,null,null,null,null,null,null,null,null,null," "]
["",null,null,null,null,null,null,"",null,null,null,null,null,null,null,null,null,null," "]
["",null,null,null,null,null,null,"",null,null,null,null,null,null,null,null,null,null," "]
["",null,null,null,null,null,null,"",null,null,null,null,null,null,null,null,null,null," "]
["",null,null,null,null,null,null,"",null,null,null,null,null,null,null,null,null,null," "]
["",null,null,null,null,null,null,"",null,null,null,null,null,null,null,null,null,null," "]
["",null,null,null,null,null,null,"",null,null,null,null,null,null,null,null,null,null," "]
["",null,null,null,null,null,null,"",null,null,null,null,null,null,null,null,null,null," "]
["",null,null,null,null,null,null,"",null,null,null,null,null,null,null,null,null,null," "]
["",null,null,null,null,null,null,"",null,null,null,null,null,null,null,null,null,null," "]
["",null,null,null,null,null,null,"",null,null,null,null,null,null,null,null,null,null," "]
["",null,null,null,null,null,null,"",null,null,null,null,null,null,null,null,null,null," "]
["",null,null,null,null,null,null,"",null,null,null,null,null,null,null,null,null,null," "]
["",null,null,null,null,null,null,"",null,null,null,null,null,null,null,null,null,null," "]
["",null,null,null,null,null,null,"",null,null,null,null,null,null,null,null,null,null," "]
["",null,null,null,null,null,null,"",null,null,null,null,null,null,null,null,null,null," "]
["",null,null,null,null,null,null,"",null,null,null,null,null,null,null,null,null,null," "]
["",null,null,null,null,null,null,"",null,null,null,null,null,null,null,null,null,null," "]
["",null,null,null,null,null,null,"",null,null,null,null,null,null,null,null,null,null," "]
["",null,null,null,null,null,null,"",null,null,null,null,null,null,null,null,null,null," "]
["",null,null,null,null,null,null,{"$f":"IF(S131<>\"Ž\",IF($O$2-D131>39,IF($O$2-D131>49,IF($O$2-D131>59,IF($O$2-D131>69,IF($O$2-D131>90,\"\",\"E\"),\"D\"),\"C\"),\"B\"),\"A\"),IF(S131=\"Ž\",IF($O$2-D131>34,IF($O$2-D131>44,IF($O$2-D131>90,\"\",\"H\"),\"G\"),\"F\")))","v":""},null,null,null,null,null,null,null,null,null,null,{"$f":"IF(LEN(B131)=0,\" \",IF(MID(B131,LEN(B131),1)=\"á\",\"Ž\",\"M\"))","v":" "}]
["",null,null,null,null,null,null,"",null,null,null,null,null,null,null,null,null,null," "]
["",null,null,null,null,null,null,"",null,null,null,null,null,null,null,null,null,null," "]
["",null,null,null,null,null,null,"",null,null,null,null,null,null,null,null,null,null," "]
["",null,null,null,null,null,null,"",null,null,null,null,null,null,null,null,null,null," "]
["",null,null,null,null,null,null,"",null,null,null,null,null,null,null,null,null,null," "]
["",null,null,null,null,null,null,"",null,null,null,null,null,null,null,null,null,null," "]
["",null,null,null,null,null,null,"",null,null,null,null,null,null,null,null,null,null," "]
["",null,null,null,null,null,null,"",null,null,null,null,null,null,null,null,null,null," "]
["",null,null,null,null,null,null,"",null,null,null,null,null,null,null,null,null,null," "]
["",null,null,null,null,null,null,"",null,null,null,null,null,null,null,null,null,null," "]
["",null,null,null,null,null,null,"",null,null,null,null,null,null,null,null,null,null," "]
["",null,null,null,null,null,null,"",null,null,null,null,null,null,null,null,null,null," "]
["",null,null,null,null,null,null,"",null,null,null,null,null,null,null,null,null,null," "]
["",null,null,null,null,null,null,"",null,null,null,null,null,null,null,null,null,null," "]
["",null,null,null,null,null,null,"",null,null,null,null,null,null,null,null,null,null," "]
["",null,null,null,null,null,null,"",null,null,null,null,null,null,null,null,null,null," "]
["",null,null,null,null,null,null,"",null,null,null,null,null,null,null,null,null,null," "]
["",null,null,null,null,null,null,"",null,null,null,null,null,null,null,null,null,null," "]
["",null,null,null,null,null,null,"",null,null,null,null,null,null,null,null,null,null," "]
["",null,null,null,null,null,null,"",null,null,null,null,null,null,null,null,null,null," "]
["",null,null,null,null,null,null,"",null,null,null,null,null,null,null,null,null,null," "]

{"sheet":"Startovní listina","index":1,"n_rows":141,"n_cols":12,"rows_kept":141,"cut":false,"hidden":false,"merged":[[4,11,11,11],[0,0,0,6],[2,0,2,6],[1,0,1,6],[1,8,2,9]]}
[{"$f":"\"Startovní listina - Malý svratecký maraton \"&'Prezenční listina'!O2","v":"Startovní listina - Malý svratecký maraton 2018"}]
["2018-08-25",null,null,null,null,null,null,null,"Počet přihlášených v jednotlivých kategoriích"]
[{"$f":"'Prezenční listina'!O2-1953&\". ročník\"","v":"65. ročník"},null,null,null,null,null,null,null,null,null,null,"Celkem startujících"]
["#","Startovní číslo","Příjmení","Jméno","Narození","Oddíl / Bydliště","Kategorie"]
[1,{"$f":"IF('Prezenční listina'!F15=0,\"\",'Prezenční listina'!F15)","v":1},{"$f":"IF('Prezenční listina'!F15=0,\"\",'Prezenční listina'!B15)","v":"Komárková"},{"$f":"IF('Prezenční listina'!F15=0,\"\",'Prezenční listina'!C15)","v":"Zdeňka"},{"$f":"IF('Prezenční listina'!F15=0,\"\",'Prezenční listina'!D15)","v":1974},{"$f":"IF('Prezenční listina'!F15=0,\"\",'Prezenční listina'!E15)","v":"SDH Bolešín"},{"$f":"IF('Prezenční listina'!F15=0,\"\",'Prezenční listina'!H15)","v":"G"},null,"A:",{"$f":"COUNTIF($G$5:$G$141,\"A\")","v":19},null,{"$f":"COUNT(B5:B141)","v":67}]
[{"$f":"IF(C6=\"\",\"\",A5+1)","v":2},{"$f":"IF('Prezenční listina'!F34=0,\"\",'Prezenční listina'!F34)","v":2},{"$f":"IF('Prezenční listina'!F34=0,\"\",'Prezenční listina'!B34)","v":"Ptáček"},{"$f":"IF('Prezenční listina'!F34=0,\"\",'Prezenční listina'!C34)","v":"Michal "},{"$f":"IF('Prezenční listina'!F34=0,\"\",'Prezenční listina'!D34)","v":1986},{"$f":"IF('Prezenční listina'!F34=0,\"\",'Prezenční listina'!E34)","v":" Hrdá Ves "},{"$f":"IF('Prezenční listina'!F34=0,\"\",'Prezenční listina'!H34)","v":"A"},null,"B:",{"$f":"COUNTIF($G$5:$G$141,\"B\")","v":19}]
[3,{"$f":"IF('Prezenční listina'!F28=0,\"\",'Prezenční listina'!F28)","v":3},{"$f":"IF('Prezenční listina'!F28=0,\"\",'Prezenční listina'!B28)","v":"Mlčáková"},{"$f":"IF('Prezenční listina'!F28=0,\"\",'Prezenční listina'!C28)","v":"Hana"},{"$f":"IF('Prezenční listina'!F28=0,\"\",'Prezenční listina'!D28)","v":1981},{"$f":"IF('Prezenční listina'!F28=0,\"\",'Prezenční listina'!E28)","v":"Strážnice"},{"$f":"IF('Prezenční listina'!F28=0,\"\",'Prezenční listina'!H28)","v":"G"},null,"C:",{"$f":"COUNTIF($G$5:$G$141,\"C\")","v":8}]
[4,{"$f":"IF('Prezenční listina'!F13=0,\"\",'Prezenční listina'!F13)","v":4},{"$f":"IF('Prezenční listina'!F13=0,\"\",'Prezenční listina'!B13)","v":"Kalich"},{"$f":"IF('Prezenční listina'!F13=0,\"\",'Prezenční listina'!C13)","v":"Radim"},{"$f":"IF('Prezenční listina'!F13=0,\"\",'Prezenční listina'!D13)","v":1985},{"$f":"IF('Prezenční listina'!F13=0,\"\",'Prezenční listina'!E13)","v":"Odranec"},{"$f":"IF('Prezenční listina'!F13=0,\"\",'Prezenční listina'!H13)","v":"A"},null,"D:",{"$f":"COUNTIF($G$5:$G$141,\"D\")","v":4}]
[5,{"$f":"IF('Prezenční listina'!F49=0,\"\",'Prezenční listina'!F49)","v":5},{"$f":"IF('Prezenční listina'!F49=0,\"\",'Prezenční listina'!B49)","v":"Ježová"},{"$f":"IF('Prezenční listina'!F49=0,\"\",'Prezenční listina'!C49)","v":"Martina"},{"$f":"IF('Prezenční listina'!F49=0,\"\",'Prezenční listina'!D49)","v":1975},{"$f":"IF('Prezenční listina'!F49=0,\"\",'Prezenční listina'!E49)","v":"Brno"},{"$f":"IF('Prezenční listina'!F49=0,\"\",'Prezenční listina'!H49)","v":"G"},null,"E:",{"$f":"COUNTIF($G$5:$G$141,\"E\")","v":1}]
[6,{"$f":"IF('Prezenční listina'!F38=0,\"\",'Prezenční listina'!F38)","v":6},{"$f":"IF('Prezenční listina'!F38=0,\"\",'Prezenční listina'!B38)","v":"Šerák"},{"$f":"IF('Prezenční listina'!F38=0,\"\",'Prezenční listina'!C38)","v":"Martin"},{"$f":"IF('Prezenční listina'!F38=0,\"\",'Prezenční listina'!D38)","v":1978},{"$f":"IF('Prezenční listina'!F38=0,\"\",'Prezenční listina'!E38)","v":"Liga 100 Olomouc"},{"$f":"IF('Prezenční listina'!F38=0,\"\",'Prezenční listina'!H38)","v":"B"},null,"F:",{"$f":"COUNTIF($G$5:$G$141,\"F\")","v":7}]
[7,{"$f":"IF('Prezenční listina'!F50=0,\"\",'Prezenční listina'!F50)","v":7},{"$f":"IF('Prezenční listina'!F50=0,\"\",'Prezenční listina'!B50)","v":"Podsedník"},{"$f":"IF('Prezenční listina'!F50=0,\"\",'Prezenční listina'!C50)","v":"Marek"},{"$f":"IF('Prezenční listina'!F50=0,\"\",'Prezenční listina'!D50)","v":1985},{"$f":"IF('Prezenční listina'!F50=0,\"\",'Prezenční listina'!E50)","v":"Brno"},{"$f":"IF('Prezenční listina'!F50=0,\"\",'Prezenční listina'!H50)","v":"A"},null,"G:",{"$f":"COUNTIF($G$5:$G$141,\"G\")","v":6}]
[8,{"$f":"IF('Prezenční listina'!F33=0,\"\",'Prezenční listina'!F33)","v":8},{"$f":"IF('Prezenční listina'!F33=0,\"\",'Prezenční listina'!B33)","v":"Pichová"},{"$f":"IF('Prezenční listina'!F33=0,\"\",'Prezenční listina'!C33)","v":"Dagmar"},{"$f":"IF('Prezenční listina'!F33=0,\"\",'Prezenční listina'!D33)","v":1977},{"$f":"IF('Prezenční listina'!F33=0,\"\",'Prezenční listina'!E33)","v":"Brno"},{"$f":"IF('Prezenční listina'!F33=0,\"\",'Prezenční listina'!H33)","v":"G"},null,"H:",{"$f":"COUNTIF($G$5:$G$141,\"H\")","v":3}]
[9,{"$f":"IF('Prezenční listina'!F40=0,\"\",'Prezenční listina'!F40)","v":9},{"$f":"IF('Prezenční listina'!F40=0,\"\",'Prezenční listina'!B40)","v":"Tesařová"},{"$f":"IF('Prezenční listina'!F40=0,\"\",'Prezenční listina'!C40)","v":"Marie"},{"$f":"IF('Prezenční listina'!F40=0,\"\",'Prezenční listina'!D40)","v":1954},{"$f":"IF('Prezenční listina'!F40=0,\"\",'Prezenční listina'!E40)","v":"Křižanov"},{"$f":"IF('Prezenční listina'!F40=0,\"\",'Prezenční listina'!H40)","v":"H"}]
[10,{"$f":"IF('Prezenční listina'!F16=0,\"\",'Prezenční listina'!F16)","v":10},{"$f":"IF('Prezenční listina'!F16=0,\"\",'Prezenční listina'!B16)","v":"Kopečný"},{"$f":"IF('Prezenční listina'!F16=0,\"\",'Prezenční listina'!C16)","v":"Dušan"},{"$f":"IF('Prezenční listina'!F16=0,\"\",'Prezenční listina'!D16)","v":1973},{"$f":"IF('Prezenční listina'!F16=0,\"\",'Prezenční listina'!E16)","v":"Liga 100 Olomouc"},{"$f":"IF('Prezenční listina'!F16=0,\"\",'Prezenční listina'!H16)","v":"B"}]
[11,{"$f":"IF('Prezenční listina'!F51=0,\"\",'Prezenční listina'!F51)","v":11},{"$f":"IF('Prezenční listina'!F51=0,\"\",'Prezenční listina'!B51)","v":"Holý"},{"$f":"IF('Prezenční listina'!F51=0,\"\",'Prezenční listina'!C51)","v":"Josef"},{"$f":"IF('Prezenční listina'!F51=0,\"\",'Prezenční listina'!D51)","v":1941},{"$f":"IF('Prezenční listina'!F51=0,\"\",'Prezenční listina'!E51)","v":"AC Moravská Slavia Brno"},{"$f":"IF('Prezenční listina'!F51=0,\"\",'Prezenční listina'!H51)","v":"E"}]
[12,{"$f":"IF('Prezenční listina'!F44=0,\"\",'Prezenční listina'!F44)","v":12},{"$f":"IF('Prezenční listina'!F44=0,\"\",'Prezenční listina'!B44)","v":"Zejda"},{"$f":"IF('Prezenční listina'!F44=0,\"\",'Prezenční listina'!C44)","v":"Ivo"},{"$f":"IF('Prezenční listina'!F44=0,\"\",'Prezenční listina'!D44)","v":1958},{"$f":"IF('Prezenční listina'!F44=0,\"\",'Prezenční listina'!E44)","v":"AC Moravská Slavia Brno"},{"$f":"IF('Prezenční listina'!F44=0,\"\",'Prezenční listina'!H44)","v":"D"}]
[13,{"$f":"IF('Prezenční listina'!F22=0,\"\",'Prezenční listina'!F22)","v":13},{"$f":"IF('Prezenční listina'!F22=0,\"\",'Prezenční listina'!B22)","v":"Kresta"},{"$f":"IF('Prezenční listina'!F22=0,\"\",'Prezenční listina'!C22)","v":"Roman"},{"$f":"IF('Prezenční listina'!F22=0,\"\",'Prezenční listina'!D22)","v":1965},{"$f":"IF('Prezenční listina'!F22=0,\"\",'Prezenční listina'!E22)","v":"Orel Židenice"},{"$f":"IF('Prezenční listina'!F22=0,\"\",'Prezenční listina'!H22)","v":"C"}]
[14,{"$f":"IF('Prezenční listina'!F12=0,\"\",'Prezenční listina'!F12)","v":14},{"$f":"IF('Prezenční listina'!F12=0,\"\",'Prezenční listina'!B12)","v":"Juránek"},{"$f":"IF('Prezenční listina'!F12=0,\"\",'Prezenční listina'!C12)","v":"Jakub"},{"$f":"IF('Prezenční listina'!F12=0,\"\",'Prezenční listina'!D12)","v":1995},{"$f":"IF('Prezenční listina'!F12=0,\"\",'Prezenční listina'!E12)","v":"S.U.P.I.  Martinice"},{"$f":"IF('Prezenční listina'!F12=0,\"\",'Prezenční listina'!H12)","v":"A"}]
[15,{"$f":"IF('Prezenční listina'!F52=0,\"\",'Prezenční listina'!F52)","v":15},{"$f":"IF('Prezenční listina'!F52=0,\"\",'Prezenční listina'!B52)","v":"Bělehrádek"},{"$f":"IF('Prezenční listina'!F52=0,\"\",'Prezenční listina'!C52)","v":"Pavel"},{"$f":"IF('Prezenční listina'!F52=0,\"\",'Prezenční listina'!D52)","v":1958},{"$f":"IF('Prezenční listina'!F52=0,\"\",'Prezenční listina'!E52)","v":"TJ ČOLEK"},{"$f":"IF('Prezenční listina'!F52=0,\"\",'Prezenční listina'!H52)","v":"D"}]
[16,{"$f":"IF('Prezenční listina'!F19=0,\"\",'Prezenční listina'!F19)","v":16},{"$f":"IF('Prezenční listina'!F19=0,\"\",'Prezenční listina'!B19)","v":"Král"},{"$f":"IF('Prezenční listina'!F19=0,\"\",'Prezenční listina'!C19)","v":"Jan"},{"$f":"IF('Prezenční listina'!F19=0,\"\",'Prezenční listina'!D19)","v":1981},{"$f":"IF('Prezenční listina'!F19=0,\"\",'Prezenční listina'!E19)","v":"Brno"},{"$f":"IF('Prezenční listina'!F19=0,\"\",'Prezenční listina'!H19)","v":"A"}]
[17,{"$f":"IF('Prezenční listina'!F53=0,\"\",'Prezenční listina'!F53)","v":17},{"$f":"IF('Prezenční listina'!F53=0,\"\",'Prezenční listina'!B53)","v":"Bečička"},{"$f":"IF('Prezenční listina'!F53=0,\"\",'Prezenční listina'!C53)","v":"Petr"},{"$f":"IF('Prezenční listina'!F53=0,\"\",'Prezenční listina'!D53)","v":1960},{"$f":"IF('Prezenční listina'!F53=0,\"\",'Prezenční listina'!E53)","v":"HAL3000"},{"$f":"IF('Prezenční listina'!F53=0,\"\",'Prezenční listina'!H53)","v":"C"}]
[18,{"$f":"IF('Prezenční listina'!F54=0,\"\",'Prezenční listina'!F54)","v":18},{"$f":"IF('Prezenční listina'!F54=0,\"\",'Prezenční listina'!B54)","v":"Dostálová"},{"$f":"IF('Prezenční listina'!F54=0,\"\",'Prezenční listina'!C54)","v":"Vendula"},{"$f":"IF('Prezenční listina'!F54=0,\"\",'Prezenční listina'!D54)","v":1981},{"$f":"IF('Prezenční listina'!F54=0,\"\",'Prezenční listina'!E54)","v":"HAL3000"},{"$f":"IF('Prezenční listina'!F54=0,\"\",'Prezenční listina'!H54)","v":"G"}]
[19,{"$f":"IF('Prezenční listina'!F55=0,\"\",'Prezenční listina'!F55)","v":19},{"$f":"IF('Prezenční listina'!F55=0,\"\",'Prezenční listina'!B55)","v":"Pivec"},{"$f":"IF('Prezenční listina'!F55=0,\"\",'Prezenční listina'!C55)","v":"Jan"},{"$f":"IF('Prezenční listina'!F55=0,\"\",'Prezenční listina'!D55)","v":1981},{"$f":"IF('Prezenční listina'!F55=0,\"\",'Prezenční listina'!E55)","v":"HAL3000"},{"$f":"IF('Prezenční listina'!F55=0,\"\",'Prezenční listina'!H55)","v":"A"}]
[20,{"$f":"IF('Prezenční listina'!F56=0,\"\",'Prezenční listina'!F56)","v":20},{"$f":"IF('Prezenční listina'!F56=0,\"\",'Prezenční listina'!B56)","v":"Forýtek"},{"$f":"IF('Prezenční listina'!F56=0,\"\",'Prezenční listina'!C56)","v":"Michal"},{"$f":"IF('Prezenční listina'!F56=0,\"\",'Prezenční listina'!D56)","v":1982},{"$f":"IF('Prezenční listina'!F56=0,\"\",'Prezenční listina'!E56)","v":"HAL3000"},{"$f":"IF('Prezenční listina'!F56=0,\"\",'Prezenční listina'!H56)","v":"A"}]
[21,{"$f":"IF('Prezenční listina'!F57=0,\"\",'Prezenční listina'!F57)","v":21},{"$f":"IF('Prezenční listina'!F57=0,\"\",'Prezenční listina'!B57)","v":"Trefilová"},{"$f":"IF('Prezenční listina'!F57=0,\"\",'Prezenční listina'!C57)","v":"Ester"},{"$f":"IF('Prezenční listina'!F57=0,\"\",'Prezenční listina'!D57)","v":1993},{"$f":"IF('Prezenční listina'!F57=0,\"\",'Prezenční listina'!E57)","v":"Vír"},{"$f":"IF('Prezenční listina'!F57=0,\"\",'Prezenční listina'!H57)","v":"F"}]
[22,{"$f":"IF('Prezenční listina'!F3=0,\"\",'Prezenční listina'!F3)","v":22},{"$f":"IF('Prezenční listina'!F3=0,\"\",'Prezenční listina'!B3)","v":"Faja"},{"$f":"IF('Prezenční listina'!F3=0,\"\",'Prezenční listina'!C3)","v":"Ondřej"},{"$f":"IF('Prezenční listina'!F3=0,\"\",'Prezenční listina'!D3)","v":1976},{"$f":"IF('Prezenční listina'!F3=0,\"\",'Prezenční listina'!E3)","v":"Brno"},{"$f":"IF('Prezenční listina'!F3=0,\"\",'Prezenční listina'!H3)","v":"B"}]
[23,{"$f":"IF('Prezenční listina'!F18=0,\"\",'Prezenční listina'!F18)","v":23},{"$f":"IF('Prezenční listina'!F18=0,\"\",'Prezenční listina'!B18)","v":"Koutský"},{"$f":"IF('Prezenční listina'!F18=0,\"\",'Prezenční listina'!C18)","v":"Tomáš"},{"$f":"IF('Prezenční listina'!F18=0,\"\",'Prezenční listina'!D18)","v":1987},{"$f":"IF('Prezenční listina'!F18=0,\"\",'Prezenční listina'!E18)","v":"Ledová stěna Vír"},{"$f":"IF('Prezenční listina'!F18=0,\"\",'Prezenční listina'!H18)","v":"A"}]
[24,{"$f":"IF('Prezenční listina'!F36=0,\"\",'Prezenční listina'!F36)","v":24},{"$f":"IF('Prezenční listina'!F36=0,\"\",'Prezenční listina'!B36)","v":"Skula"},{"$f":"IF('Prezenční listina'!F36=0,\"\",'Prezenční listina'!C36)","v":"Miroslav"},{"$f":"IF('Prezenční listina'!F36=0,\"\",'Prezenční listina'!D36)","v":1988},{"$f":"IF('Prezenční listina'!F36=0,\"\",'Prezenční listina'!E36)","v":"SRTG Žďár nad Sázavou"},{"$f":"IF('Prezenční listina'!F36=0,\"\",'Prezenční listina'!H36)","v":"A"}]
[25,{"$f":"IF('Prezenční listina'!F14=0,\"\",'Prezenční listina'!F14)","v":25},{"$f":"IF('Prezenční listina'!F14=0,\"\",'Prezenční listina'!B14)","v":"Klíma"},{"$f":"IF('Prezenční listina'!F14=0,\"\",'Prezenční listina'!C14)","v":"Miroslav"},{"$f":"IF('Prezenční listina'!F14=0,\"\",'Prezenční listina'!D14)","v":1975},{"$f":"IF('Prezenční listina'!F14=0,\"\",'Prezenční listina'!E14)","v":"Emanovy červené trenýrky Brno"},{"$f":"IF('Prezenční listina'!F14=0,\"\",'Prezenční listina'!H14)","v":"B"}]
[26,{"$f":"IF('Prezenční listina'!F58=0,\"\",'Prezenční listina'!F58)","v":26},{"$f":"IF('Prezenční listina'!F58=0,\"\",'Prezenční listina'!B58)","v":"Bartoňková"},{"$f":"IF('Prezenční listina'!F58=0,\"\",'Prezenční listina'!C58)","v":"Nina"},{"$f":"IF('Prezenční listina'!F58=0,\"\",'Prezenční listina'!D58)","v":1990},{"$f":"IF('Prezenční listina'!F58=0,\"\",'Prezenční listina'!E58)","v":"AK Drnovice"},{"$f":"IF('Prezenční listina'!F58=0,\"\",'Prezenční listina'!H58)","v":"F"}]
[27,{"$f":"IF('Prezenční listina'!F4=0,\"\",'Prezenční listina'!F4)","v":27},{"$f":"IF('Prezenční listina'!F4=0,\"\",'Prezenční listina'!B4)","v":"Fanfrdla"},{"$f":"IF('Prezenční listina'!F4=0,\"\",'Prezenční listina'!C4)","v":"Dalimil"},{"$f":"IF('Prezenční listina'!F4=0,\"\",'Prezenční listina'!D4)","v":1973},{"$f":"IF('Prezenční listina'!F4=0,\"\",'Prezenční listina'!E4)","v":"Matyteam Brno"},{"$f":"IF('Prezenční listina'!F4=0,\"\",'Prezenční listina'!H4)","v":"B"}]
[28,{"$f":"IF('Prezenční listina'!F9=0,\"\",'Prezenční listina'!F9)","v":28},{"$f":"IF('Prezenční listina'!F9=0,\"\",'Prezenční listina'!B9)","v":"Hanslová"},{"$f":"IF('Prezenční listina'!F9=0,\"\",'Prezenční listina'!C9)","v":"Lenka"},{"$f":"IF('Prezenční listina'!F9=0,\"\",'Prezenční listina'!D9)","v":1973},{"$f":"IF('Prezenční listina'!F9=0,\"\",'Prezenční listina'!E9)","v":"Žďár nad Sázavou"},{"$f":"IF('Prezenční listina'!F9=0,\"\",'Prezenční listina'!H9)","v":"H"}]
[29,{"$f":"IF('Prezenční listina'!F59=0,\"\",'Prezenční listina'!F59)","v":29},{"$f":"IF('Prezenční listina'!F59=0,\"\",'Prezenční listina'!B59)","v":"Dvořák"},{"$f":"IF('Prezenční listina'!F59=0,\"\",'Prezenční listina'!C59)","v":"Vojtěch"},{"$f":"IF('Prezenční listina'!F59=0,\"\",'Prezenční listina'!D59)","v":1975},{"$f":"IF('Prezenční listina'!F59=0,\"\",'Prezenční listina'!E59)","v":"Brno"},{"$f":"IF('Prezenční listina'!F59=0,\"\",'Prezenční listina'!H59)","v":"B"}]
[30,{"$f":"IF('Prezenční listina'!F41=0,\"\",'Prezenční listina'!F41)","v":30},{"$f":"IF('Prezenční listina'!F41=0,\"\",'Prezenční listina'!B41)","v":"Vintrlík"},{"$f":"IF('Prezenční listina'!F41=0,\"\",'Prezenční listina'!C41)","v":"Martin"},{"$f":"IF('Prezenční listina'!F41=0,\"\",'Prezenční listina'!D41)","v":1977},{"$f":"IF('Prezenční listina'!F41=0,\"\",'Prezenční listina'!E41)","v":"Triatlon křepice"},{"$f":"IF('Prezenční listina'!F41=0,\"\",'Prezenční listina'!H41)","v":"B"}]
[31,{"$f":"IF('Prezenční listina'!F60=0,\"\",'Prezenční listina'!F60)","v":31},{"$f":"IF('Prezenční listina'!F60=0,\"\",'Prezenční listina'!B60)","v":"Pešáková"},{"$f":"IF('Prezenční listina'!F60=0,\"\",'Prezenční listina'!C60)","v":"Mirka"},{"$f":"IF('Prezenční listina'!F60=0,\"\",'Prezenční listina'!D60)","v":1985},{"$f":"IF('Prezenční listina'!F60=0,\"\",'Prezenční listina'!E60)","v":"AC RACERS, Tetčice"},{"$f":"IF('Prezenční listina'!F60=0,\"\",'Prezenční listina'!H60)","v":"F"}]
[32,{"$f":"IF('Prezenční listina'!F61=0,\"\",'Prezenční listina'!F61)","v":32},{"$f":"IF('Prezenční listina'!F61=0,\"\",'Prezenční listina'!B61)","v":"Sinkule"},{"$f":"IF('Prezenční listina'!F61=0,\"\",'Prezenční listina'!C61)","v":"Pavel"},{"$f":"IF('Prezenční listina'!F61=0,\"\",'Prezenční listina'!D61)","v":1981},{"$f":"IF('Prezenční listina'!F61=0,\"\",'Prezenční listina'!E61)","v":"SRTG Brno"},{"$f":"IF('Prezenční listina'!F61=0,\"\",'Prezenční listina'!H61)","v":"A"}]
[33,{"$f":"IF('Prezenční listina'!F62=0,\"\",'Prezenční listina'!F62)","v":33},{"$f":"IF('Prezenční listina'!F62=0,\"\",'Prezenční listina'!B62)","v":"Komárek"},{"$f":"IF('Prezenční listina'!F62=0,\"\",'Prezenční listina'!C62)","v":"Michal"},{"$f":"IF('Prezenční listina'!F62=0,\"\",'Prezenční listina'!D62)","v":1981},{"$f":"IF('Prezenční listina'!F62=0,\"\",'Prezenční listina'!E62)","v":"Bystřice nad Pernštejnem"},{"$f":"IF('Prezenční listina'!F62=0,\"\",'Prezenční listina'!H62)","v":"A"}]
[34,{"$f":"IF('Prezenční listina'!F39=0,\"\",'Prezenční listina'!F39)","v":34},{"$f":"IF('Prezenční listina'!F39=0,\"\",'Prezenční listina'!B39)","v":"Šimunek"},{"$f":"IF('Prezenční listina'!F39=0,\"\",'Prezenční listina'!C39)","v":"Martin"},{"$f":"IF('Prezenční listina'!F39=0,\"\",'Prezenční listina'!D39)","v":1966},{"$f":"IF('Prezenční listina'!F39=0,\"\",'Prezenční listina'!E39)","v":"Botanka Running Modřice"},{"$f":"IF('Prezenční listina'!F39=0,\"\",'Prezenční listina'!H39)","v":"C"}]
[{"$f":"IF(C39=\"\",\"\",A38+1)","v":35},{"$f":"IF('Prezenční listina'!F10=0,\"\",'Prezenční listina'!F10)","v":35},{"$f":"IF('Prezenční listina'!F10=0,\"\",'Prezenční listina'!B10)","v":"Hýbl"},{"$f":"IF('Prezenční listina'!F10=0,\"\",'Prezenční listina'!C10)","v":"Jiří"},{"$f":"IF('Prezenční listina'!F10=0,\"\",'Prezenční listina'!D10)","v":1967},{"$f":"IF('Prezenční listina'!F10=0,\"\",'Prezenční listina'!E10)","v":"Hrušovany u Brna"},{"$f":"IF('Prezenční listina'!F10=0,\"\",'Prezenční listina'!H10)","v":"C"}]
[{"$f":"IF(C40=\"\",\"\",A39+1)","v":36},{"$f":"IF('Prezenční listina'!F63=0,\"\",'Prezenční listina'!F63)","v":36},{"$f":"IF('Prezenční listina'!F63=0,\"\",'Prezenční listina'!B63)","v":"Nováček"},{"$f":"IF('Prezenční listina'!F63=0,\"\",'Prezenční listina'!C63)","v":"Tomáš"},{"$f":"IF('Prezenční listina'!F63=0,\"\",'Prezenční listina'!D63)","v":1983},{"$f":"IF('Prezenční listina'!F63=0,\"\",'Prezenční listina'!E63)","v":"SDH Kamenná"},{"$f":"IF('Prezenční listina'!F63=0,\"\",'Prezenční listina'!H63)","v":"A"}]
[37,{"$f":"IF('Prezenční listina'!F37=0,\"\",'Prezenční listina'!F37)","v":37},{"$f":"IF('Prezenční listina'!F37=0,\"\",'Prezenční listina'!B37)","v":"Svoboda"},{"$f":"IF('Prezenční listina'!F37=0,\"\",'Prezenční listina'!C37)","v":"Petr"},{"$f":"IF('Prezenční listina'!F37=0,\"\",'Prezenční listina'!D37)","v":1968},{"$f":"IF('Prezenční listina'!F37=0,\"\",'Prezenční listina'!E37)","v":"AC Moravská Slavia Brno"},{"$f":"IF('Prezenční listina'!F37=0,\"\",'Prezenční listina'!H37)","v":"C"}]
[38,{"$f":"IF('Prezenční listina'!F17=0,\"\",'Prezenční listina'!F17)","v":38},{"$f":"IF('Prezenční listina'!F17=0,\"\",'Prezenční listina'!B17)","v":"Košek"},{"$f":"IF('Prezenční listina'!F17=0,\"\",'Prezenční listina'!C17)","v":"Martin"},{"$f":"IF('Prezenční listina'!F17=0,\"\",'Prezenční listina'!D17)","v":1984},{"$f":"IF('Prezenční listina'!F17=0,\"\",'Prezenční listina'!E17)","v":"Brno"},{"$f":"IF('Prezenční listina'!F17=0,\"\",'Prezenční listina'!H17)","v":"A"}]
[39,{"$f":"IF('Prezenční listina'!F35=0,\"\",'Prezenční listina'!F35)","v":39},{"$f":"IF('Prezenční listina'!F35=0,\"\",'Prezenční listina'!B35)","v":"Řezníček"},{"$f":"IF('Prezenční listina'!F35=0,\"\",'Prezenční listina'!C35)","v":"Petr"},{"$f":"IF('Prezenční listina'!F35=0,\"\",'Prezenční listina'!D35)","v":1973},{"$f":"IF('Prezenční listina'!F35=0,\"\",'Prezenční listina'!E35)","v":"Polnička"},{"$f":"IF('Prezenční listina'!F35=0,\"\",'Prezenční listina'!H35)","v":"B"}]
[40,{"$f":"IF('Prezenční listina'!F42=0,\"\",'Prezenční listina'!F42)","v":40},{"$f":"IF('Prezenční listina'!F42=0,\"\",'Prezenční listina'!B42)","v":"Viščor"},{"$f":"IF('Prezenční listina'!F42=0,\"\",'Prezenční listina'!C42)","v":"Pavel"},{"$f":"IF('Prezenční listina'!F42=0,\"\",'Prezenční listina'!D42)","v":1974},{"$f":"IF('Prezenční listina'!F42=0,\"\",'Prezenční listina'!E42)","v":"Brno"},{"$f":"IF('Prezenční listina'!F42=0,\"\",'Prezenční listina'!H42)","v":"B"}]
[41,{"$f":"IF('Prezenční listina'!F45=0,\"\",'Prezenční listina'!F45)","v":41},{"$f":"IF('Prezenční listina'!F45=0,\"\",'Prezenční listina'!B45)","v":"Žličař"},{"$f":"IF('Prezenční listina'!F45=0,\"\",'Prezenční listina'!C45)","v":"Karel"},{"$f":"IF('Prezenční listina'!F45=0,\"\",'Prezenční listina'!D45)","v":1977},{"$f":"IF('Prezenční listina'!F45=0,\"\",'Prezenční listina'!E45)","v":"Železárny Štěpánov"},{"$f":"IF('Prezenční listina'!F45=0,\"\",'Prezenční listina'!H45)","v":"B"}]
[42,{"$f":"IF('Prezenční listina'!F27=0,\"\",'Prezenční listina'!F27)","v":42},{"$f":"IF('Prezenční listina'!F27=0,\"\",'Prezenční listina'!B27)","v":"Mareš"},{"$f":"IF('Prezenční listina'!F27=0,\"\",'Prezenční listina'!C27)","v":"Bohumil"},{"$f":"IF('Prezenční listina'!F27=0,\"\",'Prezenční listina'!D27)","v":1951},{"$f":"IF('Prezenční listina'!F27=0,\"\",'Prezenční listina'!E27)","v":"Posilovna Průvan Brno"},{"$f":"IF('Prezenční listina'!F27=0,\"\",'Prezenční listina'!H27)","v":"D"}]
[43,{"$f":"IF('Prezenční listina'!F48=0,\"\",'Prezenční listina'!F48)","v":43},{"$f":"IF('Prezenční listina'!F48=0,\"\",'Prezenční listina'!B48)","v":"Kocur"},{"$f":"IF('Prezenční listina'!F48=0,\"\",'Prezenční listina'!C48)","v":"Lukáš"},{"$f":"IF('Prezenční listina'!F48=0,\"\",'Prezenční listina'!D48)","v":1977},{"$f":"IF('Prezenční listina'!F48=0,\"\",'Prezenční listina'!E48)","v":"Orel Šitbořice"},{"$f":"IF('Prezenční listina'!F48=0,\"\",'Prezenční listina'!H48)","v":"B"}]
[44,{"$f":"IF('Prezenční listina'!F11=0,\"\",'Prezenční listina'!F11)","v":44},{"$f":"IF('Prezenční listina'!F11=0,\"\",'Prezenční listina'!B11)","v":"Johaníková"},{"$f":"IF('Prezenční listina'!F11=0,\"\",'Prezenční listina'!C11)","v":"Lucie"},{"$f":"IF('Prezenční listina'!F11=0,\"\",'Prezenční listina'!D11)","v":1986},{"$f":"IF('Prezenční listina'!F11=0,\"\",'Prezenční listina'!E11)","v":"AC Moravská Slavia Brno"},{"$f":"IF('Prezenční listina'!F11=0,\"\",'Prezenční listina'!H11)","v":"F"}]
[45,{"$f":"IF('Prezenční listina'!F64=0,\"\",'Prezenční listina'!F64)","v":45},{"$f":"IF('Prezenční listina'!F64=0,\"\",'Prezenční listina'!B64)","v":"Kohut"},{"$f":"IF('Prezenční listina'!F64=0,\"\",'Prezenční listina'!C64)","v":"Jan"},{"$f":"IF('Prezenční listina'!F64=0,\"\",'Prezenční listina'!D64)","v":1985},{"$f":"IF('Prezenční listina'!F64=0,\"\",'Prezenční listina'!E64)","v":"Univerzita Brno"},{"$f":"IF('Prezenční listina'!F64=0,\"\",'Prezenční listina'!H64)","v":"A"}]
[46,{"$f":"IF('Prezenční listina'!F65=0,\"\",'Prezenční listina'!F65)","v":46},{"$f":"IF('Prezenční listina'!F65=0,\"\",'Prezenční listina'!B65)","v":"Dvořáček"},{"$f":"IF('Prezenční listina'!F65=0,\"\",'Prezenční listina'!C65)","v":"Jiří"},{"$f":"IF('Prezenční listina'!F65=0,\"\",'Prezenční listina'!D65)","v":1968},{"$f":"IF('Prezenční listina'!F65=0,\"\",'Prezenční listina'!E65)","v":"Univerzita Brno"},{"$f":"IF('Prezenční listina'!F65=0,\"\",'Prezenční listina'!H65)","v":"C"}]
[47,{"$f":"IF('Prezenční listina'!F66=0,\"\",'Prezenční listina'!F66)","v":47},{"$f":"IF('Prezenční listina'!F66=0,\"\",'Prezenční listina'!B66)","v":"Fric"},{"$f":"IF('Prezenční listina'!F66=0,\"\",'Prezenční listina'!C66)","v":"Petr"},{"$f":"IF('Prezenční listina'!F66=0,\"\",'Prezenční listina'!D66)","v":1970},{"$f":"IF('Prezenční listina'!F66=0,\"\",'Prezenční listina'!E66)","v":"Bystré"},{"$f":"IF('Prezenční listina'!F66=0,\"\",'Prezenční listina'!H66)","v":"B"}]
[48,{"$f":"IF('Prezenční listina'!F6=0,\"\",'Prezenční listina'!F6)","v":48},{"$f":"IF('Prezenční listina'!F6=0,\"\",'Prezenční listina'!B6)","v":"Glierová"},{"$f":"IF('Prezenční listina'!F6=0,\"\",'Prezenční listina'!C6)","v":"Renata"},{"$f":"IF('Prezenční listina'!F6=0,\"\",'Prezenční listina'!D6)","v":1985},{"$f":"IF('Prezenční listina'!F6=0,\"\",'Prezenční listina'!E6)","v":"SDH Doubravník"},{"$f":"IF('Prezenční listina'!F6=0,\"\",'Prezenční listina'!H6)","v":"F"}]
[49,{"$f":"IF('Prezenční listina'!F5=0,\"\",'Prezenční listina'!F5)","v":49},{"$f":"IF('Prezenční listina'!F5=0,\"\",'Prezenční listina'!B5)","v":"Glier"},{"$f":"IF('Prezenční listina'!F5=0,\"\",'Prezenční listina'!C5)","v":"Michal"},{"$f":"IF('Prezenční listina'!F5=0,\"\",'Prezenční listina'!D5)","v":1982},{"$f":"IF('Prezenční listina'!F5=0,\"\",'Prezenční listina'!E5)","v":"SDH Doubravník"},{"$f":"IF('Prezenční listina'!F5=0,\"\",'Prezenční listina'!H5)","v":"A"}]
[50,{"$f":"IF('Prezenční listina'!F20=0,\"\",'Prezenční listina'!F20)","v":50},{"$f":"IF('Prezenční listina'!F20=0,\"\",'Prezenční listina'!B20)","v":"Král"},{"$f":"IF('Prezenční listina'!F20=0,\"\",'Prezenční listina'!C20)","v":"Josef"},{"$f":"IF('Prezenční listina'!F20=0,\"\",'Prezenční listina'!D20)","v":1958},{"$f":"IF('Prezenční listina'!F20=0,\"\",'Prezenční listina'!E20)","v":"SDH Bystré"},{"$f":"IF('Prezenční listina'!F20=0,\"\",'Prezenční listina'!H20)","v":"D"}]
[51,{"$f":"IF('Prezenční listina'!F43=0,\"\",'Prezenční listina'!F43)","v":51},{"$f":"IF('Prezenční listina'!F43=0,\"\",'Prezenční listina'!B43)","v":"Vondrová"},{"$f":"IF('Prezenční listina'!F43=0,\"\",'Prezenční listina'!C43)","v":"Ludmila"},{"$f":"IF('Prezenční listina'!F43=0,\"\",'Prezenční listina'!D43)","v":1986},{"$f":"IF('Prezenční listina'!F43=0,\"\",'Prezenční listina'!E43)","v":"Dalečín"},{"$f":"IF('Prezenční listina'!F43=0,\"\",'Prezenční listina'!H43)","v":"F"}]
[52,{"$f":"IF('Prezenční listina'!F26=0,\"\",'Prezenční listina'!F26)","v":52},{"$f":"IF('Prezenční listina'!F26=0,\"\",'Prezenční listina'!B26)","v":"Lorenčík"},{"$f":"IF('Prezenční listina'!F26=0,\"\",'Prezenční listina'!C26)","v":"Aleš"},{"$f":"IF('Prezenční listina'!F26=0,\"\",'Prezenční listina'!D26)","v":1973},{"$f":"IF('Prezenční listina'!F26=0,\"\",'Prezenční listina'!E26)","v":"Chrudim"},{"$f":"IF('Prezenční listina'!F26=0,\"\",'Prezenční listina'!H26)","v":"B"}]
[53,{"$f":"IF('Prezenční listina'!F25=0,\"\",'Prezenční listina'!F25)","v":53},{"$f":"IF('Prezenční listina'!F25=0,\"\",'Prezenční listina'!B25)","v":"Kuncová"},{"$f":"IF('Prezenční listina'!F25=0,\"\",'Prezenční listina'!C25)","v":"Markéta"},{"$f":"IF('Prezenční listina'!F25=0,\"\",'Prezenční listina'!D25)","v":1982},{"$f":"IF('Prezenční listina'!F25=0,\"\",'Prezenční listina'!E25)","v":"Rožná"},{"$f":"IF('Prezenční listina'!F25=0,\"\",'Prezenční listina'!H25)","v":"G"}]
[54,{"$f":"IF('Prezenční listina'!F47=0,\"\",'Prezenční listina'!F47)","v":54},{"$f":"IF('Prezenční listina'!F47=0,\"\",'Prezenční listina'!B47)","v":"Pavlásek"},{"$f":"IF('Prezenční listina'!F47=0,\"\",'Prezenční listina'!C47)","v":"Michal"},{"$f":"IF('Prezenční listina'!F47=0,\"\",'Prezenční listina'!D47)","v":1983},{"$f":"IF('Prezenční listina'!F47=0,\"\",'Prezenční listina'!E47)","v":"Brno"},{"$f":"IF('Prezenční listina'!F47=0,\"\",'Prezenční listina'!H47)","v":"A"}]
[55,{"$f":"IF('Prezenční listina'!F46=0,\"\",'Prezenční listina'!F46)","v":55},{"$f":"IF('Prezenční listina'!F46=0,\"\",'Prezenční listina'!B46)","v":"Jamrichová"},{"$f":"IF('Prezenční listina'!F46=0,\"\",'Prezenční listina'!C46)","v":"Kristina"},{"$f":"IF('Prezenční listina'!F46=0,\"\",'Prezenční listina'!D46)","v":1987},{"$f":"IF('Prezenční listina'!F46=0,\"\",'Prezenční listina'!E46)","v":"Brno"},{"$f":"IF('Prezenční listina'!F46=0,\"\",'Prezenční listina'!H46)","v":"F"}]
[56,{"$f":"IF('Prezenční listina'!F67=0,\"\",'Prezenční listina'!F67)","v":56},{"$f":"IF('Prezenční listina'!F67=0,\"\",'Prezenční listina'!B67)","v":"Benc"},{"$f":"IF('Prezenční listina'!F67=0,\"\",'Prezenční listina'!C67)","v":"Karel"},{"$f":"IF('Prezenční listina'!F67=0,\"\",'Prezenční listina'!D67)","v":1975},{"$f":"IF('Prezenční listina'!F67=0,\"\",'Prezenční listina'!E67)","v":"Pivonice"},{"$f":"IF('Prezenční listina'!F67=0,\"\",'Prezenční listina'!H67)","v":"B"}]
[57,{"$f":"IF('Prezenční listina'!F24=0,\"\",'Prezenční listina'!F24)","v":57},{"$f":"IF('Prezenční listina'!F24=0,\"\",'Prezenční listina'!B24)","v":"Kříž"},{"$f":"IF('Prezenční listina'!F24=0,\"\",'Prezenční listina'!C24)","v":"Miloslav"},{"$f":"IF('Prezenční listina'!F24=0,\"\",'Prezenční listina'!D24)","v":1961},{"$f":"IF('Prezenční listina'!F24=0,\"\",'Prezenční listina'!E24)","v":"Aspire Dobrochov"},{"$f":"IF('Prezenční listina'!F24=0,\"\",'Prezenční listina'!H24)","v":"C"}]
[58,{"$f":"IF('Prezenční listina'!F32=0,\"\",'Prezenční listina'!F32)","v":58},{"$f":"IF('Prezenční listina'!F32=0,\"\",'Prezenční listina'!B32)","v":"Paleček"},{"$f":"IF('Prezenční listina'!F32=0,\"\",'Prezenční listina'!C32)","v":"Miloš"},{"$f":"IF('Prezenční listina'!F32=0,\"\",'Prezenční listina'!D32)","v":1985},{"$f":"IF('Prezenční listina'!F32=0,\"\",'Prezenční listina'!E32)","v":"BIKEŘI ROVE"},{"$f":"IF('Prezenční listina'!F32=0,\"\",'Prezenční listina'!H32)","v":"A"}]
[59,{"$f":"IF('Prezenční listina'!F68=0,\"\",'Prezenční listina'!F68)","v":59},{"$f":"IF('Prezenční listina'!F68=0,\"\",'Prezenční listina'!B68)","v":"Pokorný"},{"$f":"IF('Prezenční listina'!F68=0,\"\",'Prezenční listina'!C68)","v":"Václav"},{"$f":"IF('Prezenční listina'!F68=0,\"\",'Prezenční listina'!D68)","v":1978},{"$f":"IF('Prezenční listina'!F68=0,\"\",'Prezenční listina'!E68)","v":"Brno"},{"$f":"IF('Prezenční listina'!F68=0,\"\",'Prezenční listina'!H68)","v":"B"}]
[60,{"$f":"IF('Prezenční listina'!F69=0,\"\",'Prezenční listina'!F69)","v":60},{"$f":"IF('Prezenční listina'!F69=0,\"\",'Prezenční listina'!B69)","v":"Tyleček"},{"$f":"IF('Prezenční listina'!F69=0,\"\",'Prezenční listina'!C69)","v":"Pavel"},{"$f":"IF('Prezenční listina'!F69=0,\"\",'Prezenční listina'!D69)","v":1973},{"$f":"IF('Prezenční listina'!F69=0,\"\",'Prezenční listina'!E69)","v":"Jundrováci"},{"$f":"IF('Prezenční listina'!F69=0,\"\",'Prezenční listina'!H69)","v":"B"}]
[61,{"$f":"IF('Prezenční listina'!F70=0,\"\",'Prezenční listina'!F70)","v":61},{"$f":"IF('Prezenční listina'!F70=0,\"\",'Prezenční listina'!B70)","v":"Podmelová"},{"$f":"IF('Prezenční listina'!F70=0,\"\",'Prezenční listina'!C70)","v":"Vilma"},{"$f":"IF('Prezenční listina'!F70=0,\"\",'Prezenční listina'!D70)","v":1962},{"$f":"IF('Prezenční listina'!F70=0,\"\",'Prezenční listina'!E70)","v":"AC Moravská Slavia Brno"},{"$f":"IF('Prezenční listina'!F70=0,\"\",'Prezenční listina'!H70)","v":"H"}]
[62,{"$f":"IF('Prezenční listina'!F71=0,\"\",'Prezenční listina'!F71)","v":62},{"$f":"IF('Prezenční listina'!F71=0,\"\",'Prezenční listina'!B71)","v":"Exner"},{"$f":"IF('Prezenční listina'!F71=0,\"\",'Prezenční listina'!C71)","v":"Jakub"},{"$f":"IF('Prezenční listina'!F71=0,\"\",'Prezenční listina'!D71)","v":1983},{"$f":"IF('Prezenční listina'!F71=0,\"\",'Prezenční listina'!E71)","v":"P-Team"},{"$f":"IF('Prezenční listina'!F71=0,\"\",'Prezenční listina'!H71)","v":"A"}]
[63,{"$f":"IF('Prezenční listina'!F31=0,\"\",'Prezenční listina'!F31)","v":63},{"$f":"IF('Prezenční listina'!F31=0,\"\",'Prezenční listina'!B31)","v":"Orálek"},{"$f":"IF('Prezenční listina'!F31=0,\"\",'Prezenční listina'!C31)","v":"Daniel"},{"$f":"IF('Prezenční listina'!F31=0,\"\",'Prezenční listina'!D31)","v":1970},{"$f":"IF('Prezenční listina'!F31=0,\"\",'Prezenční listina'!E31)","v":"behejbrno.com"},{"$f":"IF('Prezenční listina'!F31=0,\"\",'Prezenční listina'!H31)","v":"B"}]
[64,{"$f":"IF('Prezenční listina'!F21=0,\"\",'Prezenční listina'!F21)","v":64},{"$f":"IF('Prezenční listina'!F21=0,\"\",'Prezenční listina'!B21)","v":"Kratochvíl"},{"$f":"IF('Prezenční listina'!F21=0,\"\",'Prezenční listina'!C21)","v":"Jaroslav"},{"$f":"IF('Prezenční listina'!F21=0,\"\",'Prezenční listina'!D21)","v":1977},{"$f":"IF('Prezenční listina'!F21=0,\"\",'Prezenční listina'!E21)","v":"SDH Hluboké"},{"$f":"IF('Prezenční listina'!F21=0,\"\",'Prezenční listina'!H21)","v":"B"}]
[65,{"$f":"IF('Prezenční listina'!F72=0,\"\",'Prezenční listina'!F72)","v":65},{"$f":"IF('Prezenční listina'!F72=0,\"\",'Prezenční listina'!B72)","v":"Konečný"},{"$f":"IF('Prezenční listina'!F72=0,\"\",'Prezenční listina'!C72)","v":"Libor"},{"$f":"IF('Prezenční listina'!F72=0,\"\",'Prezenční listina'!D72)","v":1971},{"$f":"IF('Prezenční listina'!F72=0,\"\",'Prezenční listina'!E72)","v":"Kuřim"},{"$f":"IF('Prezenční listina'!F72=0,\"\",'Prezenční listina'!H72)","v":"B"}]
[66,{"$f":"IF('Prezenční listina'!F73=0,\"\",'Prezenční listina'!F73)","v":66},{"$f":"IF('Prezenční listina'!F73=0,\"\",'Prezenční listina'!B73)","v":"Zourek"},{"$f":"IF('Prezenční listina'!F73=0,\"\",'Prezenční listina'!C73)","v":"Karel"},{"$f":"IF('Prezenční listina'!F73=0,\"\",'Prezenční listina'!D73)","v":1959},{"$f":"IF('Prezenční listina'!F73=0,\"\",'Prezenční listina'!E73)","v":"Bedřichovice"},{"$f":"IF('Prezenční listina'!F73=0,\"\",'Prezenční listina'!H73)","v":"C"}]
[67,{"$f":"IF('Prezenční listina'!F74=0,\"\",'Prezenční listina'!F74)","v":67},{"$f":"IF('Prezenční listina'!F74=0,\"\",'Prezenční listina'!B74)","v":"Příhoda"},{"$f":"IF('Prezenční listina'!F74=0,\"\",'Prezenční listina'!C74)","v":"Jan"},{"$f":"IF('Prezenční listina'!F74=0,\"\",'Prezenční listina'!D74)","v":1983},{"$f":"IF('Prezenční listina'!F74=0,\"\",'Prezenční listina'!E74)","v":"Ždánice"},{"$f":"IF('Prezenční listina'!F74=0,\"\",'Prezenční listina'!H74)","v":"A"}]
["",{"$f":"IF('Prezenční listina'!F7=0,\"\",'Prezenční listina'!F7)","v":""},{"$f":"IF('Prezenční listina'!F7=0,\"\",'Prezenční listina'!B7)","v":""},{"$f":"IF('Prezenční listina'!F7=0,\"\",'Prezenční listina'!C7)","v":""},{"$f":"IF('Prezenční listina'!F7=0,\"\",'Prezenční listina'!D7)","v":""},{"$f":"IF('Prezenční listina'!F7=0,\"\",'Prezenční listina'!E7)","v":""},{"$f":"IF('Prezenční listina'!F7=0,\"\",'Prezenční listina'!H7)","v":""}]
["",{"$f":"IF('Prezenční listina'!F8=0,\"\",'Prezenční listina'!F8)","v":""},{"$f":"IF('Prezenční listina'!F8=0,\"\",'Prezenční listina'!B8)","v":""},{"$f":"IF('Prezenční listina'!F8=0,\"\",'Prezenční listina'!C8)","v":""},{"$f":"IF('Prezenční listina'!F8=0,\"\",'Prezenční listina'!D8)","v":""},{"$f":"IF('Prezenční listina'!F8=0,\"\",'Prezenční listina'!E8)","v":""},{"$f":"IF('Prezenční listina'!F8=0,\"\",'Prezenční listina'!H8)","v":""}]
[{"$f":"IF(C74=\"\",\"\",A73+1)","v":""},{"$f":"IF('Prezenční listina'!F23=0,\"\",'Prezenční listina'!F23)","v":""},{"$f":"IF('Prezenční listina'!F23=0,\"\",'Prezenční listina'!B23)","v":""},{"$f":"IF('Prezenční listina'!F23=0,\"\",'Prezenční listina'!C23)","v":""},{"$f":"IF('Prezenční listina'!F23=0,\"\",'Prezenční listina'!D23)","v":""},{"$f":"IF('Prezenční listina'!F23=0,\"\",'Prezenční listina'!E23)","v":""},{"$f":"IF('Prezenční listina'!F23=0,\"\",'Prezenční listina'!H23)","v":""}]
["",{"$f":"IF('Prezenční listina'!F29=0,\"\",'Prezenční listina'!F29)","v":""},{"$f":"IF('Prezenční listina'!F29=0,\"\",'Prezenční listina'!B29)","v":""},{"$f":"IF('Prezenční listina'!F29=0,\"\",'Prezenční listina'!C29)","v":""},{"$f":"IF('Prezenční listina'!F29=0,\"\",'Prezenční listina'!D29)","v":""},{"$f":"IF('Prezenční listina'!F29=0,\"\",'Prezenční listina'!E29)","v":""},{"$f":"IF('Prezenční listina'!F29=0,\"\",'Prezenční listina'!H29)","v":""}]
["",{"$f":"IF('Prezenční listina'!F30=0,\"\",'Prezenční listina'!F30)","v":""},{"$f":"IF('Prezenční listina'!F30=0,\"\",'Prezenční listina'!B30)","v":""},{"$f":"IF('Prezenční listina'!F30=0,\"\",'Prezenční listina'!C30)","v":""},{"$f":"IF('Prezenční listina'!F30=0,\"\",'Prezenční listina'!D30)","v":""},{"$f":"IF('Prezenční listina'!F30=0,\"\",'Prezenční listina'!E30)","v":""},{"$f":"IF('Prezenční listina'!F30=0,\"\",'Prezenční listina'!H30)","v":""}]
["",{"$f":"IF('Prezenční listina'!F75=0,\"\",'Prezenční listina'!F75)","v":""},{"$f":"IF('Prezenční listina'!F75=0,\"\",'Prezenční listina'!B75)","v":""},{"$f":"IF('Prezenční listina'!F75=0,\"\",'Prezenční listina'!C75)","v":""},{"$f":"IF('Prezenční listina'!F75=0,\"\",'Prezenční listina'!D75)","v":""},{"$f":"IF('Prezenční listina'!F75=0,\"\",'Prezenční listina'!E75)","v":""},{"$f":"IF('Prezenční listina'!F75=0,\"\",'Prezenční listina'!H75)","v":""}]
["",{"$f":"IF('Prezenční listina'!F76=0,\"\",'Prezenční listina'!F76)","v":""},{"$f":"IF('Prezenční listina'!F76=0,\"\",'Prezenční listina'!B76)","v":""},{"$f":"IF('Prezenční listina'!F76=0,\"\",'Prezenční listina'!C76)","v":""},{"$f":"IF('Prezenční listina'!F76=0,\"\",'Prezenční listina'!D76)","v":""},{"$f":"IF('Prezenční listina'!F76=0,\"\",'Prezenční listina'!E76)","v":""},{"$f":"IF('Prezenční listina'!F76=0,\"\",'Prezenční listina'!H76)","v":""}]
["",{"$f":"IF('Prezenční listina'!F77=0,\"\",'Prezenční listina'!F77)","v":""},{"$f":"IF('Prezenční listina'!F77=0,\"\",'Prezenční listina'!B77)","v":""},{"$f":"IF('Prezenční listina'!F77=0,\"\",'Prezenční listina'!C77)","v":""},{"$f":"IF('Prezenční listina'!F77=0,\"\",'Prezenční listina'!D77)","v":""},{"$f":"IF('Prezenční listina'!F77=0,\"\",'Prezenční listina'!E77)","v":""},{"$f":"IF('Prezenční listina'!F77=0,\"\",'Prezenční listina'!H77)","v":""}]
["",{"$f":"IF('Prezenční listina'!F78=0,\"\",'Prezenční listina'!F78)","v":""},{"$f":"IF('Prezenční listina'!F78=0,\"\",'Prezenční listina'!B78)","v":""},{"$f":"IF('Prezenční listina'!F78=0,\"\",'Prezenční listina'!C78)","v":""},{"$f":"IF('Prezenční listina'!F78=0,\"\",'Prezenční listina'!D78)","v":""},{"$f":"IF('Prezenční listina'!F78=0,\"\",'Prezenční listina'!E78)","v":""},{"$f":"IF('Prezenční listina'!F78=0,\"\",'Prezenční listina'!H78)","v":""}]
["",{"$f":"IF('Prezenční listina'!F79=0,\"\",'Prezenční listina'!F79)","v":""},{"$f":"IF('Prezenční listina'!F79=0,\"\",'Prezenční listina'!B79)","v":""},{"$f":"IF('Prezenční listina'!F79=0,\"\",'Prezenční listina'!C79)","v":""},{"$f":"IF('Prezenční listina'!F79=0,\"\",'Prezenční listina'!D79)","v":""},{"$f":"IF('Prezenční listina'!F79=0,\"\",'Prezenční listina'!E79)","v":""},{"$f":"IF('Prezenční listina'!F79=0,\"\",'Prezenční listina'!H79)","v":""}]
["",{"$f":"IF('Prezenční listina'!F80=0,\"\",'Prezenční listina'!F80)","v":""},{"$f":"IF('Prezenční listina'!F80=0,\"\",'Prezenční listina'!B80)","v":""},{"$f":"IF('Prezenční listina'!F80=0,\"\",'Prezenční listina'!C80)","v":""},{"$f":"IF('Prezenční listina'!F80=0,\"\",'Prezenční listina'!D80)","v":""},{"$f":"IF('Prezenční listina'!F80=0,\"\",'Prezenční listina'!E80)","v":""},{"$f":"IF('Prezenční listina'!F80=0,\"\",'Prezenční listina'!H80)","v":""}]
["",{"$f":"IF('Prezenční listina'!F81=0,\"\",'Prezenční listina'!F81)","v":""},{"$f":"IF('Prezenční listina'!F81=0,\"\",'Prezenční listina'!B81)","v":""},{"$f":"IF('Prezenční listina'!F81=0,\"\",'Prezenční listina'!C81)","v":""},{"$f":"IF('Prezenční listina'!F81=0,\"\",'Prezenční listina'!D81)","v":""},{"$f":"IF('Prezenční listina'!F81=0,\"\",'Prezenční listina'!E81)","v":""},{"$f":"IF('Prezenční listina'!F81=0,\"\",'Prezenční listina'!H81)","v":""}]
["",{"$f":"IF('Prezenční listina'!F82=0,\"\",'Prezenční listina'!F82)","v":""},{"$f":"IF('Prezenční listina'!F82=0,\"\",'Prezenční listina'!B82)","v":""},{"$f":"IF('Prezenční listina'!F82=0,\"\",'Prezenční listina'!C82)","v":""},{"$f":"IF('Prezenční listina'!F82=0,\"\",'Prezenční listina'!D82)","v":""},{"$f":"IF('Prezenční listina'!F82=0,\"\",'Prezenční listina'!E82)","v":""},{"$f":"IF('Prezenční listina'!F82=0,\"\",'Prezenční listina'!H82)","v":""}]
["",{"$f":"IF('Prezenční listina'!F83=0,\"\",'Prezenční listina'!F83)","v":""},{"$f":"IF('Prezenční listina'!F83=0,\"\",'Prezenční listina'!B83)","v":""},{"$f":"IF('Prezenční listina'!F83=0,\"\",'Prezenční listina'!C83)","v":""},{"$f":"IF('Prezenční listina'!F83=0,\"\",'Prezenční listina'!D83)","v":""},{"$f":"IF('Prezenční listina'!F83=0,\"\",'Prezenční listina'!E83)","v":""},{"$f":"IF('Prezenční listina'!F83=0,\"\",'Prezenční listina'!H83)","v":""}]
["",{"$f":"IF('Prezenční listina'!F84=0,\"\",'Prezenční listina'!F84)","v":""},{"$f":"IF('Prezenční listina'!F84=0,\"\",'Prezenční listina'!B84)","v":""},{"$f":"IF('Prezenční listina'!F84=0,\"\",'Prezenční listina'!C84)","v":""},{"$f":"IF('Prezenční listina'!F84=0,\"\",'Prezenční listina'!D84)","v":""},{"$f":"IF('Prezenční listina'!F84=0,\"\",'Prezenční listina'!E84)","v":""},{"$f":"IF('Prezenční listina'!F84=0,\"\",'Prezenční listina'!H84)","v":""}]
["",{"$f":"IF('Prezenční listina'!F85=0,\"\",'Prezenční listina'!F85)","v":""},{"$f":"IF('Prezenční listina'!F85=0,\"\",'Prezenční listina'!B85)","v":""},{"$f":"IF('Prezenční listina'!F85=0,\"\",'Prezenční listina'!C85)","v":""},{"$f":"IF('Prezenční listina'!F85=0,\"\",'Prezenční listina'!D85)","v":""},{"$f":"IF('Prezenční listina'!F85=0,\"\",'Prezenční listina'!E85)","v":""},{"$f":"IF('Prezenční listina'!F85=0,\"\",'Prezenční listina'!H85)","v":""}]
["",{"$f":"IF('Prezenční listina'!F86=0,\"\",'Prezenční listina'!F86)","v":""},{"$f":"IF('Prezenční listina'!F86=0,\"\",'Prezenční listina'!B86)","v":""},{"$f":"IF('Prezenční listina'!F86=0,\"\",'Prezenční listina'!C86)","v":""},{"$f":"IF('Prezenční listina'!F86=0,\"\",'Prezenční listina'!D86)","v":""},{"$f":"IF('Prezenční listina'!F86=0,\"\",'Prezenční listina'!E86)","v":""},{"$f":"IF('Prezenční listina'!F86=0,\"\",'Prezenční listina'!H86)","v":""}]
["",{"$f":"IF('Prezenční listina'!F87=0,\"\",'Prezenční listina'!F87)","v":""},{"$f":"IF('Prezenční listina'!F87=0,\"\",'Prezenční listina'!B87)","v":""},{"$f":"IF('Prezenční listina'!F87=0,\"\",'Prezenční listina'!C87)","v":""},{"$f":"IF('Prezenční listina'!F87=0,\"\",'Prezenční listina'!D87)","v":""},{"$f":"IF('Prezenční listina'!F87=0,\"\",'Prezenční listina'!E87)","v":""},{"$f":"IF('Prezenční listina'!F87=0,\"\",'Prezenční listina'!H87)","v":""}]
["",{"$f":"IF('Prezenční listina'!F88=0,\"\",'Prezenční listina'!F88)","v":""},{"$f":"IF('Prezenční listina'!F88=0,\"\",'Prezenční listina'!B88)","v":""},{"$f":"IF('Prezenční listina'!F88=0,\"\",'Prezenční listina'!C88)","v":""},{"$f":"IF('Prezenční listina'!F88=0,\"\",'Prezenční listina'!D88)","v":""},{"$f":"IF('Prezenční listina'!F88=0,\"\",'Prezenční listina'!E88)","v":""},{"$f":"IF('Prezenční listina'!F88=0,\"\",'Prezenční listina'!H88)","v":""}]
[{"$f":"IF(C91=\"\",\"\",A90+1)","v":""},{"$f":"IF('Prezenční listina'!F89=0,\"\",'Prezenční listina'!F89)","v":""},{"$f":"IF('Prezenční listina'!F89=0,\"\",'Prezenční listina'!B89)","v":""},{"$f":"IF('Prezenční listina'!F89=0,\"\",'Prezenční listina'!C89)","v":""},{"$f":"IF('Prezenční listina'!F89=0,\"\",'Prezenční listina'!D89)","v":""},{"$f":"IF('Prezenční listina'!F89=0,\"\",'Prezenční listina'!E89)","v":""},{"$f":"IF('Prezenční listina'!F89=0,\"\",'Prezenční listina'!H89)","v":""}]
["",{"$f":"IF('Prezenční listina'!F90=0,\"\",'Prezenční listina'!F90)","v":""},{"$f":"IF('Prezenční listina'!F90=0,\"\",'Prezenční listina'!B90)","v":""},{"$f":"IF('Prezenční listina'!F90=0,\"\",'Prezenční listina'!C90)","v":""},{"$f":"IF('Prezenční listina'!F90=0,\"\",'Prezenční listina'!D90)","v":""},{"$f":"IF('Prezenční listina'!F90=0,\"\",'Prezenční listina'!E90)","v":""},{"$f":"IF('Prezenční listina'!F90=0,\"\",'Prezenční listina'!H90)","v":""}]
["",{"$f":"IF('Prezenční listina'!F91=0,\"\",'Prezenční listina'!F91)","v":""},{"$f":"IF('Prezenční listina'!F91=0,\"\",'Prezenční listina'!B91)","v":""},{"$f":"IF('Prezenční listina'!F91=0,\"\",'Prezenční listina'!C91)","v":""},{"$f":"IF('Prezenční listina'!F91=0,\"\",'Prezenční listina'!D91)","v":""},{"$f":"IF('Prezenční listina'!F91=0,\"\",'Prezenční listina'!E91)","v":""},{"$f":"IF('Prezenční listina'!F91=0,\"\",'Prezenční listina'!H91)","v":""}]
["",{"$f":"IF('Prezenční listina'!F92=0,\"\",'Prezenční listina'!F92)","v":""},{"$f":"IF('Prezenční listina'!F92=0,\"\",'Prezenční listina'!B92)","v":""},{"$f":"IF('Prezenční listina'!F92=0,\"\",'Prezenční listina'!C92)","v":""},{"$f":"IF('Prezenční listina'!F92=0,\"\",'Prezenční listina'!D92)","v":""},{"$f":"IF('Prezenční listina'!F92=0,\"\",'Prezenční listina'!E92)","v":""},{"$f":"IF('Prezenční listina'!F92=0,\"\",'Prezenční listina'!H92)","v":""}]
["",{"$f":"IF('Prezenční listina'!F93=0,\"\",'Prezenční listina'!F93)","v":""},{"$f":"IF('Prezenční listina'!F93=0,\"\",'Prezenční listina'!B93)","v":""},{"$f":"IF('Prezenční listina'!F93=0,\"\",'Prezenční listina'!C93)","v":""},{"$f":"IF('Prezenční listina'!F93=0,\"\",'Prezenční listina'!D93)","v":""},{"$f":"IF('Prezenční listina'!F93=0,\"\",'Prezenční listina'!E93)","v":""},{"$f":"IF('Prezenční listina'!F93=0,\"\",'Prezenční listina'!H93)","v":""}]
["",{"$f":"IF('Prezenční listina'!F94=0,\"\",'Prezenční listina'!F94)","v":""},{"$f":"IF('Prezenční listina'!F94=0,\"\",'Prezenční listina'!B94)","v":""},{"$f":"IF('Prezenční listina'!F94=0,\"\",'Prezenční listina'!C94)","v":""},{"$f":"IF('Prezenční listina'!F94=0,\"\",'Prezenční listina'!D94)","v":""},{"$f":"IF('Prezenční listina'!F94=0,\"\",'Prezenční listina'!E94)","v":""},{"$f":"IF('Prezenční listina'!F94=0,\"\",'Prezenční listina'!H94)","v":""}]
["",{"$f":"IF('Prezenční listina'!F95=0,\"\",'Prezenční listina'!F95)","v":""},{"$f":"IF('Prezenční listina'!F95=0,\"\",'Prezenční listina'!B95)","v":""},{"$f":"IF('Prezenční listina'!F95=0,\"\",'Prezenční listina'!C95)","v":""},{"$f":"IF('Prezenční listina'!F95=0,\"\",'Prezenční listina'!D95)","v":""},{"$f":"IF('Prezenční listina'!F95=0,\"\",'Prezenční listina'!E95)","v":""},{"$f":"IF('Prezenční listina'!F95=0,\"\",'Prezenční listina'!H95)","v":""}]
["",{"$f":"IF('Prezenční listina'!F96=0,\"\",'Prezenční listina'!F96)","v":""},{"$f":"IF('Prezenční listina'!F96=0,\"\",'Prezenční listina'!B96)","v":""},{"$f":"IF('Prezenční listina'!F96=0,\"\",'Prezenční listina'!C96)","v":""},{"$f":"IF('Prezenční listina'!F96=0,\"\",'Prezenční listina'!D96)","v":""},{"$f":"IF('Prezenční listina'!F96=0,\"\",'Prezenční listina'!E96)","v":""},{"$f":"IF('Prezenční listina'!F96=0,\"\",'Prezenční listina'!H96)","v":""}]
["",{"$f":"IF('Prezenční listina'!F97=0,\"\",'Prezenční listina'!F97)","v":""},{"$f":"IF('Prezenční listina'!F97=0,\"\",'Prezenční listina'!B97)","v":""},{"$f":"IF('Prezenční listina'!F97=0,\"\",'Prezenční listina'!C97)","v":""},{"$f":"IF('Prezenční listina'!F97=0,\"\",'Prezenční listina'!D97)","v":""},{"$f":"IF('Prezenční listina'!F97=0,\"\",'Prezenční listina'!E97)","v":""},{"$f":"IF('Prezenční listina'!F97=0,\"\",'Prezenční listina'!H97)","v":""}]
["",{"$f":"IF('Prezenční listina'!F98=0,\"\",'Prezenční listina'!F98)","v":""},{"$f":"IF('Prezenční listina'!F98=0,\"\",'Prezenční listina'!B98)","v":""},{"$f":"IF('Prezenční listina'!F98=0,\"\",'Prezenční listina'!C98)","v":""},{"$f":"IF('Prezenční listina'!F98=0,\"\",'Prezenční listina'!D98)","v":""},{"$f":"IF('Prezenční listina'!F98=0,\"\",'Prezenční listina'!E98)","v":""},{"$f":"IF('Prezenční listina'!F98=0,\"\",'Prezenční listina'!H98)","v":""}]
["",{"$f":"IF('Prezenční listina'!F99=0,\"\",'Prezenční listina'!F99)","v":""},{"$f":"IF('Prezenční listina'!F99=0,\"\",'Prezenční listina'!B99)","v":""},{"$f":"IF('Prezenční listina'!F99=0,\"\",'Prezenční listina'!C99)","v":""},{"$f":"IF('Prezenční listina'!F99=0,\"\",'Prezenční listina'!D99)","v":""},{"$f":"IF('Prezenční listina'!F99=0,\"\",'Prezenční listina'!E99)","v":""},{"$f":"IF('Prezenční listina'!F99=0,\"\",'Prezenční listina'!H99)","v":""}]
["",{"$f":"IF('Prezenční listina'!F100=0,\"\",'Prezenční listina'!F100)","v":""},{"$f":"IF('Prezenční listina'!F100=0,\"\",'Prezenční listina'!B100)","v":""},{"$f":"IF('Prezenční listina'!F100=0,\"\",'Prezenční listina'!C100)","v":""},{"$f":"IF('Prezenční listina'!F100=0,\"\",'Prezenční listina'!D100)","v":""},{"$f":"IF('Prezenční listina'!F100=0,\"\",'Prezenční listina'!E100)","v":""},{"$f":"IF('Prezenční listina'!F100=0,\"\",'Prezenční listina'!H100)","v":""}]
["",{"$f":"IF('Prezenční listina'!F101=0,\"\",'Prezenční listina'!F101)","v":""},{"$f":"IF('Prezenční listina'!F101=0,\"\",'Prezenční listina'!B101)","v":""},{"$f":"IF('Prezenční listina'!F101=0,\"\",'Prezenční listina'!C101)","v":""},{"$f":"IF('Prezenční listina'!F101=0,\"\",'Prezenční listina'!D101)","v":""},{"$f":"IF('Prezenční listina'!F101=0,\"\",'Prezenční listina'!E101)","v":""},{"$f":"IF('Prezenční listina'!F101=0,\"\",'Prezenční listina'!H101)","v":""}]
["",{"$f":"IF('Prezenční listina'!F102=0,\"\",'Prezenční listina'!F102)","v":""},{"$f":"IF('Prezenční listina'!F102=0,\"\",'Prezenční listina'!B102)","v":""},{"$f":"IF('Prezenční listina'!F102=0,\"\",'Prezenční listina'!C102)","v":""},{"$f":"IF('Prezenční listina'!F102=0,\"\",'Prezenční listina'!D102)","v":""},{"$f":"IF('Prezenční listina'!F102=0,\"\",'Prezenční listina'!E102)","v":""},{"$f":"IF('Prezenční listina'!F102=0,\"\",'Prezenční listina'!H102)","v":""}]
["",{"$f":"IF('Prezenční listina'!F103=0,\"\",'Prezenční listina'!F103)","v":""},{"$f":"IF('Prezenční listina'!F103=0,\"\",'Prezenční listina'!B103)","v":""},{"$f":"IF('Prezenční listina'!F103=0,\"\",'Prezenční listina'!C103)","v":""},{"$f":"IF('Prezenční listina'!F103=0,\"\",'Prezenční listina'!D103)","v":""},{"$f":"IF('Prezenční listina'!F103=0,\"\",'Prezenční listina'!E103)","v":""},{"$f":"IF('Prezenční listina'!F103=0,\"\",'Prezenční listina'!H103)","v":""}]
["",{"$f":"IF('Prezenční listina'!F104=0,\"\",'Prezenční listina'!F104)","v":""},{"$f":"IF('Prezenční listina'!F104=0,\"\",'Prezenční listina'!B104)","v":""},{"$f":"IF('Prezenční listina'!F104=0,\"\",'Prezenční listina'!C104)","v":""},{"$f":"IF('Prezenční listina'!F104=0,\"\",'Prezenční listina'!D104)","v":""},{"$f":"IF('Prezenční listina'!F104=0,\"\",'Prezenční listina'!E104)","v":""},{"$f":"IF('Prezenční listina'!F104=0,\"\",'Prezenční listina'!H104)","v":""}]
["",{"$f":"IF('Prezenční listina'!F105=0,\"\",'Prezenční listina'!F105)","v":""},{"$f":"IF('Prezenční listina'!F105=0,\"\",'Prezenční listina'!B105)","v":""},{"$f":"IF('Prezenční listina'!F105=0,\"\",'Prezenční listina'!C105)","v":""},{"$f":"IF('Prezenční listina'!F105=0,\"\",'Prezenční listina'!D105)","v":""},{"$f":"IF('Prezenční listina'!F105=0,\"\",'Prezenční listina'!E105)","v":""},{"$f":"IF('Prezenční listina'!F105=0,\"\",'Prezenční listina'!H105)","v":""}]
["",{"$f":"IF('Prezenční listina'!F106=0,\"\",'Prezenční listina'!F106)","v":""},{"$f":"IF('Prezenční listina'!F106=0,\"\",'Prezenční listina'!B106)","v":""},{"$f":"IF('Prezenční listina'!F106=0,\"\",'Prezenční listina'!C106)","v":""},{"$f":"IF('Prezenční listina'!F106=0,\"\",'Prezenční listina'!D106)","v":""},{"$f":"IF('Prezenční listina'!F106=0,\"\",'Prezenční listina'!E106)","v":""},{"$f":"IF('Prezenční listina'!F106=0,\"\",'Prezenční listina'!H106)","v":""}]
["",{"$f":"IF('Prezenční listina'!F107=0,\"\",'Prezenční listina'!F107)","v":""},{"$f":"IF('Prezenční listina'!F107=0,\"\",'Prezenční listina'!B107)","v":""},{"$f":"IF('Prezenční listina'!F107=0,\"\",'Prezenční listina'!C107)","v":""},{"$f":"IF('Prezenční listina'!F107=0,\"\",'Prezenční listina'!D107)","v":""},{"$f":"IF('Prezenční listina'!F107=0,\"\",'Prezenční listina'!E107)","v":""},{"$f":"IF('Prezenční listina'!F107=0,\"\",'Prezenční listina'!H107)","v":""}]
["",{"$f":"IF('Prezenční listina'!F108=0,\"\",'Prezenční listina'!F108)","v":""},{"$f":"IF('Prezenční listina'!F108=0,\"\",'Prezenční listina'!B108)","v":""},{"$f":"IF('Prezenční listina'!F108=0,\"\",'Prezenční listina'!C108)","v":""},{"$f":"IF('Prezenční listina'!F108=0,\"\",'Prezenční listina'!D108)","v":""},{"$f":"IF('Prezenční listina'!F108=0,\"\",'Prezenční listina'!E108)","v":""},{"$f":"IF('Prezenční listina'!F108=0,\"\",'Prezenční listina'!H108)","v":""}]
["",{"$f":"IF('Prezenční listina'!F109=0,\"\",'Prezenční listina'!F109)","v":""},{"$f":"IF('Prezenční listina'!F109=0,\"\",'Prezenční listina'!B109)","v":""},{"$f":"IF('Prezenční listina'!F109=0,\"\",'Prezenční listina'!C109)","v":""},{"$f":"IF('Prezenční listina'!F109=0,\"\",'Prezenční listina'!D109)","v":""},{"$f":"IF('Prezenční listina'!F109=0,\"\",'Prezenční listina'!E109)","v":""},{"$f":"IF('Prezenční listina'!F109=0,\"\",'Prezenční listina'!H109)","v":""}]
["",{"$f":"IF('Prezenční listina'!F110=0,\"\",'Prezenční listina'!F110)","v":""},{"$f":"IF('Prezenční listina'!F110=0,\"\",'Prezenční listina'!B110)","v":""},{"$f":"IF('Prezenční listina'!F110=0,\"\",'Prezenční listina'!C110)","v":""},{"$f":"IF('Prezenční listina'!F110=0,\"\",'Prezenční listina'!D110)","v":""},{"$f":"IF('Prezenční listina'!F110=0,\"\",'Prezenční listina'!E110)","v":""},{"$f":"IF('Prezenční listina'!F110=0,\"\",'Prezenční listina'!H110)","v":""}]
["",{"$f":"IF('Prezenční listina'!F111=0,\"\",'Prezenční listina'!F111)","v":""},{"$f":"IF('Prezenční listina'!F111=0,\"\",'Prezenční listina'!B111)","v":""},{"$f":"IF('Prezenční listina'!F111=0,\"\",'Prezenční listina'!C111)","v":""},{"$f":"IF('Prezenční listina'!F111=0,\"\",'Prezenční listina'!D111)","v":""},{"$f":"IF('Prezenční listina'!F111=0,\"\",'Prezenční listina'!E111)","v":""},{"$f":"IF('Prezenční listina'!F111=0,\"\",'Prezenční listina'!H111)","v":""}]
["",{"$f":"IF('Prezenční listina'!F112=0,\"\",'Prezenční listina'!F112)","v":""},{"$f":"IF('Prezenční listina'!F112=0,\"\",'Prezenční listina'!B112)","v":""},{"$f":"IF('Prezenční listina'!F112=0,\"\",'Prezenční listina'!C112)","v":""},{"$f":"IF('Prezenční listina'!F112=0,\"\",'Prezenční listina'!D112)","v":""},{"$f":"IF('Prezenční listina'!F112=0,\"\",'Prezenční listina'!E112)","v":""},{"$f":"IF('Prezenční listina'!F112=0,\"\",'Prezenční listina'!H112)","v":""}]
["",{"$f":"IF('Prezenční listina'!F113=0,\"\",'Prezenční listina'!F113)","v":""},{"$f":"IF('Prezenční listina'!F113=0,\"\",'Prezenční listina'!B113)","v":""},{"$f":"IF('Prezenční listina'!F113=0,\"\",'Prezenční listina'!C113)","v":""},{"$f":"IF('Prezenční listina'!F113=0,\"\",'Prezenční listina'!D113)","v":""},{"$f":"IF('Prezenční listina'!F113=0,\"\",'Prezenční listina'!E113)","v":""},{"$f":"IF('Prezenční listina'!F113=0,\"\",'Prezenční listina'!H113)","v":""}]
["",{"$f":"IF('Prezenční listina'!F114=0,\"\",'Prezenční listina'!F114)","v":""},{"$f":"IF('Prezenční listina'!F114=0,\"\",'Prezenční listina'!B114)","v":""},{"$f":"IF('Prezenční listina'!F114=0,\"\",'Prezenční listina'!C114)","v":""},{"$f":"IF('Prezenční listina'!F114=0,\"\",'Prezenční listina'!D114)","v":""},{"$f":"IF('Prezenční listina'!F114=0,\"\",'Prezenční listina'!E114)","v":""},{"$f":"IF('Prezenční listina'!F114=0,\"\",'Prezenční listina'!H114)","v":""}]
["",{"$f":"IF('Prezenční listina'!F115=0,\"\",'Prezenční listina'!F115)","v":""},{"$f":"IF('Prezenční listina'!F115=0,\"\",'Prezenční listina'!B115)","v":""},{"$f":"IF('Prezenční listina'!F115=0,\"\",'Prezenční listina'!C115)","v":""},{"$f":"IF('Prezenční listina'!F115=0,\"\",'Prezenční listina'!D115)","v":""},{"$f":"IF('Prezenční listina'!F115=0,\"\",'Prezenční listina'!E115)","v":""},{"$f":"IF('Prezenční listina'!F115=0,\"\",'Prezenční listina'!H115)","v":""}]
["",{"$f":"IF('Prezenční listina'!F116=0,\"\",'Prezenční listina'!F116)","v":""},{"$f":"IF('Prezenční listina'!F116=0,\"\",'Prezenční listina'!B116)","v":""},{"$f":"IF('Prezenční listina'!F116=0,\"\",'Prezenční listina'!C116)","v":""},{"$f":"IF('Prezenční listina'!F116=0,\"\",'Prezenční listina'!D116)","v":""},{"$f":"IF('Prezenční listina'!F116=0,\"\",'Prezenční listina'!E116)","v":""},{"$f":"IF('Prezenční listina'!F116=0,\"\",'Prezenční listina'!H116)","v":""}]
["",{"$f":"IF('Prezenční listina'!F117=0,\"\",'Prezenční listina'!F117)","v":""},{"$f":"IF('Prezenční listina'!F117=0,\"\",'Prezenční listina'!B117)","v":""},{"$f":"IF('Prezenční listina'!F117=0,\"\",'Prezenční listina'!C117)","v":""},{"$f":"IF('Prezenční listina'!F117=0,\"\",'Prezenční listina'!D117)","v":""},{"$f":"IF('Prezenční listina'!F117=0,\"\",'Prezenční listina'!E117)","v":""},{"$f":"IF('Prezenční listina'!F117=0,\"\",'Prezenční listina'!H117)","v":""}]
["",{"$f":"IF('Prezenční listina'!F118=0,\"\",'Prezenční listina'!F118)","v":""},{"$f":"IF('Prezenční listina'!F118=0,\"\",'Prezenční listina'!B118)","v":""},{"$f":"IF('Prezenční listina'!F118=0,\"\",'Prezenční listina'!C118)","v":""},{"$f":"IF('Prezenční listina'!F118=0,\"\",'Prezenční listina'!D118)","v":""},{"$f":"IF('Prezenční listina'!F118=0,\"\",'Prezenční listina'!E118)","v":""},{"$f":"IF('Prezenční listina'!F118=0,\"\",'Prezenční listina'!H118)","v":""}]
["",{"$f":"IF('Prezenční listina'!F119=0,\"\",'Prezenční listina'!F119)","v":""},{"$f":"IF('Prezenční listina'!F119=0,\"\",'Prezenční listina'!B119)","v":""},{"$f":"IF('Prezenční listina'!F119=0,\"\",'Prezenční listina'!C119)","v":""},{"$f":"IF('Prezenční listina'!F119=0,\"\",'Prezenční listina'!D119)","v":""},{"$f":"IF('Prezenční listina'!F119=0,\"\",'Prezenční listina'!E119)","v":""},{"$f":"IF('Prezenční listina'!F119=0,\"\",'Prezenční listina'!H119)","v":""}]
["",{"$f":"IF('Prezenční listina'!F120=0,\"\",'Prezenční listina'!F120)","v":""},{"$f":"IF('Prezenční listina'!F120=0,\"\",'Prezenční listina'!B120)","v":""},{"$f":"IF('Prezenční listina'!F120=0,\"\",'Prezenční listina'!C120)","v":""},{"$f":"IF('Prezenční listina'!F120=0,\"\",'Prezenční listina'!D120)","v":""},{"$f":"IF('Prezenční listina'!F120=0,\"\",'Prezenční listina'!E120)","v":""},{"$f":"IF('Prezenční listina'!F120=0,\"\",'Prezenční listina'!H120)","v":""}]
["",{"$f":"IF('Prezenční listina'!F121=0,\"\",'Prezenční listina'!F121)","v":""},{"$f":"IF('Prezenční listina'!F121=0,\"\",'Prezenční listina'!B121)","v":""},{"$f":"IF('Prezenční listina'!F121=0,\"\",'Prezenční listina'!C121)","v":""},{"$f":"IF('Prezenční listina'!F121=0,\"\",'Prezenční listina'!D121)","v":""},{"$f":"IF('Prezenční listina'!F121=0,\"\",'Prezenční listina'!E121)","v":""},{"$f":"IF('Prezenční listina'!F121=0,\"\",'Prezenční listina'!H121)","v":""}]
["",{"$f":"IF('Prezenční listina'!F122=0,\"\",'Prezenční listina'!F122)","v":""},{"$f":"IF('Prezenční listina'!F122=0,\"\",'Prezenční listina'!B122)","v":""},{"$f":"IF('Prezenční listina'!F122=0,\"\",'Prezenční listina'!C122)","v":""},{"$f":"IF('Prezenční listina'!F122=0,\"\",'Prezenční listina'!D122)","v":""},{"$f":"IF('Prezenční listina'!F122=0,\"\",'Prezenční listina'!E122)","v":""},{"$f":"IF('Prezenční listina'!F122=0,\"\",'Prezenční listina'!H122)","v":""}]
["",{"$f":"IF('Prezenční listina'!F123=0,\"\",'Prezenční listina'!F123)","v":""},{"$f":"IF('Prezenční listina'!F123=0,\"\",'Prezenční listina'!B123)","v":""},{"$f":"IF('Prezenční listina'!F123=0,\"\",'Prezenční listina'!C123)","v":""},{"$f":"IF('Prezenční listina'!F123=0,\"\",'Prezenční listina'!D123)","v":""},{"$f":"IF('Prezenční listina'!F123=0,\"\",'Prezenční listina'!E123)","v":""},{"$f":"IF('Prezenční listina'!F123=0,\"\",'Prezenční listina'!H123)","v":""}]
["",{"$f":"IF('Prezenční listina'!F124=0,\"\",'Prezenční listina'!F124)","v":""},{"$f":"IF('Prezenční listina'!F124=0,\"\",'Prezenční listina'!B124)","v":""},{"$f":"IF('Prezenční listina'!F124=0,\"\",'Prezenční listina'!C124)","v":""},{"$f":"IF('Prezenční listina'!F124=0,\"\",'Prezenční listina'!D124)","v":""},{"$f":"IF('Prezenční listina'!F124=0,\"\",'Prezenční listina'!E124)","v":""},{"$f":"IF('Prezenční listina'!F124=0,\"\",'Prezenční listina'!H124)","v":""}]
["",{"$f":"IF('Prezenční listina'!F125=0,\"\",'Prezenční listina'!F125)","v":""},{"$f":"IF('Prezenční listina'!F125=0,\"\",'Prezenční listina'!B125)","v":""},{"$f":"IF('Prezenční listina'!F125=0,\"\",'Prezenční listina'!C125)","v":""},{"$f":"IF('Prezenční listina'!F125=0,\"\",'Prezenční listina'!D125)","v":""},{"$f":"IF('Prezenční listina'!F125=0,\"\",'Prezenční listina'!E125)","v":""},{"$f":"IF('Prezenční listina'!F125=0,\"\",'Prezenční listina'!H125)","v":""}]
["",{"$f":"IF('Prezenční listina'!F126=0,\"\",'Prezenční listina'!F126)","v":""},{"$f":"IF('Prezenční listina'!F126=0,\"\",'Prezenční listina'!B126)","v":""},{"$f":"IF('Prezenční listina'!F126=0,\"\",'Prezenční listina'!C126)","v":""},{"$f":"IF('Prezenční listina'!F126=0,\"\",'Prezenční listina'!D126)","v":""},{"$f":"IF('Prezenční listina'!F126=0,\"\",'Prezenční listina'!E126)","v":""},{"$f":"IF('Prezenční listina'!F126=0,\"\",'Prezenční listina'!H126)","v":""}]
["",{"$f":"IF('Prezenční listina'!F127=0,\"\",'Prezenční listina'!F127)","v":""},{"$f":"IF('Prezenční listina'!F127=0,\"\",'Prezenční listina'!B127)","v":""},{"$f":"IF('Prezenční listina'!F127=0,\"\",'Prezenční listina'!C127)","v":""},{"$f":"IF('Prezenční listina'!F127=0,\"\",'Prezenční listina'!D127)","v":""},{"$f":"IF('Prezenční listina'!F127=0,\"\",'Prezenční listina'!E127)","v":""},{"$f":"IF('Prezenční listina'!F127=0,\"\",'Prezenční listina'!H127)","v":""}]
["",{"$f":"IF('Prezenční listina'!F128=0,\"\",'Prezenční listina'!F128)","v":""},{"$f":"IF('Prezenční listina'!F128=0,\"\",'Prezenční listina'!B128)","v":""},{"$f":"IF('Prezenční listina'!F128=0,\"\",'Prezenční listina'!C128)","v":""},{"$f":"IF('Prezenční listina'!F128=0,\"\",'Prezenční listina'!D128)","v":""},{"$f":"IF('Prezenční listina'!F128=0,\"\",'Prezenční listina'!E128)","v":""},{"$f":"IF('Prezenční listina'!F128=0,\"\",'Prezenční listina'!H128)","v":""}]
["",{"$f":"IF('Prezenční listina'!F129=0,\"\",'Prezenční listina'!F129)","v":""},{"$f":"IF('Prezenční listina'!F129=0,\"\",'Prezenční listina'!B129)","v":""},{"$f":"IF('Prezenční listina'!F129=0,\"\",'Prezenční listina'!C129)","v":""},{"$f":"IF('Prezenční listina'!F129=0,\"\",'Prezenční listina'!D129)","v":""},{"$f":"IF('Prezenční listina'!F129=0,\"\",'Prezenční listina'!E129)","v":""},{"$f":"IF('Prezenční listina'!F129=0,\"\",'Prezenční listina'!H129)","v":""}]
["",{"$f":"IF('Prezenční listina'!F130=0,\"\",'Prezenční listina'!F130)","v":""},{"$f":"IF('Prezenční listina'!F130=0,\"\",'Prezenční listina'!B130)","v":""},{"$f":"IF('Prezenční listina'!F130=0,\"\",'Prezenční listina'!C130)","v":""},{"$f":"IF('Prezenční listina'!F130=0,\"\",'Prezenční listina'!D130)","v":""},{"$f":"IF('Prezenční listina'!F130=0,\"\",'Prezenční listina'!E130)","v":""},{"$f":"IF('Prezenční listina'!F130=0,\"\",'Prezenční listina'!H130)","v":""}]
["",{"$f":"IF('Prezenční listina'!F131=0,\"\",'Prezenční listina'!F131)","v":""},{"$f":"IF('Prezenční listina'!F131=0,\"\",'Prezenční listina'!B131)","v":""},{"$f":"IF('Prezenční listina'!F131=0,\"\",'Prezenční listina'!C131)","v":""},{"$f":"IF('Prezenční listina'!F131=0,\"\",'Prezenční listina'!D131)","v":""},{"$f":"IF('Prezenční listina'!F131=0,\"\",'Prezenční listina'!E131)","v":""},{"$f":"IF('Prezenční listina'!F131=0,\"\",'Prezenční listina'!H131)","v":""}]
["",{"$f":"IF('Prezenční listina'!F132=0,\"\",'Prezenční listina'!F132)","v":""},{"$f":"IF('Prezenční listina'!F132=0,\"\",'Prezenční listina'!B132)","v":""},{"$f":"IF('Prezenční listina'!F132=0,\"\",'Prezenční listina'!C132)","v":""},{"$f":"IF('Prezenční listina'!F132=0,\"\",'Prezenční listina'!D132)","v":""},{"$f":"IF('Prezenční listina'!F132=0,\"\",'Prezenční listina'!E132)","v":""},{"$f":"IF('Prezenční listina'!F132=0,\"\",'Prezenční listina'!H132)","v":""}]
["",{"$f":"IF('Prezenční listina'!F133=0,\"\",'Prezenční listina'!F133)","v":""},{"$f":"IF('Prezenční listina'!F133=0,\"\",'Prezenční listina'!B133)","v":""},{"$f":"IF('Prezenční listina'!F133=0,\"\",'Prezenční listina'!C133)","v":""},{"$f":"IF('Prezenční listina'!F133=0,\"\",'Prezenční listina'!D133)","v":""},{"$f":"IF('Prezenční listina'!F133=0,\"\",'Prezenční listina'!E133)","v":""},{"$f":"IF('Prezenční listina'!F133=0,\"\",'Prezenční listina'!H133)","v":""}]
["",{"$f":"IF('Prezenční listina'!F134=0,\"\",'Prezenční listina'!F134)","v":""},{"$f":"IF('Prezenční listina'!F134=0,\"\",'Prezenční listina'!B134)","v":""},{"$f":"IF('Prezenční listina'!F134=0,\"\",'Prezenční listina'!C134)","v":""},{"$f":"IF('Prezenční listina'!F134=0,\"\",'Prezenční listina'!D134)","v":""},{"$f":"IF('Prezenční listina'!F134=0,\"\",'Prezenční listina'!E134)","v":""},{"$f":"IF('Prezenční listina'!F134=0,\"\",'Prezenční listina'!H134)","v":""}]
["",{"$f":"IF('Prezenční listina'!F135=0,\"\",'Prezenční listina'!F135)","v":""},{"$f":"IF('Prezenční listina'!F135=0,\"\",'Prezenční listina'!B135)","v":""},{"$f":"IF('Prezenční listina'!F135=0,\"\",'Prezenční listina'!C135)","v":""},{"$f":"IF('Prezenční listina'!F135=0,\"\",'Prezenční listina'!D135)","v":""},{"$f":"IF('Prezenční listina'!F135=0,\"\",'Prezenční listina'!E135)","v":""},{"$f":"IF('Prezenční listina'!F135=0,\"\",'Prezenční listina'!H135)","v":""}]
["",{"$f":"IF('Prezenční listina'!F136=0,\"\",'Prezenční listina'!F136)","v":""},{"$f":"IF('Prezenční listina'!F136=0,\"\",'Prezenční listina'!B136)","v":""},{"$f":"IF('Prezenční listina'!F136=0,\"\",'Prezenční listina'!C136)","v":""},{"$f":"IF('Prezenční listina'!F136=0,\"\",'Prezenční listina'!D136)","v":""},{"$f":"IF('Prezenční listina'!F136=0,\"\",'Prezenční listina'!E136)","v":""},{"$f":"IF('Prezenční listina'!F136=0,\"\",'Prezenční listina'!H136)","v":""}]
["",{"$f":"IF('Prezenční listina'!F137=0,\"\",'Prezenční listina'!F137)","v":""},{"$f":"IF('Prezenční listina'!F137=0,\"\",'Prezenční listina'!B137)","v":""},{"$f":"IF('Prezenční listina'!F137=0,\"\",'Prezenční listina'!C137)","v":""},{"$f":"IF('Prezenční listina'!F137=0,\"\",'Prezenční listina'!D137)","v":""},{"$f":"IF('Prezenční listina'!F137=0,\"\",'Prezenční listina'!E137)","v":""},{"$f":"IF('Prezenční listina'!F137=0,\"\",'Prezenční listina'!H137)","v":""}]
["",{"$f":"IF('Prezenční listina'!F138=0,\"\",'Prezenční listina'!F138)","v":""},{"$f":"IF('Prezenční listina'!F138=0,\"\",'Prezenční listina'!B138)","v":""},{"$f":"IF('Prezenční listina'!F138=0,\"\",'Prezenční listina'!C138)","v":""},{"$f":"IF('Prezenční listina'!F138=0,\"\",'Prezenční listina'!D138)","v":""},{"$f":"IF('Prezenční listina'!F138=0,\"\",'Prezenční listina'!E138)","v":""},{"$f":"IF('Prezenční listina'!F138=0,\"\",'Prezenční listina'!H138)","v":""}]
["",{"$f":"IF('Prezenční listina'!F139=0,\"\",'Prezenční listina'!F139)","v":""},{"$f":"IF('Prezenční listina'!F139=0,\"\",'Prezenční listina'!B139)","v":""},{"$f":"IF('Prezenční listina'!F139=0,\"\",'Prezenční listina'!C139)","v":""},{"$f":"IF('Prezenční listina'!F139=0,\"\",'Prezenční listina'!D139)","v":""},{"$f":"IF('Prezenční listina'!F139=0,\"\",'Prezenční listina'!E139)","v":""},{"$f":"IF('Prezenční listina'!F139=0,\"\",'Prezenční listina'!H139)","v":""}]

{"sheet":"Výsledková listina","index":2,"n_rows":104,"n_cols":11,"rows_kept":104,"cut":false,"hidden":false,"merged":[[0,0,0,8],[2,0,2,8],[1,0,1,8],[1,10,12,14]]}
[{"$f":"\"Výsledková listina - Malý svratecký maraton \"&'Prezenční listina'!O2","v":"Výsledková listina - Malý svratecký maraton 2018"}]
["2018-08-25",null,null,null,null,null,null,null,null,null,"\nPoté, co jsou dopsány časy VŠECH běžců, stisknout tlačítko 1.řazení \n\n\nVe sloupci B (Pořadí v kategorii) vytvořit posloupnou číselnou řadu pro každou kategorii a poté stisknout tlačítko 2.řazení\n\n\n                      !!! POZOR!!!\n\n               Použití tlačítek je nevratný krok!"]
[{"$f":"'Prezenční listina'!O2-1953&\". ročník\"","v":"65. ročník"}]
["Celkové pořadí","Pořadí v kategorii","Kategorie","Startovní číslo","Příjmení","Jméno","Narození","Oddíl / Bydliště","Čas"]
[1,1,{"$f":"'Startovní listina'!G49","v":"A"},{"$f":"'Startovní listina'!B49","v":45},{"$f":"'Startovní listina'!C49","v":"Kohut"},{"$f":"'Startovní listina'!D49","v":"Jan"},{"$f":"'Startovní listina'!E49","v":1985},{"$f":"'Startovní listina'!F49","v":"Univerzita Brno"},"02:02:02"]
[{"$f":"IF('Výsledková listina'!D5<>\"\",A5+1,\"\")","v":2},2,{"$f":"'Startovní listina'!G66","v":"A"},{"$f":"'Startovní listina'!B66","v":62},{"$f":"'Startovní listina'!C66","v":"Exner"},{"$f":"'Startovní listina'!D66","v":"Jakub"},{"$f":"'Startovní listina'!E66","v":1983},{"$f":"'Startovní listina'!F66","v":"P-Team"},"02:02:03"]
[{"$f":"IF('Výsledková listina'!D6<>\"\",A6+1,\"\")","v":3},1,{"$f":"'Startovní listina'!G67","v":"B"},{"$f":"'Startovní listina'!B67","v":63},{"$f":"'Startovní listina'!C67","v":"Orálek"},{"$f":"'Startovní listina'!D67","v":"Daniel"},{"$f":"'Startovní listina'!E67","v":1970},{"$f":"'Startovní listina'!F67","v":"behejbrno.com"},"02:04:27"]
[{"$f":"IF('Výsledková listina'!D7<>\"\",A7+1,\"\")","v":4},3,{"$f":"'Startovní listina'!G40","v":"A"},{"$f":"'Startovní listina'!B40","v":36},{"$f":"'Startovní listina'!C40","v":"Nováček"},{"$f":"'Startovní listina'!D40","v":"Tomáš"},{"$f":"'Startovní listina'!E40","v":1983},{"$f":"'Startovní listina'!F40","v":"SDH Kamenná"},"02:06:25"]
[{"$f":"IF('Výsledková listina'!D8<>\"\",A8+1,\"\")","v":5},2,{"$f":"'Startovní listina'!G47","v":"B"},{"$f":"'Startovní listina'!B47","v":43},{"$f":"'Startovní listina'!C47","v":"Kocur"},{"$f":"'Startovní listina'!D47","v":"Lukáš"},{"$f":"'Startovní listina'!E47","v":1977},{"$f":"'Startovní listina'!F47","v":"Orel Šitbořice"},"02:10:30"]
[{"$f":"IF('Výsledková listina'!D9<>\"\",A9+1,\"\")","v":6},3,{"$f":"'Startovní listina'!G34","v":"B"},{"$f":"'Startovní listina'!B34","v":30},{"$f":"'Startovní listina'!C34","v":"Vintrlík"},{"$f":"'Startovní listina'!D34","v":"Martin"},{"$f":"'Startovní listina'!E34","v":1977},{"$f":"'Startovní listina'!F34","v":"Triatlon křepice"},"02:12:21"]
[{"$f":"IF('Výsledková listina'!D10<>\"\",A10+1,\"\")","v":7},4,{"$f":"'Startovní listina'!G71","v":"A"},{"$f":"'Startovní listina'!B71","v":67},{"$f":"'Startovní listina'!C71","v":"Příhoda"},{"$f":"'Startovní listina'!D71","v":"Jan"},{"$f":"'Startovní listina'!E71","v":1983},{"$f":"'Startovní listina'!F71","v":"Ždánice"},"02:13:17"]
[{"$f":"IF('Výsledková listina'!D11<>\"\",A11+1,\"\")","v":8},1,{"$f":"'Startovní listina'!G50","v":"C"},{"$f":"'Startovní listina'!B50","v":46},{"$f":"'Startovní listina'!C50","v":"Dvořáček"},{"$f":"'Startovní listina'!D50","v":"Jiří"},{"$f":"'Startovní listina'!E50","v":1968},{"$f":"'Startovní listina'!F50","v":"Univerzita Brno"},"02:13:30"]
[{"$f":"IF('Výsledková listina'!D12<>\"\",A12+1,\"\")","v":9},4,{"$f":"'Startovní listina'!G63","v":"B"},{"$f":"'Startovní listina'!B63","v":59},{"$f":"'Startovní listina'!C63","v":"Pokorný"},{"$f":"'Startovní listina'!D63","v":"Václav"},{"$f":"'Startovní listina'!E63","v":1978},{"$f":"'Startovní listina'!F63","v":"Brno"},"02:14:28"]
[{"$f":"IF('Výsledková listina'!D13<>\"\",A13+1,\"\")","v":10},5,{"$f":"'Startovní listina'!G53","v":"A"},{"$f":"'Startovní listina'!B53","v":49},{"$f":"'Startovní listina'!C53","v":"Glier"},{"$f":"'Startovní listina'!D53","v":"Michal"},{"$f":"'Startovní listina'!E53","v":1982},{"$f":"'Startovní listina'!F53","v":"SDH Doubravník"},"02:15:18"]
[{"$f":"IF('Výsledková listina'!D14<>\"\",A14+1,\"\")","v":11},2,{"$f":"'Startovní listina'!G41","v":"C"},{"$f":"'Startovní listina'!B41","v":37},{"$f":"'Startovní listina'!C41","v":"Svoboda"},{"$f":"'Startovní listina'!D41","v":"Petr"},{"$f":"'Startovní listina'!E41","v":1968},{"$f":"'Startovní listina'!F41","v":"AC Moravská Slavia Brno"},"02:18:52"]
[{"$f":"IF('Výsledková listina'!D15<>\"\",A15+1,\"\")","v":12},5,{"$f":"'Startovní listina'!G29","v":"B"},{"$f":"'Startovní listina'!B29","v":25},{"$f":"'Startovní listina'!C29","v":"Klíma"},{"$f":"'Startovní listina'!D29","v":"Miroslav"},{"$f":"'Startovní listina'!E29","v":1975},{"$f":"'Startovní listina'!F29","v":"Emanovy červené trenýrky Brno"},"02:19:10"]
[{"$f":"IF('Výsledková listina'!D16<>\"\",A16+1,\"\")","v":13},1,{"$f":"'Startovní listina'!G35","v":"F"},{"$f":"'Startovní listina'!B35","v":31},{"$f":"'Startovní listina'!C35","v":"Pešáková"},{"$f":"'Startovní listina'!D35","v":"Mirka"},{"$f":"'Startovní listina'!E35","v":1985},{"$f":"'Startovní listina'!F35","v":"AC RACERS, Tetčice"},"02:19:28"]
[{"$f":"IF('Výsledková listina'!D17<>\"\",A17+1,\"\")","v":14},6,{"$f":"'Startovní listina'!G10","v":"B"},{"$f":"'Startovní listina'!B10","v":6},{"$f":"'Startovní listina'!C10","v":"Šerák"},{"$f":"'Startovní listina'!D10","v":"Martin"},{"$f":"'Startovní listina'!E10","v":1978},{"$f":"'Startovní listina'!F10","v":"Liga 100 Olomouc"},"02:19:41"]
[{"$f":"IF('Výsledková listina'!D18<>\"\",A18+1,\"\")","v":15},7,{"$f":"'Startovní listina'!G69","v":"B"},{"$f":"'Startovní listina'!B69","v":65},{"$f":"'Startovní listina'!C69","v":"Konečný"},{"$f":"'Startovní listina'!D69","v":"Libor"},{"$f":"'Startovní listina'!E69","v":1971},{"$f":"'Startovní listina'!F69","v":"Kuřim"},"02:20:00"]
[{"$f":"IF('Výsledková listina'!D19<>\"\",A19+1,\"\")","v":16},3,{"$f":"'Startovní listina'!G39","v":"C"},{"$f":"'Startovní listina'!B39","v":35},{"$f":"'Startovní listina'!C39","v":"Hýbl"},{"$f":"'Startovní listina'!D39","v":"Jiří"},{"$f":"'Startovní listina'!E39","v":1967},{"$f":"'Startovní listina'!F39","v":"Hrušovany u Brna"},"02:20:26"]
[{"$f":"IF('Výsledková listina'!D20<>\"\",A20+1,\"\")","v":17},8,{"$f":"'Startovní listina'!G44","v":"B"},{"$f":"'Startovní listina'!B44","v":40},{"$f":"'Startovní listina'!C44","v":"Viščor"},{"$f":"'Startovní listina'!D44","v":"Pavel"},{"$f":"'Startovní listina'!E44","v":1974},{"$f":"'Startovní listina'!F44","v":"Brno"},"02:20:38"]
[{"$f":"IF('Výsledková listina'!D21<>\"\",A21+1,\"\")","v":18},9,{"$f":"'Startovní listina'!G14","v":"B"},{"$f":"'Startovní listina'!B14","v":10},{"$f":"'Startovní listina'!C14","v":"Kopečný"},{"$f":"'Startovní listina'!D14","v":"Dušan"},{"$f":"'Startovní listina'!E14","v":1973},{"$f":"'Startovní listina'!F14","v":"Liga 100 Olomouc"},"02:21:19"]
[{"$f":"IF('Výsledková listina'!D22<>\"\",A22+1,\"\")","v":19},4,{"$f":"'Startovní listina'!G38","v":"C"},{"$f":"'Startovní listina'!B38","v":34},{"$f":"'Startovní listina'!C38","v":"Šimunek"},{"$f":"'Startovní listina'!D38","v":"Martin"},{"$f":"'Startovní listina'!E38","v":1966},{"$f":"'Startovní listina'!F38","v":"Botanka Running Modřice"},"02:21:57"]
[{"$f":"IF('Výsledková listina'!D23<>\"\",A23+1,\"\")","v":20},6,{"$f":"'Startovní listina'!G8","v":"A"},{"$f":"'Startovní listina'!B8","v":4},{"$f":"'Startovní listina'!C8","v":"Kalich"},{"$f":"'Startovní listina'!D8","v":"Radim"},{"$f":"'Startovní listina'!E8","v":1985},{"$f":"'Startovní listina'!F8","v":"Odranec"},"02:29:01"]
[{"$f":"IF('Výsledková listina'!D24<>\"\",A24+1,\"\")","v":21},2,{"$f":"'Startovní listina'!G30","v":"F"},{"$f":"'Startovní listina'!B30","v":26},{"$f":"'Startovní listina'!C30","v":"Bartoňková"},{"$f":"'Startovní listina'!D30","v":"Nina"},{"$f":"'Startovní listina'!E30","v":1990},{"$f":"'Startovní listina'!F30","v":"AK Drnovice"},"02:31:47"]
[{"$f":"IF('Výsledková listina'!D25<>\"\",A25+1,\"\")","v":22},10,{"$f":"'Startovní listina'!G68","v":"B"},{"$f":"'Startovní listina'!B68","v":64},{"$f":"'Startovní listina'!C68","v":"Kratochvíl"},{"$f":"'Startovní listina'!D68","v":"Jaroslav"},{"$f":"'Startovní listina'!E68","v":1977},{"$f":"'Startovní listina'!F68","v":"SDH Hluboké"},"02:32:26"]
[{"$f":"IF('Výsledková listina'!D26<>\"\",A26+1,\"\")","v":23},11,{"$f":"'Startovní listina'!G43","v":"B"},{"$f":"'Startovní listina'!B43","v":39},{"$f":"'Startovní listina'!C43","v":"Řezníček"},{"$f":"'Startovní listina'!D43","v":"Petr"},{"$f":"'Startovní listina'!E43","v":1973},{"$f":"'Startovní listina'!F43","v":"Polnička"},"02:33:52"]
[{"$f":"IF('Výsledková listina'!D27<>\"\",A27+1,\"\")","v":24},3,{"$f":"'Startovní listina'!G48","v":"F"},{"$f":"'Startovní listina'!B48","v":44},{"$f":"'Startovní listina'!C48","v":"Johaníková"},{"$f":"'Startovní listina'!D48","v":"Lucie"},{"$f":"'Startovní listina'!E48","v":1986},{"$f":"'Startovní listina'!F48","v":"AC Moravská Slavia Brno"},"02:34:08"]
[{"$f":"IF('Výsledková listina'!D28<>\"\",A28+1,\"\")","v":25},7,{"$f":"'Startovní listina'!G58","v":"A"},{"$f":"'Startovní listina'!B58","v":54},{"$f":"'Startovní listina'!C58","v":"Pavlásek"},{"$f":"'Startovní listina'!D58","v":"Michal"},{"$f":"'Startovní listina'!E58","v":1983},{"$f":"'Startovní listina'!F58","v":"Brno"},"02:35:40"]
[{"$f":"IF('Výsledková listina'!D29<>\"\",A29+1,\"\")","v":26},8,{"$f":"'Startovní listina'!G42","v":"A"},{"$f":"'Startovní listina'!B42","v":38},{"$f":"'Startovní listina'!C42","v":"Košek"},{"$f":"'Startovní listina'!D42","v":"Martin"},{"$f":"'Startovní listina'!E42","v":1984},{"$f":"'Startovní listina'!F42","v":"Brno"},"02:35:59"]
[{"$f":"IF('Výsledková listina'!D30<>\"\",A30+1,\"\")","v":27},1,{"$f":"'Startovní listina'!G19","v":"D"},{"$f":"'Startovní listina'!B19","v":15},{"$f":"'Startovní listina'!C19","v":"Bělehrádek"},{"$f":"'Startovní listina'!D19","v":"Pavel"},{"$f":"'Startovní listina'!E19","v":1958},{"$f":"'Startovní listina'!F19","v":"TJ ČOLEK"},"02:37:32"]
[{"$f":"IF('Výsledková listina'!D31<>\"\",A31+1,\"\")","v":28},9,{"$f":"'Startovní listina'!G36","v":"A"},{"$f":"'Startovní listina'!B36","v":32},{"$f":"'Startovní listina'!C36","v":"Sinkule"},{"$f":"'Startovní listina'!D36","v":"Pavel"},{"$f":"'Startovní listina'!E36","v":1981},{"$f":"'Startovní listina'!F36","v":"SRTG Brno"},"02:38:01"]
[{"$f":"IF('Výsledková listina'!D32<>\"\",A32+1,\"\")","v":29},12,{"$f":"'Startovní listina'!G31","v":"B"},{"$f":"'Startovní listina'!B31","v":27},{"$f":"'Startovní listina'!C31","v":"Fanfrdla"},{"$f":"'Startovní listina'!D31","v":"Dalimil"},{"$f":"'Startovní listina'!E31","v":1973},{"$f":"'Startovní listina'!F31","v":"Matyteam Brno"},"02:38:52"]
[{"$f":"IF('Výsledková listina'!D33<>\"\",A33+1,\"\")","v":30},10,{"$f":"'Startovní listina'!G37","v":"A"},{"$f":"'Startovní listina'!B37","v":33},{"$f":"'Startovní listina'!C37","v":"Komárek"},{"$f":"'Startovní listina'!D37","v":"Michal"},{"$f":"'Startovní listina'!E37","v":1981},{"$f":"'Startovní listina'!F37","v":"Bystřice nad Pernštejnem"},"02:39:54"]
[{"$f":"IF('Výsledková listina'!D34<>\"\",A34+1,\"\")","v":31},1,{"$f":"'Startovní listina'!G5","v":"G"},{"$f":"'Startovní listina'!B5","v":1},{"$f":"'Startovní listina'!C5","v":"Komárková"},{"$f":"'Startovní listina'!D5","v":"Zdeňka"},{"$f":"'Startovní listina'!E5","v":1974},{"$f":"'Startovní listina'!F5","v":"SDH Bolešín"},"02:41:14"]
[{"$f":"IF('Výsledková listina'!D35<>\"\",A35+1,\"\")","v":32},1,{"$f":"'Startovní listina'!G32","v":"H"},{"$f":"'Startovní listina'!B32","v":28},{"$f":"'Startovní listina'!C32","v":"Hanslová"},{"$f":"'Startovní listina'!D32","v":"Lenka"},{"$f":"'Startovní listina'!E32","v":1973},{"$f":"'Startovní listina'!F32","v":"Žďár nad Sázavou"},"02:42:56"]
[{"$f":"IF('Výsledková listina'!D36<>\"\",A36+1,\"\")","v":33},2,{"$f":"'Startovní listina'!G7","v":"G"},{"$f":"'Startovní listina'!B7","v":3},{"$f":"'Startovní listina'!C7","v":"Mlčáková"},{"$f":"'Startovní listina'!D7","v":"Hana"},{"$f":"'Startovní listina'!E7","v":1981},{"$f":"'Startovní listina'!F7","v":"Strážnice"},"02:44:34"]
[{"$f":"IF('Výsledková listina'!D37<>\"\",A37+1,\"\")","v":34},2,{"$f":"'Startovní listina'!G54","v":"D"},{"$f":"'Startovní listina'!B54","v":50},{"$f":"'Startovní listina'!C54","v":"Král"},{"$f":"'Startovní listina'!D54","v":"Josef"},{"$f":"'Startovní listina'!E54","v":1958},{"$f":"'Startovní listina'!F54","v":"SDH Bystré"},"02:45:17"]
[{"$f":"IF('Výsledková listina'!D38<>\"\",A38+1,\"\")","v":35},11,{"$f":"'Startovní listina'!G11","v":"A"},{"$f":"'Startovní listina'!B11","v":7},{"$f":"'Startovní listina'!C11","v":"Podsedník"},{"$f":"'Startovní listina'!D11","v":"Marek"},{"$f":"'Startovní listina'!E11","v":1985},{"$f":"'Startovní listina'!F11","v":"Brno"},"02:45:57"]
[{"$f":"IF('Výsledková listina'!D39<>\"\",A39+1,\"\")","v":36},4,{"$f":"'Startovní listina'!G25","v":"F"},{"$f":"'Startovní listina'!B25","v":21},{"$f":"'Startovní listina'!C25","v":"Trefilová"},{"$f":"'Startovní listina'!D25","v":"Ester"},{"$f":"'Startovní listina'!E25","v":1993},{"$f":"'Startovní listina'!F25","v":"Vír"},"02:46:41"]
[{"$f":"IF('Výsledková listina'!D40<>\"\",A40+1,\"\")","v":37},13,{"$f":"'Startovní listina'!G56","v":"B"},{"$f":"'Startovní listina'!B56","v":52},{"$f":"'Startovní listina'!C56","v":"Lorenčík"},{"$f":"'Startovní listina'!D56","v":"Aleš"},{"$f":"'Startovní listina'!E56","v":1973},{"$f":"'Startovní listina'!F56","v":"Chrudim"},"02:47:42"]
[{"$f":"IF('Výsledková listina'!D41<>\"\",A41+1,\"\")","v":38},12,{"$f":"'Startovní listina'!G27","v":"A"},{"$f":"'Startovní listina'!B27","v":23},{"$f":"'Startovní listina'!C27","v":"Koutský"},{"$f":"'Startovní listina'!D27","v":"Tomáš"},{"$f":"'Startovní listina'!E27","v":1987},{"$f":"'Startovní listina'!F27","v":"Ledová stěna Vír"},"02:48:37"]
[{"$f":"IF('Výsledková listina'!D42<>\"\",A42+1,\"\")","v":39},13,{"$f":"'Startovní listina'!G62","v":"A"},{"$f":"'Startovní listina'!B62","v":58},{"$f":"'Startovní listina'!C62","v":"Paleček"},{"$f":"'Startovní listina'!D62","v":"Miloš"},{"$f":"'Startovní listina'!E62","v":1985},{"$f":"'Startovní listina'!F62","v":"BIKEŘI ROVE"},"02:49:08"]
[{"$f":"IF('Výsledková listina'!D43<>\"\",A43+1,\"\")","v":40},14,{"$f":"'Startovní listina'!G23","v":"A"},{"$f":"'Startovní listina'!B23","v":19},{"$f":"'Startovní listina'!C23","v":"Pivec"},{"$f":"'Startovní listina'!D23","v":"Jan"},{"$f":"'Startovní listina'!E23","v":1981},{"$f":"'Startovní listina'!F23","v":"HAL3000"},"02:49:24"]
[{"$f":"IF('Výsledková listina'!D44<>\"\",A44+1,\"\")","v":41},14,{"$f":"'Startovní listina'!G45","v":"B"},{"$f":"'Startovní listina'!B45","v":41},{"$f":"'Startovní listina'!C45","v":"Žličař"},{"$f":"'Startovní listina'!D45","v":"Karel"},{"$f":"'Startovní listina'!E45","v":1977},{"$f":"'Startovní listina'!F45","v":"Železárny Štěpánov"},"02:50:47"]
[{"$f":"IF('Výsledková listina'!D45<>\"\",A45+1,\"\")","v":42},5,{"$f":"'Startovní listina'!G55","v":"F"},{"$f":"'Startovní listina'!B55","v":51},{"$f":"'Startovní listina'!C55","v":"Vondrová"},{"$f":"'Startovní listina'!D55","v":"Ludmila"},{"$f":"'Startovní listina'!E55","v":1986},{"$f":"'Startovní listina'!F55","v":"Dalečín"},"02:52:05"]
[{"$f":"IF('Výsledková listina'!D46<>\"\",A46+1,\"\")","v":43},3,{"$f":"'Startovní listina'!G57","v":"G"},{"$f":"'Startovní listina'!B57","v":53},{"$f":"'Startovní listina'!C57","v":"Kuncová"},{"$f":"'Startovní listina'!D57","v":"Markéta"},{"$f":"'Startovní listina'!E57","v":1982},{"$f":"'Startovní listina'!F57","v":"Rožná"},"02:52:06"]
[{"$f":"IF('Výsledková listina'!D47<>\"\",A47+1,\"\")","v":44},15,{"$f":"'Startovní listina'!G28","v":"A"},{"$f":"'Startovní listina'!B28","v":24},{"$f":"'Startovní listina'!C28","v":"Skula"},{"$f":"'Startovní listina'!D28","v":"Miroslav"},{"$f":"'Startovní listina'!E28","v":1988},{"$f":"'Startovní listina'!F28","v":"SRTG Žďár nad Sázavou"},"02:52:41"]
[{"$f":"IF('Výsledková listina'!D48<>\"\",A48+1,\"\")","v":45},6,{"$f":"'Startovní listina'!G52","v":"F"},{"$f":"'Startovní listina'!B52","v":48},{"$f":"'Startovní listina'!C52","v":"Glierová"},{"$f":"'Startovní listina'!D52","v":"Renata"},{"$f":"'Startovní listina'!E52","v":1985},{"$f":"'Startovní listina'!F52","v":"SDH Doubravník"},"02:53:08"]
[{"$f":"IF('Výsledková listina'!D49<>\"\",A49+1,\"\")","v":46},15,{"$f":"'Startovní listina'!G51","v":"B"},{"$f":"'Startovní listina'!B51","v":47},{"$f":"'Startovní listina'!C51","v":"Fric"},{"$f":"'Startovní listina'!D51","v":"Petr"},{"$f":"'Startovní listina'!E51","v":1970},{"$f":"'Startovní listina'!F51","v":"Bystré"},"03:00:44"]
[{"$f":"IF('Výsledková listina'!D50<>\"\",A50+1,\"\")","v":47},5,{"$f":"'Startovní listina'!G61","v":"C"},{"$f":"'Startovní listina'!B61","v":57},{"$f":"'Startovní listina'!C61","v":"Kříž"},{"$f":"'Startovní listina'!D61","v":"Miloslav"},{"$f":"'Startovní listina'!E61","v":1961},{"$f":"'Startovní listina'!F61","v":"Aspire Dobrochov"},"03:01:52"]
[{"$f":"IF('Výsledková listina'!D51<>\"\",A51+1,\"\")","v":48},16,{"$f":"'Startovní listina'!G6","v":"A"},{"$f":"'Startovní listina'!B6","v":2},{"$f":"'Startovní listina'!C6","v":"Ptáček"},{"$f":"'Startovní listina'!D6","v":"Michal "},{"$f":"'Startovní listina'!E6","v":1986},{"$f":"'Startovní listina'!F6","v":" Hrdá Ves "},"03:03:27"]
[{"$f":"IF('Výsledková listina'!D52<>\"\",A52+1,\"\")","v":49},17,{"$f":"'Startovní listina'!G24","v":"A"},{"$f":"'Startovní listina'!B24","v":20},{"$f":"'Startovní listina'!C24","v":"Forýtek"},{"$f":"'Startovní listina'!D24","v":"Michal"},{"$f":"'Startovní listina'!E24","v":1982},{"$f":"'Startovní listina'!F24","v":"HAL3000"},"03:05:03"]
[{"$f":"IF('Výsledková listina'!D53<>\"\",A53+1,\"\")","v":50},3,{"$f":"'Startovní listina'!G46","v":"D"},{"$f":"'Startovní listina'!B46","v":42},{"$f":"'Startovní listina'!C46","v":"Mareš"},{"$f":"'Startovní listina'!D46","v":"Bohumil"},{"$f":"'Startovní listina'!E46","v":1951},{"$f":"'Startovní listina'!F46","v":"Posilovna Průvan Brno"},"03:06:55"]
[{"$f":"IF('Výsledková listina'!D54<>\"\",A54+1,\"\")","v":51},16,{"$f":"'Startovní listina'!G60","v":"B"},{"$f":"'Startovní listina'!B60","v":56},{"$f":"'Startovní listina'!C60","v":"Benc"},{"$f":"'Startovní listina'!D60","v":"Karel"},{"$f":"'Startovní listina'!E60","v":1975},{"$f":"'Startovní listina'!F60","v":"Pivonice"},"03:07:47"]
[{"$f":"IF('Výsledková listina'!D55<>\"\",A55+1,\"\")","v":52},17,{"$f":"'Startovní listina'!G33","v":"B"},{"$f":"'Startovní listina'!B33","v":29},{"$f":"'Startovní listina'!C33","v":"Dvořák"},{"$f":"'Startovní listina'!D33","v":"Vojtěch"},{"$f":"'Startovní listina'!E33","v":1975},{"$f":"'Startovní listina'!F33","v":"Brno"},"03:08:01"]
[{"$f":"IF('Výsledková listina'!D56<>\"\",A56+1,\"\")","v":53},6,{"$f":"'Startovní listina'!G21","v":"C"},{"$f":"'Startovní listina'!B21","v":17},{"$f":"'Startovní listina'!C21","v":"Bečička"},{"$f":"'Startovní listina'!D21","v":"Petr"},{"$f":"'Startovní listina'!E21","v":1960},{"$f":"'Startovní listina'!F21","v":"HAL3000"},"03:10:49"]
[{"$f":"IF('Výsledková listina'!D57<>\"\",A57+1,\"\")","v":54},18,{"$f":"'Startovní listina'!G64","v":"B"},{"$f":"'Startovní listina'!B64","v":60},{"$f":"'Startovní listina'!C64","v":"Tyleček"},{"$f":"'Startovní listina'!D64","v":"Pavel"},{"$f":"'Startovní listina'!E64","v":1973},{"$f":"'Startovní listina'!F64","v":"Jundrováci"},"03:14:16"]
[{"$f":"IF('Výsledková listina'!D58<>\"\",A58+1,\"\")","v":55},4,{"$f":"'Startovní listina'!G12","v":"G"},{"$f":"'Startovní listina'!B12","v":8},{"$f":"'Startovní listina'!C12","v":"Pichová"},{"$f":"'Startovní listina'!D12","v":"Dagmar"},{"$f":"'Startovní listina'!E12","v":1977},{"$f":"'Startovní listina'!F12","v":"Brno"},"03:14:28"]
[{"$f":"IF('Výsledková listina'!D59<>\"\",A59+1,\"\")","v":56},7,{"$f":"'Startovní listina'!G17","v":"C"},{"$f":"'Startovní listina'!B17","v":13},{"$f":"'Startovní listina'!C17","v":"Kresta"},{"$f":"'Startovní listina'!D17","v":"Roman"},{"$f":"'Startovní listina'!E17","v":1965},{"$f":"'Startovní listina'!F17","v":"Orel Židenice"},"03:20:53"]
[{"$f":"IF('Výsledková listina'!D60<>\"\",A60+1,\"\")","v":57},4,{"$f":"'Startovní listina'!G16","v":"D"},{"$f":"'Startovní listina'!B16","v":12},{"$f":"'Startovní listina'!C16","v":"Zejda"},{"$f":"'Startovní listina'!D16","v":"Ivo"},{"$f":"'Startovní listina'!E16","v":1958},{"$f":"'Startovní listina'!F16","v":"AC Moravská Slavia Brno"},"03:21:18"]
[{"$f":"IF('Výsledková listina'!D61<>\"\",A61+1,\"\")","v":58},5,{"$f":"'Startovní listina'!G22","v":"G"},{"$f":"'Startovní listina'!B22","v":18},{"$f":"'Startovní listina'!C22","v":"Dostálová"},{"$f":"'Startovní listina'!D22","v":"Vendula"},{"$f":"'Startovní listina'!E22","v":1981},{"$f":"'Startovní listina'!F22","v":"HAL3000"},"03:24:03"]
[{"$f":"IF('Výsledková listina'!D62<>\"\",A62+1,\"\")","v":59},19,{"$f":"'Startovní listina'!G26","v":"B"},{"$f":"'Startovní listina'!B26","v":22},{"$f":"'Startovní listina'!C26","v":"Faja"},{"$f":"'Startovní listina'!D26","v":"Ondřej"},{"$f":"'Startovní listina'!E26","v":1976},{"$f":"'Startovní listina'!F26","v":"Brno"},"03:25:14"]
[{"$f":"IF('Výsledková listina'!D63<>\"\",A63+1,\"\")","v":60},7,{"$f":"'Startovní listina'!G59","v":"F"},{"$f":"'Startovní listina'!B59","v":55},{"$f":"'Startovní listina'!C59","v":"Jamrichová"},{"$f":"'Startovní listina'!D59","v":"Kristina"},{"$f":"'Startovní listina'!E59","v":1987},{"$f":"'Startovní listina'!F59","v":"Brno"},"03:25:40"]
[{"$f":"IF('Výsledková listina'!D64<>\"\",A64+1,\"\")","v":61},6,{"$f":"'Startovní listina'!G9","v":"G"},{"$f":"'Startovní listina'!B9","v":5},{"$f":"'Startovní listina'!C9","v":"Ježová"},{"$f":"'Startovní listina'!D9","v":"Martina"},{"$f":"'Startovní listina'!E9","v":1975},{"$f":"'Startovní listina'!F9","v":"Brno"},"03:30:58"]
[{"$f":"IF('Výsledková listina'!D65<>\"\",A65+1,\"\")","v":62},2,{"$f":"'Startovní listina'!G13","v":"H"},{"$f":"'Startovní listina'!B13","v":9},{"$f":"'Startovní listina'!C13","v":"Tesařová"},{"$f":"'Startovní listina'!D13","v":"Marie"},{"$f":"'Startovní listina'!E13","v":1954},{"$f":"'Startovní listina'!F13","v":"Křižanov"},"03:31:28"]
[{"$f":"IF('Výsledková listina'!D66<>\"\",A66+1,\"\")","v":63},8,{"$f":"'Startovní listina'!G70","v":"C"},{"$f":"'Startovní listina'!B70","v":66},{"$f":"'Startovní listina'!C70","v":"Zourek"},{"$f":"'Startovní listina'!D70","v":"Karel"},{"$f":"'Startovní listina'!E70","v":1959},{"$f":"'Startovní listina'!F70","v":"Bedřichovice"},"03:38:04"]
[{"$f":"IF('Výsledková listina'!D67<>\"\",A67+1,\"\")","v":64},18,{"$f":"'Startovní listina'!G20","v":"A"},{"$f":"'Startovní listina'!B20","v":16},{"$f":"'Startovní listina'!C20","v":"Král"},{"$f":"'Startovní listina'!D20","v":"Jan"},{"$f":"'Startovní listina'!E20","v":1981},{"$f":"'Startovní listina'!F20","v":"Brno"},"03:44:50"]
[{"$f":"IF('Výsledková listina'!D68<>\"\",A68+1,\"\")","v":65},3,{"$f":"'Startovní listina'!G65","v":"H"},{"$f":"'Startovní listina'!B65","v":61},{"$f":"'Startovní listina'!C65","v":"Podmelová"},{"$f":"'Startovní listina'!D65","v":"Vilma"},{"$f":"'Startovní listina'!E65","v":1962},{"$f":"'Startovní listina'!F65","v":"AC Moravská Slavia Brno"},"03:48:57"]
[{"$f":"IF('Výsledková listina'!D69<>\"\",A69+1,\"\")","v":66},1,{"$f":"'Startovní listina'!G15","v":"E"},{"$f":"'Startovní listina'!B15","v":11},{"$f":"'Startovní listina'!C15","v":"Holý"},{"$f":"'Startovní listina'!D15","v":"Josef"},{"$f":"'Startovní listina'!E15","v":1941},{"$f":"'Startovní listina'!F15","v":"AC Moravská Slavia Brno"},"04:22:58"]
[67,null,{"$f":"'Startovní listina'!G18","v":"A"},{"$f":"'Startovní listina'!B18","v":14},{"$f":"'Startovní listina'!C18","v":"Juránek"},{"$f":"'Startovní listina'!D18","v":"Jakub"},{"$f":"'Startovní listina'!E18","v":1995},{"$f":"'Startovní listina'!F18","v":"S.U.P.I.  Martinice"},"DNF"]
[{"$f":"IF('Výsledková listina'!D71<>\"\",A71+1,\"\")","v":68},null,{"$f":"'Startovní listina'!G72","v":""},{"$f":"'Startovní listina'!B72","v":""},{"$f":"'Startovní listina'!C72","v":""},{"$f":"'Startovní listina'!D72","v":""},{"$f":"'Startovní listina'!E72","v":""},{"$f":"'Startovní listina'!F72","v":""}]
[{"$f":"IF('Výsledková listina'!D72<>\"\",A72+1,\"\")","v":""},null,{"$f":"'Startovní listina'!G73","v":""},{"$f":"'Startovní listina'!B73","v":""},{"$f":"'Startovní listina'!C73","v":""},{"$f":"'Startovní listina'!D73","v":""},{"$f":"'Startovní listina'!E73","v":""},{"$f":"'Startovní listina'!F73","v":""}]
[{"$f":"IF('Výsledková listina'!D73<>\"\",A73+1,\"\")","v":""},null,{"$f":"'Startovní listina'!G74","v":""},{"$f":"'Startovní listina'!B74","v":""},{"$f":"'Startovní listina'!C74","v":""},{"$f":"'Startovní listina'!D74","v":""},{"$f":"'Startovní listina'!E74","v":""},{"$f":"'Startovní listina'!F74","v":""}]
[{"$f":"IF('Výsledková listina'!D74<>\"\",A74+1,\"\")","v":""},null,{"$f":"'Startovní listina'!G75","v":""},{"$f":"'Startovní listina'!B75","v":""},{"$f":"'Startovní listina'!C75","v":""},{"$f":"'Startovní listina'!D75","v":""},{"$f":"'Startovní listina'!E75","v":""},{"$f":"'Startovní listina'!F75","v":""}]
[{"$f":"IF('Výsledková listina'!D75<>\"\",A75+1,\"\")","v":""},null,{"$f":"'Startovní listina'!G76","v":""},{"$f":"'Startovní listina'!B76","v":""},{"$f":"'Startovní listina'!C76","v":""},{"$f":"'Startovní listina'!D76","v":""},{"$f":"'Startovní listina'!E76","v":""},{"$f":"'Startovní listina'!F76","v":""}]
[{"$f":"IF('Výsledková listina'!D76<>\"\",A76+1,\"\")","v":""},null,{"$f":"'Startovní listina'!G77","v":""},{"$f":"'Startovní listina'!B77","v":""},{"$f":"'Startovní listina'!C77","v":""},{"$f":"'Startovní listina'!D77","v":""},{"$f":"'Startovní listina'!E77","v":""},{"$f":"'Startovní listina'!F77","v":""}]
[{"$f":"IF('Výsledková listina'!D77<>\"\",A77+1,\"\")","v":""},null,{"$f":"'Startovní listina'!G78","v":""},{"$f":"'Startovní listina'!B78","v":""},{"$f":"'Startovní listina'!C78","v":""},{"$f":"'Startovní listina'!D78","v":""},{"$f":"'Startovní listina'!E78","v":""},{"$f":"'Startovní listina'!F78","v":""}]
[{"$f":"IF('Výsledková listina'!D78<>\"\",A78+1,\"\")","v":""},null,{"$f":"'Startovní listina'!G79","v":""},{"$f":"'Startovní listina'!B79","v":""},{"$f":"'Startovní listina'!C79","v":""},{"$f":"'Startovní listina'!D79","v":""},{"$f":"'Startovní listina'!E79","v":""},{"$f":"'Startovní listina'!F79","v":""}]
[{"$f":"IF('Výsledková listina'!D79<>\"\",A79+1,\"\")","v":""},null,{"$f":"'Startovní listina'!G80","v":""},{"$f":"'Startovní listina'!B80","v":""},{"$f":"'Startovní listina'!C80","v":""},{"$f":"'Startovní listina'!D80","v":""},{"$f":"'Startovní listina'!E80","v":""},{"$f":"'Startovní listina'!F80","v":""}]
[{"$f":"IF('Výsledková listina'!D80<>\"\",A80+1,\"\")","v":""},null,{"$f":"'Startovní listina'!G81","v":""},{"$f":"'Startovní listina'!B81","v":""},{"$f":"'Startovní listina'!C81","v":""},{"$f":"'Startovní listina'!D81","v":""},{"$f":"'Startovní listina'!E81","v":""},{"$f":"'Startovní listina'!F81","v":""}]
[{"$f":"IF('Výsledková listina'!D81<>\"\",A81+1,\"\")","v":""},null,{"$f":"'Startovní listina'!G82","v":""},{"$f":"'Startovní listina'!B82","v":""},{"$f":"'Startovní listina'!C82","v":""},{"$f":"'Startovní listina'!D82","v":""},{"$f":"'Startovní listina'!E82","v":""},{"$f":"'Startovní listina'!F82","v":""}]
[{"$f":"IF('Výsledková listina'!D82<>\"\",A82+1,\"\")","v":""},null,{"$f":"'Startovní listina'!G83","v":""},{"$f":"'Startovní listina'!B83","v":""},{"$f":"'Startovní listina'!C83","v":""},{"$f":"'Startovní listina'!D83","v":""},{"$f":"'Startovní listina'!E83","v":""},{"$f":"'Startovní listina'!F83","v":""}]
[{"$f":"IF('Výsledková listina'!D83<>\"\",A83+1,\"\")","v":""},null,{"$f":"'Startovní listina'!G84","v":""},{"$f":"'Startovní listina'!B84","v":""},{"$f":"'Startovní listina'!C84","v":""},{"$f":"'Startovní listina'!D84","v":""},{"$f":"'Startovní listina'!E84","v":""},{"$f":"'Startovní listina'!F84","v":""}]
[{"$f":"IF('Výsledková listina'!D84<>\"\",A84+1,\"\")","v":""},null,{"$f":"'Startovní listina'!G85","v":""},{"$f":"'Startovní listina'!B85","v":""},{"$f":"'Startovní listina'!C85","v":""},{"$f":"'Startovní listina'!D85","v":""},{"$f":"'Startovní listina'!E85","v":""},{"$f":"'Startovní listina'!F85","v":""}]
[{"$f":"IF('Výsledková listina'!D85<>\"\",A85+1,\"\")","v":""},null,{"$f":"'Startovní listina'!G86","v":""},{"$f":"'Startovní listina'!B86","v":""},{"$f":"'Startovní listina'!C86","v":""},{"$f":"'Startovní listina'!D86","v":""},{"$f":"'Startovní listina'!E86","v":""},{"$f":"'Startovní listina'!F86","v":""}]
[{"$f":"IF('Výsledková listina'!D86<>\"\",A86+1,\"\")","v":""},null,{"$f":"'Startovní listina'!G87","v":""},{"$f":"'Startovní listina'!B87","v":""},{"$f":"'Startovní listina'!C87","v":""},{"$f":"'Startovní listina'!D87","v":""},{"$f":"'Startovní listina'!E87","v":""},{"$f":"'Startovní listina'!F87","v":""}]
[{"$f":"IF('Výsledková listina'!D87<>\"\",A87+1,\"\")","v":""},null,{"$f":"'Startovní listina'!G88","v":""},{"$f":"'Startovní listina'!B88","v":""},{"$f":"'Startovní listina'!C88","v":""},{"$f":"'Startovní listina'!D88","v":""},{"$f":"'Startovní listina'!E88","v":""},{"$f":"'Startovní listina'!F88","v":""}]
[{"$f":"IF('Výsledková listina'!D88<>\"\",A88+1,\"\")","v":""},null,{"$f":"'Startovní listina'!G89","v":""},{"$f":"'Startovní listina'!B89","v":""},{"$f":"'Startovní listina'!C89","v":""},{"$f":"'Startovní listina'!D89","v":""},{"$f":"'Startovní listina'!E89","v":""},{"$f":"'Startovní listina'!F89","v":""}]
[{"$f":"IF('Výsledková listina'!D89<>\"\",A89+1,\"\")","v":""},null,{"$f":"'Startovní listina'!G90","v":""},{"$f":"'Startovní listina'!B90","v":""},{"$f":"'Startovní listina'!C90","v":""},{"$f":"'Startovní listina'!D90","v":""},{"$f":"'Startovní listina'!E90","v":""},{"$f":"'Startovní listina'!F90","v":""}]
[{"$f":"IF('Výsledková listina'!D90<>\"\",A90+1,\"\")","v":""},null,{"$f":"'Startovní listina'!G91","v":""},{"$f":"'Startovní listina'!B91","v":""},{"$f":"'Startovní listina'!C91","v":""},{"$f":"'Startovní listina'!D91","v":""},{"$f":"'Startovní listina'!E91","v":""},{"$f":"'Startovní listina'!F91","v":""}]
[{"$f":"IF('Výsledková listina'!D91<>\"\",A91+1,\"\")","v":""},null,{"$f":"'Startovní listina'!G92","v":""},{"$f":"'Startovní listina'!B92","v":""},{"$f":"'Startovní listina'!C92","v":""},{"$f":"'Startovní listina'!D92","v":""},{"$f":"'Startovní listina'!E92","v":""},{"$f":"'Startovní listina'!F92","v":""}]
[{"$f":"IF('Výsledková listina'!D92<>\"\",A92+1,\"\")","v":""},null,{"$f":"'Startovní listina'!G93","v":""},{"$f":"'Startovní listina'!B93","v":""},{"$f":"'Startovní listina'!C93","v":""},{"$f":"'Startovní listina'!D93","v":""},{"$f":"'Startovní listina'!E93","v":""},{"$f":"'Startovní listina'!F93","v":""}]
[{"$f":"IF('Výsledková listina'!D93<>\"\",A93+1,\"\")","v":""},null,{"$f":"'Startovní listina'!G94","v":""},{"$f":"'Startovní listina'!B94","v":""},{"$f":"'Startovní listina'!C94","v":""},{"$f":"'Startovní listina'!D94","v":""},{"$f":"'Startovní listina'!E94","v":""},{"$f":"'Startovní listina'!F94","v":""}]
[{"$f":"IF('Výsledková listina'!D94<>\"\",A94+1,\"\")","v":""},null,{"$f":"'Startovní listina'!G95","v":""},{"$f":"'Startovní listina'!B95","v":""},{"$f":"'Startovní listina'!C95","v":""},{"$f":"'Startovní listina'!D95","v":""},{"$f":"'Startovní listina'!E95","v":""},{"$f":"'Startovní listina'!F95","v":""}]
[{"$f":"IF('Výsledková listina'!D95<>\"\",A95+1,\"\")","v":""},null,{"$f":"'Startovní listina'!G96","v":""},{"$f":"'Startovní listina'!B96","v":""},{"$f":"'Startovní listina'!C96","v":""},{"$f":"'Startovní listina'!D96","v":""},{"$f":"'Startovní listina'!E96","v":""},{"$f":"'Startovní listina'!F96","v":""}]
[{"$f":"IF('Výsledková listina'!D96<>\"\",A96+1,\"\")","v":""},null,{"$f":"'Startovní listina'!G97","v":""},{"$f":"'Startovní listina'!B97","v":""},{"$f":"'Startovní listina'!C97","v":""},{"$f":"'Startovní listina'!D97","v":""},{"$f":"'Startovní listina'!E97","v":""},{"$f":"'Startovní listina'!F97","v":""}]
[{"$f":"IF('Výsledková listina'!D97<>\"\",A97+1,\"\")","v":""},null,{"$f":"'Startovní listina'!G98","v":""},{"$f":"'Startovní listina'!B98","v":""},{"$f":"'Startovní listina'!C98","v":""},{"$f":"'Startovní listina'!D98","v":""},{"$f":"'Startovní listina'!E98","v":""},{"$f":"'Startovní listina'!F98","v":""}]
[{"$f":"IF('Výsledková listina'!D98<>\"\",A98+1,\"\")","v":""},null,{"$f":"'Startovní listina'!G99","v":""},{"$f":"'Startovní listina'!B99","v":""},{"$f":"'Startovní listina'!C99","v":""},{"$f":"'Startovní listina'!D99","v":""},{"$f":"'Startovní listina'!E99","v":""},{"$f":"'Startovní listina'!F99","v":""}]
[{"$f":"IF('Výsledková listina'!D99<>\"\",A99+1,\"\")","v":""},null,{"$f":"'Startovní listina'!G100","v":""},{"$f":"'Startovní listina'!B100","v":""},{"$f":"'Startovní listina'!C100","v":""},{"$f":"'Startovní listina'!D100","v":""},{"$f":"'Startovní listina'!E100","v":""},{"$f":"'Startovní listina'!F100","v":""}]
[{"$f":"IF('Výsledková listina'!D100<>\"\",A100+1,\"\")","v":""},null,{"$f":"'Startovní listina'!G101","v":""},{"$f":"'Startovní listina'!B101","v":""},{"$f":"'Startovní listina'!C101","v":""},{"$f":"'Startovní listina'!D101","v":""},{"$f":"'Startovní listina'!E101","v":""},{"$f":"'Startovní listina'!F101","v":""}]
[{"$f":"IF('Výsledková listina'!D101<>\"\",A101+1,\"\")","v":""},null,{"$f":"'Startovní listina'!G102","v":""},{"$f":"'Startovní listina'!B102","v":""},{"$f":"'Startovní listina'!C102","v":""},{"$f":"'Startovní listina'!D102","v":""},{"$f":"'Startovní listina'!E102","v":""},{"$f":"'Startovní listina'!F102","v":""}]
[{"$f":"IF('Výsledková listina'!D102<>\"\",A102+1,\"\")","v":""},null,{"$f":"'Startovní listina'!G103","v":""},{"$f":"'Startovní listina'!B103","v":""},{"$f":"'Startovní listina'!C103","v":""},{"$f":"'Startovní listina'!D103","v":""},{"$f":"'Startovní listina'!E103","v":""},{"$f":"'Startovní listina'!F103","v":""}]
[{"$f":"IF('Výsledková listina'!D103<>\"\",A103+1,\"\")","v":""},null,{"$f":"'Startovní listina'!G104","v":""},{"$f":"'Startovní listina'!B104","v":""},{"$f":"'Startovní listina'!C104","v":""},{"$f":"'Startovní listina'!D104","v":""},{"$f":"'Startovní listina'!E104","v":""},{"$f":"'Startovní listina'!F104","v":""}]

{"sheet":"Výsledková listinadle kategorií","index":3,"n_rows":104,"n_cols":11,"rows_kept":104,"cut":false,"hidden":false,"merged":[[0,0,0,8],[1,0,1,8],[1,10,12,14],[2,0,2,8]]}
[{"$f":"\"Výsledková listina - Malý svratecký maraton \"&'Prezenční listina'!O2","v":"Výsledková listina - Malý svratecký maraton 2018"}]
["2018-08-25",null,null,null,null,null,null,null,null,null,"\nPoté, co jsou dopsány časy VŠECH běžců, stisknout tlačítko 1.řazení \n\n\nVe sloupci B (Pořadí v kategorii) vytvořit posloupnou číselnou řadu pro každou kategorii a poté stisknout tlačítko 2.řazení\n\n\n                      !!! POZOR!!!\n\n               Použití tlačítek je nevratný krok!"]
[{"$f":"'Prezenční listina'!O2-1953&\". ročník\"","v":"65. ročník"}]
["Celkové pořadí","Pořadí v kategorii","Kategorie","Startovní číslo","Příjmení","Jméno","Narození","Oddíl / Bydliště","Čas"]
[1,1,{"$f":"'Startovní listina'!G49","v":"A"},{"$f":"'Startovní listina'!B49","v":45},{"$f":"'Startovní listina'!C49","v":"Kohut"},{"$f":"'Startovní listina'!D49","v":"Jan"},{"$f":"'Startovní listina'!E49","v":1985},{"$f":"'Startovní listina'!F49","v":"Univerzita Brno"},"02:02:02"]
[{"$f":"IF('Výsledková listinadle kategorií'!D5<>\"\",A5+1,\"\")","v":2},2,{"$f":"'Startovní listina'!G66","v":"A"},{"$f":"'Startovní listina'!B66","v":62},{"$f":"'Startovní listina'!C66","v":"Exner"},{"$f":"'Startovní listina'!D66","v":"Jakub"},{"$f":"'Startovní listina'!E66","v":1983},{"$f":"'Startovní listina'!F66","v":"P-Team"},"02:02:03"]
[{"$f":"IF('Výsledková listinadle kategorií'!D7<>\"\",A6+1,\"\")","v":3},3,{"$f":"'Startovní listina'!G40","v":"A"},{"$f":"'Startovní listina'!B40","v":36},{"$f":"'Startovní listina'!C40","v":"Nováček"},{"$f":"'Startovní listina'!D40","v":"Tomáš"},{"$f":"'Startovní listina'!E40","v":1983},{"$f":"'Startovní listina'!F40","v":"SDH Kamenná"},"02:06:25"]
[{"$f":"IF('Výsledková listinadle kategorií'!D10<>\"\",A7+1,\"\")","v":4},4,{"$f":"'Startovní listina'!G71","v":"A"},{"$f":"'Startovní listina'!B71","v":67},{"$f":"'Startovní listina'!C71","v":"Příhoda"},{"$f":"'Startovní listina'!D71","v":"Jan"},{"$f":"'Startovní listina'!E71","v":1983},{"$f":"'Startovní listina'!F71","v":"Ždánice"},"02:13:17"]
[{"$f":"IF('Výsledková listinadle kategorií'!D13<>\"\",A8+1,\"\")","v":5},5,{"$f":"'Startovní listina'!G53","v":"A"},{"$f":"'Startovní listina'!B53","v":49},{"$f":"'Startovní listina'!C53","v":"Glier"},{"$f":"'Startovní listina'!D53","v":"Michal"},{"$f":"'Startovní listina'!E53","v":1982},{"$f":"'Startovní listina'!F53","v":"SDH Doubravník"},"02:15:18"]
[{"$f":"IF('Výsledková listinadle kategorií'!D23<>\"\",A9+1,\"\")","v":6},6,{"$f":"'Startovní listina'!G8","v":"A"},{"$f":"'Startovní listina'!B8","v":4},{"$f":"'Startovní listina'!C8","v":"Kalich"},{"$f":"'Startovní listina'!D8","v":"Radim"},{"$f":"'Startovní listina'!E8","v":1985},{"$f":"'Startovní listina'!F8","v":"Odranec"},"02:29:01"]
[{"$f":"IF('Výsledková listinadle kategorií'!D28<>\"\",A10+1,\"\")","v":7},7,{"$f":"'Startovní listina'!G58","v":"A"},{"$f":"'Startovní listina'!B58","v":54},{"$f":"'Startovní listina'!C58","v":"Pavlásek"},{"$f":"'Startovní listina'!D58","v":"Michal"},{"$f":"'Startovní listina'!E58","v":1983},{"$f":"'Startovní listina'!F58","v":"Brno"},"02:35:40"]
[{"$f":"IF('Výsledková listinadle kategorií'!D29<>\"\",A11+1,\"\")","v":8},8,{"$f":"'Startovní listina'!G42","v":"A"},{"$f":"'Startovní listina'!B42","v":38},{"$f":"'Startovní listina'!C42","v":"Košek"},{"$f":"'Startovní listina'!D42","v":"Martin"},{"$f":"'Startovní listina'!E42","v":1984},{"$f":"'Startovní listina'!F42","v":"Brno"},"02:35:59"]
[{"$f":"IF('Výsledková listinadle kategorií'!D31<>\"\",A12+1,\"\")","v":9},9,{"$f":"'Startovní listina'!G36","v":"A"},{"$f":"'Startovní listina'!B36","v":32},{"$f":"'Startovní listina'!C36","v":"Sinkule"},{"$f":"'Startovní listina'!D36","v":"Pavel"},{"$f":"'Startovní listina'!E36","v":1981},{"$f":"'Startovní listina'!F36","v":"SRTG Brno"},"02:38:01"]
[{"$f":"IF('Výsledková listinadle kategorií'!D33<>\"\",A13+1,\"\")","v":10},10,{"$f":"'Startovní listina'!G37","v":"A"},{"$f":"'Startovní listina'!B37","v":33},{"$f":"'Startovní listina'!C37","v":"Komárek"},{"$f":"'Startovní listina'!D37","v":"Michal"},{"$f":"'Startovní listina'!E37","v":1981},{"$f":"'Startovní listina'!F37","v":"Bystřice nad Pernštejnem"},"02:39:54"]
[{"$f":"IF('Výsledková listinadle kategorií'!D38<>\"\",A14+1,\"\")","v":11},11,{"$f":"'Startovní listina'!G11","v":"A"},{"$f":"'Startovní listina'!B11","v":7},{"$f":"'Startovní listina'!C11","v":"Podsedník"},{"$f":"'Startovní listina'!D11","v":"Marek"},{"$f":"'Startovní listina'!E11","v":1985},{"$f":"'Startovní listina'!F11","v":"Brno"},"02:45:57"]
[{"$f":"IF('Výsledková listinadle kategorií'!D41<>\"\",A15+1,\"\")","v":12},12,{"$f":"'Startovní listina'!G27","v":"A"},{"$f":"'Startovní listina'!B27","v":23},{"$f":"'Startovní listina'!C27","v":"Koutský"},{"$f":"'Startovní listina'!D27","v":"Tomáš"},{"$f":"'Startovní listina'!E27","v":1987},{"$f":"'Startovní listina'!F27","v":"Ledová stěna Vír"},"02:48:37"]
[{"$f":"IF('Výsledková listinadle kategorií'!D42<>\"\",A16+1,\"\")","v":13},13,{"$f":"'Startovní listina'!G62","v":"A"},{"$f":"'Startovní listina'!B62","v":58},{"$f":"'Startovní listina'!C62","v":"Paleček"},{"$f":"'Startovní listina'!D62","v":"Miloš"},{"$f":"'Startovní listina'!E62","v":1985},{"$f":"'Startovní listina'!F62","v":"BIKEŘI ROVE"},"02:49:08"]
[{"$f":"IF('Výsledková listinadle kategorií'!D43<>\"\",A17+1,\"\")","v":14},14,{"$f":"'Startovní listina'!G23","v":"A"},{"$f":"'Startovní listina'!B23","v":19},{"$f":"'Startovní listina'!C23","v":"Pivec"},{"$f":"'Startovní listina'!D23","v":"Jan"},{"$f":"'Startovní listina'!E23","v":1981},{"$f":"'Startovní listina'!F23","v":"HAL3000"},"02:49:24"]
[{"$f":"IF('Výsledková listinadle kategorií'!D47<>\"\",A18+1,\"\")","v":15},15,{"$f":"'Startovní listina'!G28","v":"A"},{"$f":"'Startovní listina'!B28","v":24},{"$f":"'Startovní listina'!C28","v":"Skula"},{"$f":"'Startovní listina'!D28","v":"Miroslav"},{"$f":"'Startovní listina'!E28","v":1988},{"$f":"'Startovní listina'!F28","v":"SRTG Žďár nad Sázavou"},"02:52:41"]
[{"$f":"IF('Výsledková listinadle kategorií'!D51<>\"\",A19+1,\"\")","v":16},16,{"$f":"'Startovní listina'!G6","v":"A"},{"$f":"'Startovní listina'!B6","v":2},{"$f":"'Startovní listina'!C6","v":"Ptáček"},{"$f":"'Startovní listina'!D6","v":"Michal "},{"$f":"'Startovní listina'!E6","v":1986},{"$f":"'Startovní listina'!F6","v":" Hrdá Ves "},"03:03:27"]
[{"$f":"IF('Výsledková listinadle kategorií'!D52<>\"\",A20+1,\"\")","v":17},17,{"$f":"'Startovní listina'!G24","v":"A"},{"$f":"'Startovní listina'!B24","v":20},{"$f":"'Startovní listina'!C24","v":"Forýtek"},{"$f":"'Startovní listina'!D24","v":"Michal"},{"$f":"'Startovní listina'!E24","v":1982},{"$f":"'Startovní listina'!F24","v":"HAL3000"},"03:05:03"]
[{"$f":"IF('Výsledková listinadle kategorií'!D67<>\"\",A21+1,\"\")","v":18},18,{"$f":"'Startovní listina'!G20","v":"A"},{"$f":"'Startovní listina'!B20","v":16},{"$f":"'Startovní listina'!C20","v":"Král"},{"$f":"'Startovní listina'!D20","v":"Jan"},{"$f":"'Startovní listina'!E20","v":1981},{"$f":"'Startovní listina'!F20","v":"Brno"},"03:44:50"]
[67,null,{"$f":"'Startovní listina'!G18","v":"A"},{"$f":"'Startovní listina'!B18","v":14},{"$f":"'Startovní listina'!C18","v":"Juránek"},{"$f":"'Startovní listina'!D18","v":"Jakub"},{"$f":"'Startovní listina'!E18","v":1995},{"$f":"'Startovní listina'!F18","v":"S.U.P.I.  Martinice"},"DNF"]
[{"$f":"IF('Výsledková listinadle kategorií'!D6<>\"\",A23+1,\"\")","v":68},1,{"$f":"'Startovní listina'!G67","v":"B"},{"$f":"'Startovní listina'!B67","v":63},{"$f":"'Startovní listina'!C67","v":"Orálek"},{"$f":"'Startovní listina'!D67","v":"Daniel"},{"$f":"'Startovní listina'!E67","v":1970},{"$f":"'Startovní listina'!F67","v":"behejbrno.com"},"02:04:27"]
[{"$f":"IF('Výsledková listinadle kategorií'!D8<>\"\",A24+1,\"\")","v":69},2,{"$f":"'Startovní listina'!G47","v":"B"},{"$f":"'Startovní listina'!B47","v":43},{"$f":"'Startovní listina'!C47","v":"Kocur"},{"$f":"'Startovní listina'!D47","v":"Lukáš"},{"$f":"'Startovní listina'!E47","v":1977},{"$f":"'Startovní listina'!F47","v":"Orel Šitbořice"},"02:10:30"]
[{"$f":"IF('Výsledková listinadle kategorií'!D9<>\"\",A25+1,\"\")","v":70},3,{"$f":"'Startovní listina'!G34","v":"B"},{"$f":"'Startovní listina'!B34","v":30},{"$f":"'Startovní listina'!C34","v":"Vintrlík"},{"$f":"'Startovní listina'!D34","v":"Martin"},{"$f":"'Startovní listina'!E34","v":1977},{"$f":"'Startovní listina'!F34","v":"Triatlon křepice"},"02:12:21"]
[{"$f":"IF('Výsledková listinadle kategorií'!D12<>\"\",A26+1,\"\")","v":71},4,{"$f":"'Startovní listina'!G63","v":"B"},{"$f":"'Startovní listina'!B63","v":59},{"$f":"'Startovní listina'!C63","v":"Pokorný"},{"$f":"'Startovní listina'!D63","v":"Václav"},{"$f":"'Startovní listina'!E63","v":1978},{"$f":"'Startovní listina'!F63","v":"Brno"},"02:14:28"]
[{"$f":"IF('Výsledková listinadle kategorií'!D15<>\"\",A27+1,\"\")","v":72},5,{"$f":"'Startovní listina'!G29","v":"B"},{"$f":"'Startovní listina'!B29","v":25},{"$f":"'Startovní listina'!C29","v":"Klíma"},{"$f":"'Startovní listina'!D29","v":"Miroslav"},{"$f":"'Startovní listina'!E29","v":1975},{"$f":"'Startovní listina'!F29","v":"Emanovy červené trenýrky Brno"},"02:19:10"]
[{"$f":"IF('Výsledková listinadle kategorií'!D17<>\"\",A28+1,\"\")","v":73},6,{"$f":"'Startovní listina'!G10","v":"B"},{"$f":"'Startovní listina'!B10","v":6},{"$f":"'Startovní listina'!C10","v":"Šerák"},{"$f":"'Startovní listina'!D10","v":"Martin"},{"$f":"'Startovní listina'!E10","v":1978},{"$f":"'Startovní listina'!F10","v":"Liga 100 Olomouc"},"02:19:41"]
[{"$f":"IF('Výsledková listinadle kategorií'!D18<>\"\",A29+1,\"\")","v":74},7,{"$f":"'Startovní listina'!G69","v":"B"},{"$f":"'Startovní listina'!B69","v":65},{"$f":"'Startovní listina'!C69","v":"Konečný"},{"$f":"'Startovní listina'!D69","v":"Libor"},{"$f":"'Startovní listina'!E69","v":1971},{"$f":"'Startovní listina'!F69","v":"Kuřim"},"02:20:00"]
[{"$f":"IF('Výsledková listinadle kategorií'!D20<>\"\",A30+1,\"\")","v":75},8,{"$f":"'Startovní listina'!G44","v":"B"},{"$f":"'Startovní listina'!B44","v":40},{"$f":"'Startovní listina'!C44","v":"Viščor"},{"$f":"'Startovní listina'!D44","v":"Pavel"},{"$f":"'Startovní listina'!E44","v":1974},{"$f":"'Startovní listina'!F44","v":"Brno"},"02:20:38"]
[{"$f":"IF('Výsledková listinadle kategorií'!D21<>\"\",A31+1,\"\")","v":76},9,{"$f":"'Startovní listina'!G14","v":"B"},{"$f":"'Startovní listina'!B14","v":10},{"$f":"'Startovní listina'!C14","v":"Kopečný"},{"$f":"'Startovní listina'!D14","v":"Dušan"},{"$f":"'Startovní listina'!E14","v":1973},{"$f":"'Startovní listina'!F14","v":"Liga 100 Olomouc"},"02:21:19"]
[{"$f":"IF('Výsledková listinadle kategorií'!D25<>\"\",A32+1,\"\")","v":77},10,{"$f":"'Startovní listina'!G68","v":"B"},{"$f":"'Startovní listina'!B68","v":64},{"$f":"'Startovní listina'!C68","v":"Kratochvíl"},{"$f":"'Startovní listina'!D68","v":"Jaroslav"},{"$f":"'Startovní listina'!E68","v":1977},{"$f":"'Startovní listina'!F68","v":"SDH Hluboké"},"02:32:26"]
[{"$f":"IF('Výsledková listinadle kategorií'!D26<>\"\",A33+1,\"\")","v":78},11,{"$f":"'Startovní listina'!G43","v":"B"},{"$f":"'Startovní listina'!B43","v":39},{"$f":"'Startovní listina'!C43","v":"Řezníček"},{"$f":"'Startovní listina'!D43","v":"Petr"},{"$f":"'Startovní listina'!E43","v":1973},{"$f":"'Startovní listina'!F43","v":"Polnička"},"02:33:52"]
[{"$f":"IF('Výsledková listinadle kategorií'!D32<>\"\",A34+1,\"\")","v":79},12,{"$f":"'Startovní listina'!G31","v":"B"},{"$f":"'Startovní listina'!B31","v":27},{"$f":"'Startovní listina'!C31","v":"Fanfrdla"},{"$f":"'Startovní listina'!D31","v":"Dalimil"},{"$f":"'Startovní listina'!E31","v":1973},{"$f":"'Startovní listina'!F31","v":"Matyteam Brno"},"02:38:52"]
[{"$f":"IF('Výsledková listinadle kategorií'!D40<>\"\",A35+1,\"\")","v":80},13,{"$f":"'Startovní listina'!G56","v":"B"},{"$f":"'Startovní listina'!B56","v":52},{"$f":"'Startovní listina'!C56","v":"Lorenčík"},{"$f":"'Startovní listina'!D56","v":"Aleš"},{"$f":"'Startovní listina'!E56","v":1973},{"$f":"'Startovní listina'!F56","v":"Chrudim"},"02:47:42"]
[{"$f":"IF('Výsledková listinadle kategorií'!D44<>\"\",A36+1,\"\")","v":81},14,{"$f":"'Startovní listina'!G45","v":"B"},{"$f":"'Startovní listina'!B45","v":41},{"$f":"'Startovní listina'!C45","v":"Žličař"},{"$f":"'Startovní listina'!D45","v":"Karel"},{"$f":"'Startovní listina'!E45","v":1977},{"$f":"'Startovní listina'!F45","v":"Železárny Štěpánov"},"02:50:47"]
[{"$f":"IF('Výsledková listinadle kategorií'!D49<>\"\",A37+1,\"\")","v":82},15,{"$f":"'Startovní listina'!G51","v":"B"},{"$f":"'Startovní listina'!B51","v":47},{"$f":"'Startovní listina'!C51","v":"Fric"},{"$f":"'Startovní listina'!D51","v":"Petr"},{"$f":"'Startovní listina'!E51","v":1970},{"$f":"'Startovní listina'!F51","v":"Bystré"},"03:00:44"]
[{"$f":"IF('Výsledková listinadle kategorií'!D54<>\"\",A38+1,\"\")","v":83},16,{"$f":"'Startovní listina'!G60","v":"B"},{"$f":"'Startovní listina'!B60","v":56},{"$f":"'Startovní listina'!C60","v":"Benc"},{"$f":"'Startovní listina'!D60","v":"Karel"},{"$f":"'Startovní listina'!E60","v":1975},{"$f":"'Startovní listina'!F60","v":"Pivonice"},"03:07:47"]
[{"$f":"IF('Výsledková listinadle kategorií'!D55<>\"\",A39+1,\"\")","v":84},17,{"$f":"'Startovní listina'!G33","v":"B"},{"$f":"'Startovní listina'!B33","v":29},{"$f":"'Startovní listina'!C33","v":"Dvořák"},{"$f":"'Startovní listina'!D33","v":"Vojtěch"},{"$f":"'Startovní listina'!E33","v":1975},{"$f":"'Startovní listina'!F33","v":"Brno"},"03:08:01"]
[{"$f":"IF('Výsledková listinadle kategorií'!D57<>\"\",A40+1,\"\")","v":85},18,{"$f":"'Startovní listina'!G64","v":"B"},{"$f":"'Startovní listina'!B64","v":60},{"$f":"'Startovní listina'!C64","v":"Tyleček"},{"$f":"'Startovní listina'!D64","v":"Pavel"},{"$f":"'Startovní listina'!E64","v":1973},{"$f":"'Startovní listina'!F64","v":"Jundrováci"},"03:14:16"]
[{"$f":"IF('Výsledková listinadle kategorií'!D62<>\"\",A41+1,\"\")","v":86},19,{"$f":"'Startovní listina'!G26","v":"B"},{"$f":"'Startovní listina'!B26","v":22},{"$f":"'Startovní listina'!C26","v":"Faja"},{"$f":"'Startovní listina'!D26","v":"Ondřej"},{"$f":"'Startovní listina'!E26","v":1976},{"$f":"'Startovní listina'!F26","v":"Brno"},"03:25:14"]
[{"$f":"IF('Výsledková listinadle kategorií'!D11<>\"\",A42+1,\"\")","v":87},1,{"$f":"'Startovní listina'!G50","v":"C"},{"$f":"'Startovní listina'!B50","v":46},{"$f":"'Startovní listina'!C50","v":"Dvořáček"},{"$f":"'Startovní listina'!D50","v":"Jiří"},{"$f":"'Startovní listina'!E50","v":1968},{"$f":"'Startovní listina'!F50","v":"Univerzita Brno"},"02:13:30"]
[{"$f":"IF('Výsledková listinadle kategorií'!D14<>\"\",A43+1,\"\")","v":88},2,{"$f":"'Startovní listina'!G41","v":"C"},{"$f":"'Startovní listina'!B41","v":37},{"$f":"'Startovní listina'!C41","v":"Svoboda"},{"$f":"'Startovní listina'!D41","v":"Petr"},{"$f":"'Startovní listina'!E41","v":1968},{"$f":"'Startovní listina'!F41","v":"AC Moravská Slavia Brno"},"02:18:52"]
[{"$f":"IF('Výsledková listinadle kategorií'!D19<>\"\",A44+1,\"\")","v":89},3,{"$f":"'Startovní listina'!G39","v":"C"},{"$f":"'Startovní listina'!B39","v":35},{"$f":"'Startovní listina'!C39","v":"Hýbl"},{"$f":"'Startovní listina'!D39","v":"Jiří"},{"$f":"'Startovní listina'!E39","v":1967},{"$f":"'Startovní listina'!F39","v":"Hrušovany u Brna"},"02:20:26"]
[{"$f":"IF('Výsledková listinadle kategorií'!D22<>\"\",A45+1,\"\")","v":90},4,{"$f":"'Startovní listina'!G38","v":"C"},{"$f":"'Startovní listina'!B38","v":34},{"$f":"'Startovní listina'!C38","v":"Šimunek"},{"$f":"'Startovní listina'!D38","v":"Martin"},{"$f":"'Startovní listina'!E38","v":1966},{"$f":"'Startovní listina'!F38","v":"Botanka Running Modřice"},"02:21:57"]
[{"$f":"IF('Výsledková listinadle kategorií'!D50<>\"\",A46+1,\"\")","v":91},5,{"$f":"'Startovní listina'!G61","v":"C"},{"$f":"'Startovní listina'!B61","v":57},{"$f":"'Startovní listina'!C61","v":"Kříž"},{"$f":"'Startovní listina'!D61","v":"Miloslav"},{"$f":"'Startovní listina'!E61","v":1961},{"$f":"'Startovní listina'!F61","v":"Aspire Dobrochov"},"03:01:52"]
[{"$f":"IF('Výsledková listinadle kategorií'!D56<>\"\",A47+1,\"\")","v":92},6,{"$f":"'Startovní listina'!G21","v":"C"},{"$f":"'Startovní listina'!B21","v":17},{"$f":"'Startovní listina'!C21","v":"Bečička"},{"$f":"'Startovní listina'!D21","v":"Petr"},{"$f":"'Startovní listina'!E21","v":1960},{"$f":"'Startovní listina'!F21","v":"HAL3000"},"03:10:49"]
[{"$f":"IF('Výsledková listinadle kategorií'!D59<>\"\",A48+1,\"\")","v":93},7,{"$f":"'Startovní listina'!G17","v":"C"},{"$f":"'Startovní listina'!B17","v":13},{"$f":"'Startovní listina'!C17","v":"Kresta"},{"$f":"'Startovní listina'!D17","v":"Roman"},{"$f":"'Startovní listina'!E17","v":1965},{"$f":"'Startovní listina'!F17","v":"Orel Židenice"},"03:20:53"]
[{"$f":"IF('Výsledková listinadle kategorií'!D66<>\"\",A49+1,\"\")","v":94},8,{"$f":"'Startovní listina'!G70","v":"C"},{"$f":"'Startovní listina'!B70","v":66},{"$f":"'Startovní listina'!C70","v":"Zourek"},{"$f":"'Startovní listina'!D70","v":"Karel"},{"$f":"'Startovní listina'!E70","v":1959},{"$f":"'Startovní listina'!F70","v":"Bedřichovice"},"03:38:04"]
[{"$f":"IF('Výsledková listinadle kategorií'!D30<>\"\",A50+1,\"\")","v":95},1,{"$f":"'Startovní listina'!G19","v":"D"},{"$f":"'Startovní listina'!B19","v":15},{"$f":"'Startovní listina'!C19","v":"Bělehrádek"},{"$f":"'Startovní listina'!D19","v":"Pavel"},{"$f":"'Startovní listina'!E19","v":1958},{"$f":"'Startovní listina'!F19","v":"TJ ČOLEK"},"02:37:32"]
[{"$f":"IF('Výsledková listinadle kategorií'!D37<>\"\",A51+1,\"\")","v":96},2,{"$f":"'Startovní listina'!G54","v":"D"},{"$f":"'Startovní listina'!B54","v":50},{"$f":"'Startovní listina'!C54","v":"Král"},{"$f":"'Startovní listina'!D54","v":"Josef"},{"$f":"'Startovní listina'!E54","v":1958},{"$f":"'Startovní listina'!F54","v":"SDH Bystré"},"02:45:17"]
[{"$f":"IF('Výsledková listinadle kategorií'!D53<>\"\",A52+1,\"\")","v":97},3,{"$f":"'Startovní listina'!G46","v":"D"},{"$f":"'Startovní listina'!B46","v":42},{"$f":"'Startovní listina'!C46","v":"Mareš"},{"$f":"'Startovní listina'!D46","v":"Bohumil"},{"$f":"'Startovní listina'!E46","v":1951},{"$f":"'Startovní listina'!F46","v":"Posilovna Průvan Brno"},"03:06:55"]
[{"$f":"IF('Výsledková listinadle kategorií'!D60<>\"\",A53+1,\"\")","v":98},4,{"$f":"'Startovní listina'!G16","v":"D"},{"$f":"'Startovní listina'!B16","v":12},{"$f":"'Startovní listina'!C16","v":"Zejda"},{"$f":"'Startovní listina'!D16","v":"Ivo"},{"$f":"'Startovní listina'!E16","v":1958},{"$f":"'Startovní listina'!F16","v":"AC Moravská Slavia Brno"},"03:21:18"]
[{"$f":"IF('Výsledková listinadle kategorií'!D69<>\"\",A54+1,\"\")","v":99},1,{"$f":"'Startovní listina'!G15","v":"E"},{"$f":"'Startovní listina'!B15","v":11},{"$f":"'Startovní listina'!C15","v":"Holý"},{"$f":"'Startovní listina'!D15","v":"Josef"},{"$f":"'Startovní listina'!E15","v":1941},{"$f":"'Startovní listina'!F15","v":"AC Moravská Slavia Brno"},"04:22:58"]
[{"$f":"IF('Výsledková listinadle kategorií'!D16<>\"\",A55+1,\"\")","v":100},1,{"$f":"'Startovní listina'!G35","v":"F"},{"$f":"'Startovní listina'!B35","v":31},{"$f":"'Startovní listina'!C35","v":"Pešáková"},{"$f":"'Startovní listina'!D35","v":"Mirka"},{"$f":"'Startovní listina'!E35","v":1985},{"$f":"'Startovní listina'!F35","v":"AC RACERS, Tetčice"},"02:19:28"]
[{"$f":"IF('Výsledková listinadle kategorií'!D24<>\"\",A56+1,\"\")","v":101},2,{"$f":"'Startovní listina'!G30","v":"F"},{"$f":"'Startovní listina'!B30","v":26},{"$f":"'Startovní listina'!C30","v":"Bartoňková"},{"$f":"'Startovní listina'!D30","v":"Nina"},{"$f":"'Startovní listina'!E30","v":1990},{"$f":"'Startovní listina'!F30","v":"AK Drnovice"},"02:31:47"]
[{"$f":"IF('Výsledková listinadle kategorií'!D27<>\"\",A57+1,\"\")","v":102},3,{"$f":"'Startovní listina'!G48","v":"F"},{"$f":"'Startovní listina'!B48","v":44},{"$f":"'Startovní listina'!C48","v":"Johaníková"},{"$f":"'Startovní listina'!D48","v":"Lucie"},{"$f":"'Startovní listina'!E48","v":1986},{"$f":"'Startovní listina'!F48","v":"AC Moravská Slavia Brno"},"02:34:08"]
[{"$f":"IF('Výsledková listinadle kategorií'!D39<>\"\",A58+1,\"\")","v":103},4,{"$f":"'Startovní listina'!G25","v":"F"},{"$f":"'Startovní listina'!B25","v":21},{"$f":"'Startovní listina'!C25","v":"Trefilová"},{"$f":"'Startovní listina'!D25","v":"Ester"},{"$f":"'Startovní listina'!E25","v":1993},{"$f":"'Startovní listina'!F25","v":"Vír"},"02:46:41"]
[{"$f":"IF('Výsledková listinadle kategorií'!D45<>\"\",A59+1,\"\")","v":104},5,{"$f":"'Startovní listina'!G55","v":"F"},{"$f":"'Startovní listina'!B55","v":51},{"$f":"'Startovní listina'!C55","v":"Vondrová"},{"$f":"'Startovní listina'!D55","v":"Ludmila"},{"$f":"'Startovní listina'!E55","v":1986},{"$f":"'Startovní listina'!F55","v":"Dalečín"},"02:52:05"]
[{"$f":"IF('Výsledková listinadle kategorií'!D48<>\"\",A60+1,\"\")","v":105},6,{"$f":"'Startovní listina'!G52","v":"F"},{"$f":"'Startovní listina'!B52","v":48},{"$f":"'Startovní listina'!C52","v":"Glierová"},{"$f":"'Startovní listina'!D52","v":"Renata"},{"$f":"'Startovní listina'!E52","v":1985},{"$f":"'Startovní listina'!F52","v":"SDH Doubravník"},"02:53:08"]
[{"$f":"IF('Výsledková listinadle kategorií'!D63<>\"\",A61+1,\"\")","v":106},7,{"$f":"'Startovní listina'!G59","v":"F"},{"$f":"'Startovní listina'!B59","v":55},{"$f":"'Startovní listina'!C59","v":"Jamrichová"},{"$f":"'Startovní listina'!D59","v":"Kristina"},{"$f":"'Startovní listina'!E59","v":1987},{"$f":"'Startovní listina'!F59","v":"Brno"},"03:25:40"]
[{"$f":"IF('Výsledková listinadle kategorií'!D34<>\"\",A62+1,\"\")","v":107},1,{"$f":"'Startovní listina'!G5","v":"G"},{"$f":"'Startovní listina'!B5","v":1},{"$f":"'Startovní listina'!C5","v":"Komárková"},{"$f":"'Startovní listina'!D5","v":"Zdeňka"},{"$f":"'Startovní listina'!E5","v":1974},{"$f":"'Startovní listina'!F5","v":"SDH Bolešín"},"02:41:14"]
[{"$f":"IF('Výsledková listinadle kategorií'!D36<>\"\",A63+1,\"\")","v":108},2,{"$f":"'Startovní listina'!G7","v":"G"},{"$f":"'Startovní listina'!B7","v":3},{"$f":"'Startovní listina'!C7","v":"Mlčáková"},{"$f":"'Startovní listina'!D7","v":"Hana"},{"$f":"'Startovní listina'!E7","v":1981},{"$f":"'Startovní listina'!F7","v":"Strážnice"},"02:44:34"]
[{"$f":"IF('Výsledková listinadle kategorií'!D46<>\"\",A64+1,\"\")","v":109},3,{"$f":"'Startovní listina'!G57","v":"G"},{"$f":"'Startovní listina'!B57","v":53},{"$f":"'Startovní listina'!C57","v":"Kuncová"},{"$f":"'Startovní listina'!D57","v":"Markéta"},{"$f":"'Startovní listina'!E57","v":1982},{"$f":"'Startovní listina'!F57","v":"Rožná"},"02:52:06"]
[{"$f":"IF('Výsledková listinadle kategorií'!D58<>\"\",A65+1,\"\")","v":110},4,{"$f":"'Startovní listina'!G12","v":"G"},{"$f":"'Startovní listina'!B12","v":8},{"$f":"'Startovní listina'!C12","v":"Pichová"},{"$f":"'Startovní listina'!D12","v":"Dagmar"},{"$f":"'Startovní listina'!E12","v":1977},{"$f":"'Startovní listina'!F12","v":"Brno"},"03:14:28"]
[{"$f":"IF('Výsledková listinadle kategorií'!D61<>\"\",A66+1,\"\")","v":111},5,{"$f":"'Startovní listina'!G22","v":"G"},{"$f":"'Startovní listina'!B22","v":18},{"$f":"'Startovní listina'!C22","v":"Dostálová"},{"$f":"'Startovní listina'!D22","v":"Vendula"},{"$f":"'Startovní listina'!E22","v":1981},{"$f":"'Startovní listina'!F22","v":"HAL3000"},"03:24:03"]
[{"$f":"IF('Výsledková listinadle kategorií'!D64<>\"\",A67+1,\"\")","v":112},6,{"$f":"'Startovní listina'!G9","v":"G"},{"$f":"'Startovní listina'!B9","v":5},{"$f":"'Startovní listina'!C9","v":"Ježová"},{"$f":"'Startovní listina'!D9","v":"Martina"},{"$f":"'Startovní listina'!E9","v":1975},{"$f":"'Startovní listina'!F9","v":"Brno"},"03:30:58"]
[{"$f":"IF('Výsledková listinadle kategorií'!D35<>\"\",A68+1,\"\")","v":113},1,{"$f":"'Startovní listina'!G32","v":"H"},{"$f":"'Startovní listina'!B32","v":28},{"$f":"'Startovní listina'!C32","v":"Hanslová"},{"$f":"'Startovní listina'!D32","v":"Lenka"},{"$f":"'Startovní listina'!E32","v":1973},{"$f":"'Startovní listina'!F32","v":"Žďár nad Sázavou"},"02:42:56"]
[{"$f":"IF('Výsledková listinadle kategorií'!D65<>\"\",A69+1,\"\")","v":114},2,{"$f":"'Startovní listina'!G13","v":"H"},{"$f":"'Startovní listina'!B13","v":9},{"$f":"'Startovní listina'!C13","v":"Tesařová"},{"$f":"'Startovní listina'!D13","v":"Marie"},{"$f":"'Startovní listina'!E13","v":1954},{"$f":"'Startovní listina'!F13","v":"Křižanov"},"03:31:28"]
[{"$f":"IF('Výsledková listinadle kategorií'!D68<>\"\",A70+1,\"\")","v":115},3,{"$f":"'Startovní listina'!G65","v":"H"},{"$f":"'Startovní listina'!B65","v":61},{"$f":"'Startovní listina'!C65","v":"Podmelová"},{"$f":"'Startovní listina'!D65","v":"Vilma"},{"$f":"'Startovní listina'!E65","v":1962},{"$f":"'Startovní listina'!F65","v":"AC Moravská Slavia Brno"},"03:48:57"]
[{"$f":"IF('Výsledková listinadle kategorií'!D71<>\"\",A71+1,\"\")","v":116},null,{"$f":"'Startovní listina'!G72","v":""},{"$f":"'Startovní listina'!B72","v":""},{"$f":"'Startovní listina'!C72","v":""},{"$f":"'Startovní listina'!D72","v":""},{"$f":"'Startovní listina'!E72","v":""},{"$f":"'Startovní listina'!F72","v":""}]
[{"$f":"IF('Výsledková listinadle kategorií'!D72<>\"\",A72+1,\"\")","v":""},null,{"$f":"'Startovní listina'!G73","v":""},{"$f":"'Startovní listina'!B73","v":""},{"$f":"'Startovní listina'!C73","v":""},{"$f":"'Startovní listina'!D73","v":""},{"$f":"'Startovní listina'!E73","v":""},{"$f":"'Startovní listina'!F73","v":""}]
[{"$f":"IF('Výsledková listinadle kategorií'!D73<>\"\",A73+1,\"\")","v":""},null,{"$f":"'Startovní listina'!G74","v":""},{"$f":"'Startovní listina'!B74","v":""},{"$f":"'Startovní listina'!C74","v":""},{"$f":"'Startovní listina'!D74","v":""},{"$f":"'Startovní listina'!E74","v":""},{"$f":"'Startovní listina'!F74","v":""}]
[{"$f":"IF('Výsledková listinadle kategorií'!D74<>\"\",A74+1,\"\")","v":""},null,{"$f":"'Startovní listina'!G75","v":""},{"$f":"'Startovní listina'!B75","v":""},{"$f":"'Startovní listina'!C75","v":""},{"$f":"'Startovní listina'!D75","v":""},{"$f":"'Startovní listina'!E75","v":""},{"$f":"'Startovní listina'!F75","v":""}]
[{"$f":"IF('Výsledková listinadle kategorií'!D75<>\"\",A75+1,\"\")","v":""},null,{"$f":"'Startovní listina'!G76","v":""},{"$f":"'Startovní listina'!B76","v":""},{"$f":"'Startovní listina'!C76","v":""},{"$f":"'Startovní listina'!D76","v":""},{"$f":"'Startovní listina'!E76","v":""},{"$f":"'Startovní listina'!F76","v":""}]
[{"$f":"IF('Výsledková listinadle kategorií'!D76<>\"\",A76+1,\"\")","v":""},null,{"$f":"'Startovní listina'!G77","v":""},{"$f":"'Startovní listina'!B77","v":""},{"$f":"'Startovní listina'!C77","v":""},{"$f":"'Startovní listina'!D77","v":""},{"$f":"'Startovní listina'!E77","v":""},{"$f":"'Startovní listina'!F77","v":""}]
[{"$f":"IF('Výsledková listinadle kategorií'!D77<>\"\",A77+1,\"\")","v":""},null,{"$f":"'Startovní listina'!G78","v":""},{"$f":"'Startovní listina'!B78","v":""},{"$f":"'Startovní listina'!C78","v":""},{"$f":"'Startovní listina'!D78","v":""},{"$f":"'Startovní listina'!E78","v":""},{"$f":"'Startovní listina'!F78","v":""}]
[{"$f":"IF('Výsledková listinadle kategorií'!D78<>\"\",A78+1,\"\")","v":""},null,{"$f":"'Startovní listina'!G79","v":""},{"$f":"'Startovní listina'!B79","v":""},{"$f":"'Startovní listina'!C79","v":""},{"$f":"'Startovní listina'!D79","v":""},{"$f":"'Startovní listina'!E79","v":""},{"$f":"'Startovní listina'!F79","v":""}]
[{"$f":"IF('Výsledková listinadle kategorií'!D79<>\"\",A79+1,\"\")","v":""},null,{"$f":"'Startovní listina'!G80","v":""},{"$f":"'Startovní listina'!B80","v":""},{"$f":"'Startovní listina'!C80","v":""},{"$f":"'Startovní listina'!D80","v":""},{"$f":"'Startovní listina'!E80","v":""},{"$f":"'Startovní listina'!F80","v":""}]
[{"$f":"IF('Výsledková listinadle kategorií'!D80<>\"\",A80+1,\"\")","v":""},null,{"$f":"'Startovní listina'!G81","v":""},{"$f":"'Startovní listina'!B81","v":""},{"$f":"'Startovní listina'!C81","v":""},{"$f":"'Startovní listina'!D81","v":""},{"$f":"'Startovní listina'!E81","v":""},{"$f":"'Startovní listina'!F81","v":""}]
[{"$f":"IF('Výsledková listinadle kategorií'!D81<>\"\",A81+1,\"\")","v":""},null,{"$f":"'Startovní listina'!G82","v":""},{"$f":"'Startovní listina'!B82","v":""},{"$f":"'Startovní listina'!C82","v":""},{"$f":"'Startovní listina'!D82","v":""},{"$f":"'Startovní listina'!E82","v":""},{"$f":"'Startovní listina'!F82","v":""}]
[{"$f":"IF('Výsledková listinadle kategorií'!D82<>\"\",A82+1,\"\")","v":""},null,{"$f":"'Startovní listina'!G83","v":""},{"$f":"'Startovní listina'!B83","v":""},{"$f":"'Startovní listina'!C83","v":""},{"$f":"'Startovní listina'!D83","v":""},{"$f":"'Startovní listina'!E83","v":""},{"$f":"'Startovní listina'!F83","v":""}]
[{"$f":"IF('Výsledková listinadle kategorií'!D83<>\"\",A83+1,\"\")","v":""},null,{"$f":"'Startovní listina'!G84","v":""},{"$f":"'Startovní listina'!B84","v":""},{"$f":"'Startovní listina'!C84","v":""},{"$f":"'Startovní listina'!D84","v":""},{"$f":"'Startovní listina'!E84","v":""},{"$f":"'Startovní listina'!F84","v":""}]
[{"$f":"IF('Výsledková listinadle kategorií'!D84<>\"\",A84+1,\"\")","v":""},null,{"$f":"'Startovní listina'!G85","v":""},{"$f":"'Startovní listina'!B85","v":""},{"$f":"'Startovní listina'!C85","v":""},{"$f":"'Startovní listina'!D85","v":""},{"$f":"'Startovní listina'!E85","v":""},{"$f":"'Startovní listina'!F85","v":""}]
[{"$f":"IF('Výsledková listinadle kategorií'!D85<>\"\",A85+1,\"\")","v":""},null,{"$f":"'Startovní listina'!G86","v":""},{"$f":"'Startovní listina'!B86","v":""},{"$f":"'Startovní listina'!C86","v":""},{"$f":"'Startovní listina'!D86","v":""},{"$f":"'Startovní listina'!E86","v":""},{"$f":"'Startovní listina'!F86","v":""}]
[{"$f":"IF('Výsledková listinadle kategorií'!D86<>\"\",A86+1,\"\")","v":""},null,{"$f":"'Startovní listina'!G87","v":""},{"$f":"'Startovní listina'!B87","v":""},{"$f":"'Startovní listina'!C87","v":""},{"$f":"'Startovní listina'!D87","v":""},{"$f":"'Startovní listina'!E87","v":""},{"$f":"'Startovní listina'!F87","v":""}]
[{"$f":"IF('Výsledková listinadle kategorií'!D87<>\"\",A87+1,\"\")","v":""},null,{"$f":"'Startovní listina'!G88","v":""},{"$f":"'Startovní listina'!B88","v":""},{"$f":"'Startovní listina'!C88","v":""},{"$f":"'Startovní listina'!D88","v":""},{"$f":"'Startovní listina'!E88","v":""},{"$f":"'Startovní listina'!F88","v":""}]
[{"$f":"IF('Výsledková listinadle kategorií'!D88<>\"\",A88+1,\"\")","v":""},null,{"$f":"'Startovní listina'!G89","v":""},{"$f":"'Startovní listina'!B89","v":""},{"$f":"'Startovní listina'!C89","v":""},{"$f":"'Startovní listina'!D89","v":""},{"$f":"'Startovní listina'!E89","v":""},{"$f":"'Startovní listina'!F89","v":""}]
[{"$f":"IF('Výsledková listinadle kategorií'!D89<>\"\",A89+1,\"\")","v":""},null,{"$f":"'Startovní listina'!G90","v":""},{"$f":"'Startovní listina'!B90","v":""},{"$f":"'Startovní listina'!C90","v":""},{"$f":"'Startovní listina'!D90","v":""},{"$f":"'Startovní listina'!E90","v":""},{"$f":"'Startovní listina'!F90","v":""}]
[{"$f":"IF('Výsledková listinadle kategorií'!D90<>\"\",A90+1,\"\")","v":""},null,{"$f":"'Startovní listina'!G91","v":""},{"$f":"'Startovní listina'!B91","v":""},{"$f":"'Startovní listina'!C91","v":""},{"$f":"'Startovní listina'!D91","v":""},{"$f":"'Startovní listina'!E91","v":""},{"$f":"'Startovní listina'!F91","v":""}]
[{"$f":"IF('Výsledková listinadle kategorií'!D91<>\"\",A91+1,\"\")","v":""},null,{"$f":"'Startovní listina'!G92","v":""},{"$f":"'Startovní listina'!B92","v":""},{"$f":"'Startovní listina'!C92","v":""},{"$f":"'Startovní listina'!D92","v":""},{"$f":"'Startovní listina'!E92","v":""},{"$f":"'Startovní listina'!F92","v":""}]
[{"$f":"IF('Výsledková listinadle kategorií'!D92<>\"\",A92+1,\"\")","v":""},null,{"$f":"'Startovní listina'!G93","v":""},{"$f":"'Startovní listina'!B93","v":""},{"$f":"'Startovní listina'!C93","v":""},{"$f":"'Startovní listina'!D93","v":""},{"$f":"'Startovní listina'!E93","v":""},{"$f":"'Startovní listina'!F93","v":""}]
[{"$f":"IF('Výsledková listinadle kategorií'!D93<>\"\",A93+1,\"\")","v":""},null,{"$f":"'Startovní listina'!G94","v":""},{"$f":"'Startovní listina'!B94","v":""},{"$f":"'Startovní listina'!C94","v":""},{"$f":"'Startovní listina'!D94","v":""},{"$f":"'Startovní listina'!E94","v":""},{"$f":"'Startovní listina'!F94","v":""}]
[{"$f":"IF('Výsledková listinadle kategorií'!D94<>\"\",A94+1,\"\")","v":""},null,{"$f":"'Startovní listina'!G95","v":""},{"$f":"'Startovní listina'!B95","v":""},{"$f":"'Startovní listina'!C95","v":""},{"$f":"'Startovní listina'!D95","v":""},{"$f":"'Startovní listina'!E95","v":""},{"$f":"'Startovní listina'!F95","v":""}]
[{"$f":"IF('Výsledková listinadle kategorií'!D95<>\"\",A95+1,\"\")","v":""},null,{"$f":"'Startovní listina'!G96","v":""},{"$f":"'Startovní listina'!B96","v":""},{"$f":"'Startovní listina'!C96","v":""},{"$f":"'Startovní listina'!D96","v":""},{"$f":"'Startovní listina'!E96","v":""},{"$f":"'Startovní listina'!F96","v":""}]
[{"$f":"IF('Výsledková listinadle kategorií'!D96<>\"\",A96+1,\"\")","v":""},null,{"$f":"'Startovní listina'!G97","v":""},{"$f":"'Startovní listina'!B97","v":""},{"$f":"'Startovní listina'!C97","v":""},{"$f":"'Startovní listina'!D97","v":""},{"$f":"'Startovní listina'!E97","v":""},{"$f":"'Startovní listina'!F97","v":""}]
[{"$f":"IF('Výsledková listinadle kategorií'!D97<>\"\",A97+1,\"\")","v":""},null,{"$f":"'Startovní listina'!G98","v":""},{"$f":"'Startovní listina'!B98","v":""},{"$f":"'Startovní listina'!C98","v":""},{"$f":"'Startovní listina'!D98","v":""},{"$f":"'Startovní listina'!E98","v":""},{"$f":"'Startovní listina'!F98","v":""}]
[{"$f":"IF('Výsledková listinadle kategorií'!D98<>\"\",A98+1,\"\")","v":""},null,{"$f":"'Startovní listina'!G99","v":""},{"$f":"'Startovní listina'!B99","v":""},{"$f":"'Startovní listina'!C99","v":""},{"$f":"'Startovní listina'!D99","v":""},{"$f":"'Startovní listina'!E99","v":""},{"$f":"'Startovní listina'!F99","v":""}]
[{"$f":"IF('Výsledková listinadle kategorií'!D99<>\"\",A99+1,\"\")","v":""},null,{"$f":"'Startovní listina'!G100","v":""},{"$f":"'Startovní listina'!B100","v":""},{"$f":"'Startovní listina'!C100","v":""},{"$f":"'Startovní listina'!D100","v":""},{"$f":"'Startovní listina'!E100","v":""},{"$f":"'Startovní listina'!F100","v":""}]
[{"$f":"IF('Výsledková listinadle kategorií'!D100<>\"\",A100+1,\"\")","v":""},null,{"$f":"'Startovní listina'!G101","v":""},{"$f":"'Startovní listina'!B101","v":""},{"$f":"'Startovní listina'!C101","v":""},{"$f":"'Startovní listina'!D101","v":""},{"$f":"'Startovní listina'!E101","v":""},{"$f":"'Startovní listina'!F101","v":""}]
[{"$f":"IF('Výsledková listinadle kategorií'!D101<>\"\",A101+1,\"\")","v":""},null,{"$f":"'Startovní listina'!G102","v":""},{"$f":"'Startovní listina'!B102","v":""},{"$f":"'Startovní listina'!C102","v":""},{"$f":"'Startovní listina'!D102","v":""},{"$f":"'Startovní listina'!E102","v":""},{"$f":"'Startovní listina'!F102","v":""}]
[{"$f":"IF('Výsledková listinadle kategorií'!D102<>\"\",A102+1,\"\")","v":""},null,{"$f":"'Startovní listina'!G103","v":""},{"$f":"'Startovní listina'!B103","v":""},{"$f":"'Startovní listina'!C103","v":""},{"$f":"'Startovní listina'!D103","v":""},{"$f":"'Startovní listina'!E103","v":""},{"$f":"'Startovní listina'!F103","v":""}]
[{"$f":"IF('Výsledková listinadle kategorií'!D103<>\"\",A103+1,\"\")","v":""},null,{"$f":"'Startovní listina'!G104","v":""},{"$f":"'Startovní listina'!B104","v":""},{"$f":"'Startovní listina'!C104","v":""},{"$f":"'Startovní listina'!D104","v":""},{"$f":"'Startovní listina'!E104","v":""},{"$f":"'Startovní listina'!F104","v":""}]

{"sheet":"Družstva","index":4,"n_rows":25,"n_cols":11,"rows_kept":25,"cut":false,"hidden":false,"merged":[[17,1,18,1],[17,6,18,6],[17,8,18,8],[19,1,20,1],[19,6,20,6],[19,8,20,8],[11,6,12,6],[5,8,6,8],[7,8,8,8],[9,8,10,8],[15,1,16,1],[15,6,16,6],[15,8,16,8],[3,8,4,8],[11,8,12,8],[0,1,0,8],[1,1,1,8],[13,8,14,8],[3,1,4,1],[11,1,12,1],[5,1,6,1],[7,1,8,1],[9,1,10,1],[5,6,6,6],[13,1,14,1],[3,6,4,6],[13,6,14,6],[7,6,8,6],[9,6,10,6],[21,1,22,1],[21,6,22,6],[21,8,22,8],[23,1,24,1],[23,6,24,6],[23,8,24,8]]}
[null,{"$f":"\"Výsledková listina - Malý svratecký maraton \"&'Prezenční listina'!O2&\" - družstva\"","v":"Výsledková listina - Malý svratecký maraton 2018 - družstva"}]
[null,{"$f":"'Prezenční listina'!O2-1953&\". ročník\"","v":"65. ročník"}]
[null,"Pořadí","Startovní číslo","Příjmení","Jméno","Narození","Oddíl / Bydliště","Čas","Výsledný čas"]
[null,"1.",45,{"$f":"IF(ISERROR(VLOOKUP(C4,'Startovní listina'!$B$5:$F$141,2)),\"\",VLOOKUP(C4,'Startovní listina'!$B$5:$F$141,2))","v":"Kohut"},{"$f":"IF(ISERROR(VLOOKUP(C4,'Startovní listina'!$B$5:$F$141,3)),\"\",VLOOKUP(C4,'Startovní listina'!$B$5:$F$141,3))","v":"Jan"},{"$f":"IF(ISERROR(VLOOKUP(C4,'Startovní listina'!$B$5:$F$141,4)),\"\",VLOOKUP(C4,'Startovní listina'!$B$5:$F$141,4))","v":1985},{"$f":"IF(K4=K5,K4,\"RŮZNÉ ODDÍLY !!!\")","v":"Univerzita Brno"},"02:02:02",{"$f":"IF((H4=0),\"\",H4+H5)","v":"04:15:32"},null,{"$f":"IF(ISERROR(VLOOKUP(C4,'Startovní listina'!$B$5:$F$141,5)),\"\",VLOOKUP(C4,'Startovní listina'!$B$5:$F$141,5))","v":"Univerzita Brno"}]
[null,null,46,{"$f":"IF(ISERROR(VLOOKUP(C5,'Startovní listina'!$B$5:$F$141,2)),\"\",VLOOKUP(C5,'Startovní listina'!$B$5:$F$141,2))","v":"Dvořáček"},{"$f":"IF(ISERROR(VLOOKUP(C5,'Startovní listina'!$B$5:$F$141,3)),\"\",VLOOKUP(C5,'Startovní listina'!$B$5:$F$141,3))","v":"Jiří"},{"$f":"IF(ISERROR(VLOOKUP(C5,'Startovní listina'!$B$5:$F$141,4)),\"\",VLOOKUP(C5,'Startovní listina'!$B$5:$F$141,4))","v":1968},null,"02:13:30",null,null,{"$f":"IF(ISERROR(VLOOKUP(C5,'Startovní listina'!$B$5:$F$141,5)),\"\",VLOOKUP(C5,'Startovní listina'!$B$5:$F$141,5))","v":"Univerzita Brno"}]
[null,"2.",10,{"$f":"IF(ISERROR(VLOOKUP(C6,'Startovní listina'!$B$5:$F$141,2)),\"\",VLOOKUP(C6,'Startovní listina'!$B$5:$F$141,2))","v":"Kopečný"},{"$f":"IF(ISERROR(VLOOKUP(C6,'Startovní listina'!$B$5:$F$141,3)),\"\",VLOOKUP(C6,'Startovní listina'!$B$5:$F$141,3))","v":"Dušan"},{"$f":"IF(ISERROR(VLOOKUP(C6,'Startovní listina'!$B$5:$F$141,4)),\"\",VLOOKUP(C6,'Startovní listina'!$B$5:$F$141,4))","v":1973},{"$f":"IF(K6=K7,K6,\"RŮZNÉ ODDÍLY !!!\")","v":"Liga 100 Olomouc"},"02:21:19",{"$f":"IF((H6=0),\"\",H6+H7)","v":"04:41:00"},null,{"$f":"IF(ISERROR(VLOOKUP(C6,'Startovní listina'!$B$5:$F$141,5)),\"\",VLOOKUP(C6,'Startovní listina'!$B$5:$F$141,5))","v":"Liga 100 Olomouc"}]
[null,null,6,{"$f":"IF(ISERROR(VLOOKUP(C7,'Startovní listina'!$B$5:$F$141,2)),\"\",VLOOKUP(C7,'Startovní listina'!$B$5:$F$141,2))","v":"Šerák"},{"$f":"IF(ISERROR(VLOOKUP(C7,'Startovní listina'!$B$5:$F$141,3)),\"\",VLOOKUP(C7,'Startovní listina'!$B$5:$F$141,3))","v":"Martin"},{"$f":"IF(ISERROR(VLOOKUP(C7,'Startovní listina'!$B$5:$F$141,4)),\"\",VLOOKUP(C7,'Startovní listina'!$B$5:$F$141,4))","v":1978},null,"02:19:41",null,null,{"$f":"IF(ISERROR(VLOOKUP(C7,'Startovní listina'!$B$5:$F$141,5)),\"\",VLOOKUP(C7,'Startovní listina'!$B$5:$F$141,5))","v":"Liga 100 Olomouc"}]
[null,"3.",48,{"$f":"IF(ISERROR(VLOOKUP(C8,'Startovní listina'!$B$5:$F$141,2)),\"\",VLOOKUP(C8,'Startovní listina'!$B$5:$F$141,2))","v":"Glierová"},{"$f":"IF(ISERROR(VLOOKUP(C8,'Startovní listina'!$B$5:$F$141,3)),\"\",VLOOKUP(C8,'Startovní listina'!$B$5:$F$141,3))","v":"Renata"},{"$f":"IF(ISERROR(VLOOKUP(C8,'Startovní listina'!$B$5:$F$141,4)),\"\",VLOOKUP(C8,'Startovní listina'!$B$5:$F$141,4))","v":1985},{"$f":"IF(K8=K9,K8,\"RŮZNÉ ODDÍLY !!!\")","v":"SDH Doubravník"},"02:53:08",{"$f":"IF((H8=0),\"\",H8+H9)","v":"05:08:26"},null,{"$f":"IF(ISERROR(VLOOKUP(C8,'Startovní listina'!$B$5:$F$141,5)),\"\",VLOOKUP(C8,'Startovní listina'!$B$5:$F$141,5))","v":"SDH Doubravník"}]
[null,null,49,{"$f":"IF(ISERROR(VLOOKUP(C9,'Startovní listina'!$B$5:$F$141,2)),\"\",VLOOKUP(C9,'Startovní listina'!$B$5:$F$141,2))","v":"Glier"},{"$f":"IF(ISERROR(VLOOKUP(C9,'Startovní listina'!$B$5:$F$141,3)),\"\",VLOOKUP(C9,'Startovní listina'!$B$5:$F$141,3))","v":"Michal"},{"$f":"IF(ISERROR(VLOOKUP(C9,'Startovní listina'!$B$5:$F$141,4)),\"\",VLOOKUP(C9,'Startovní listina'!$B$5:$F$141,4))","v":1982},null,"02:15:18",null,null,{"$f":"IF(ISERROR(VLOOKUP(C9,'Startovní listina'!$B$5:$F$141,5)),\"\",VLOOKUP(C9,'Startovní listina'!$B$5:$F$141,5))","v":"SDH Doubravník"}]
[null,"4.",null,{"$f":"IF(ISERROR(VLOOKUP(C10,'Startovní listina'!$B$5:$F$141,2)),\"\",VLOOKUP(C10,'Startovní listina'!$B$5:$F$141,2))","v":""},{"$f":"IF(ISERROR(VLOOKUP(C10,'Startovní listina'!$B$5:$F$141,3)),\"\",VLOOKUP(C10,'Startovní listina'!$B$5:$F$141,3))","v":""},{"$f":"IF(ISERROR(VLOOKUP(C10,'Startovní listina'!$B$5:$F$141,4)),\"\",VLOOKUP(C10,'Startovní listina'!$B$5:$F$141,4))","v":""},{"$f":"IF(K10=K11,K10,\"RŮZNÉ ODDÍLY !!!\")","v":""},null,{"$f":"IF((H10=0),\"\",H10+H11)","v":""},null,{"$f":"IF(ISERROR(VLOOKUP(C10,'Startovní listina'!$B$5:$F$141,5)),\"\",VLOOKUP(C10,'Startovní listina'!$B$5:$F$141,5))","v":""}]
[null,null,null,{"$f":"IF(ISERROR(VLOOKUP(C11,'Startovní listina'!$B$5:$F$141,2)),\"\",VLOOKUP(C11,'Startovní listina'!$B$5:$F$141,2))","v":""},{"$f":"IF(ISERROR(VLOOKUP(C11,'Startovní listina'!$B$5:$F$141,3)),\"\",VLOOKUP(C11,'Startovní listina'!$B$5:$F$141,3))","v":""},{"$f":"IF(ISERROR(VLOOKUP(C11,'Startovní listina'!$B$5:$F$141,4)),\"\",VLOOKUP(C11,'Startovní listina'!$B$5:$F$141,4))","v":""},null,null,null,null,{"$f":"IF(ISERROR(VLOOKUP(C11,'Startovní listina'!$B$5:$F$141,5)),\"\",VLOOKUP(C11,'Startovní listina'!$B$5:$F$141,5))","v":""}]
[null,"5.",null,{"$f":"IF(ISERROR(VLOOKUP(C12,'Startovní listina'!$B$5:$F$141,2)),\"\",VLOOKUP(C12,'Startovní listina'!$B$5:$F$141,2))","v":""},{"$f":"IF(ISERROR(VLOOKUP(C12,'Startovní listina'!$B$5:$F$141,3)),\"\",VLOOKUP(C12,'Startovní listina'!$B$5:$F$141,3))","v":""},{"$f":"IF(ISERROR(VLOOKUP(C12,'Startovní listina'!$B$5:$F$141,4)),\"\",VLOOKUP(C12,'Startovní listina'!$B$5:$F$141,4))","v":""},{"$f":"IF(K12=K13,K12,\"RŮZNÉ ODDÍLY !!!\")","v":""},null,{"$f":"IF((H12=0),\"\",H12+H13)","v":""},null,{"$f":"IF(ISERROR(VLOOKUP(C12,'Startovní listina'!$B$5:$F$141,5)),\"\",VLOOKUP(C12,'Startovní listina'!$B$5:$F$141,5))","v":""}]
[null,null,null,{"$f":"IF(ISERROR(VLOOKUP(C13,'Startovní listina'!$B$5:$F$141,2)),\"\",VLOOKUP(C13,'Startovní listina'!$B$5:$F$141,2))","v":""},{"$f":"IF(ISERROR(VLOOKUP(C13,'Startovní listina'!$B$5:$F$141,3)),\"\",VLOOKUP(C13,'Startovní listina'!$B$5:$F$141,3))","v":""},{"$f":"IF(ISERROR(VLOOKUP(C13,'Startovní listina'!$B$5:$F$141,4)),\"\",VLOOKUP(C13,'Startovní listina'!$B$5:$F$141,4))","v":""},null,null,null,null,{"$f":"IF(ISERROR(VLOOKUP(C13,'Startovní listina'!$B$5:$F$141,5)),\"\",VLOOKUP(C13,'Startovní listina'!$B$5:$F$141,5))","v":""}]
[null,"6.",null,{"$f":"IF(ISERROR(VLOOKUP(C14,'Startovní listina'!$B$5:$F$141,2)),\"\",VLOOKUP(C14,'Startovní listina'!$B$5:$F$141,2))","v":""},{"$f":"IF(ISERROR(VLOOKUP(C14,'Startovní listina'!$B$5:$F$141,3)),\"\",VLOOKUP(C14,'Startovní listina'!$B$5:$F$141,3))","v":""},{"$f":"IF(ISERROR(VLOOKUP(C14,'Startovní listina'!$B$5:$F$141,4)),\"\",VLOOKUP(C14,'Startovní listina'!$B$5:$F$141,4))","v":""},{"$f":"IF(K14=K15,K14,\"RŮZNÉ ODDÍLY !!!\")","v":""},null,{"$f":"IF((H14=0),\"\",H14+H15)","v":""},null,{"$f":"IF(ISERROR(VLOOKUP(C14,'Startovní listina'!$B$5:$F$141,5)),\"\",VLOOKUP(C14,'Startovní listina'!$B$5:$F$141,5))","v":""}]
[null,null,null,{"$f":"IF(ISERROR(VLOOKUP(C15,'Startovní listina'!$B$5:$F$141,2)),\"\",VLOOKUP(C15,'Startovní listina'!$B$5:$F$141,2))","v":""},{"$f":"IF(ISERROR(VLOOKUP(C15,'Startovní listina'!$B$5:$F$141,3)),\"\",VLOOKUP(C15,'Startovní listina'!$B$5:$F$141,3))","v":""},{"$f":"IF(ISERROR(VLOOKUP(C15,'Startovní listina'!$B$5:$F$141,4)),\"\",VLOOKUP(C15,'Startovní listina'!$B$5:$F$141,4))","v":""},null,null,null,null,{"$f":"IF(ISERROR(VLOOKUP(C15,'Startovní listina'!$B$5:$F$141,5)),\"\",VLOOKUP(C15,'Startovní listina'!$B$5:$F$141,5))","v":""}]
[null,"7.",null,null,null,null,null,null,{"$f":"IF((H16=0),\"\",H16+H17)","v":""},null,{"$f":"IF(ISERROR(VLOOKUP(C16,'Startovní listina'!$B$5:$F$141,5)),\"\",VLOOKUP(C16,'Startovní listina'!$B$5:$F$141,5))","v":""}]
[null,null,null,null,null,null,null,null,null,null,{"$f":"IF(ISERROR(VLOOKUP(C17,'Startovní listina'!$B$5:$F$141,5)),\"\",VLOOKUP(C17,'Startovní listina'!$B$5:$F$141,5))","v":""}]
[null,"8.",null,{"$f":"IF(ISERROR(VLOOKUP(C18,'Startovní listina'!$B$5:$F$141,2)),\"\",VLOOKUP(C18,'Startovní listina'!$B$5:$F$141,2))","v":""},{"$f":"IF(ISERROR(VLOOKUP(C18,'Startovní listina'!$B$5:$F$141,3)),\"\",VLOOKUP(C18,'Startovní listina'!$B$5:$F$141,3))","v":""},{"$f":"IF(ISERROR(VLOOKUP(C18,'Startovní listina'!$B$5:$F$141,4)),\"\",VLOOKUP(C18,'Startovní listina'!$B$5:$F$141,4))","v":""},null,null,{"$f":"IF((H18=0),\"\",H18+H19)","v":""},null,{"$f":"IF(ISERROR(VLOOKUP(C18,'Startovní listina'!$B$5:$F$141,5)),\"\",VLOOKUP(C18,'Startovní listina'!$B$5:$F$141,5))","v":""}]
[null,null,null,{"$f":"IF(ISERROR(VLOOKUP(C19,'Startovní listina'!$B$5:$F$141,2)),\"\",VLOOKUP(C19,'Startovní listina'!$B$5:$F$141,2))","v":""},{"$f":"IF(ISERROR(VLOOKUP(C19,'Startovní listina'!$B$5:$F$141,3)),\"\",VLOOKUP(C19,'Startovní listina'!$B$5:$F$141,3))","v":""},{"$f":"IF(ISERROR(VLOOKUP(C19,'Startovní listina'!$B$5:$F$141,4)),\"\",VLOOKUP(C19,'Startovní listina'!$B$5:$F$141,4))","v":""},null,null,null,null,{"$f":"IF(ISERROR(VLOOKUP(C19,'Startovní listina'!$B$5:$F$141,5)),\"\",VLOOKUP(C19,'Startovní listina'!$B$5:$F$141,5))","v":""}]
[null,"9.",null,{"$f":"IF(ISERROR(VLOOKUP(C20,'Startovní listina'!$B$5:$F$141,2)),\"\",VLOOKUP(C20,'Startovní listina'!$B$5:$F$141,2))","v":""},{"$f":"IF(ISERROR(VLOOKUP(C20,'Startovní listina'!$B$5:$F$141,3)),\"\",VLOOKUP(C20,'Startovní listina'!$B$5:$F$141,3))","v":""},{"$f":"IF(ISERROR(VLOOKUP(C20,'Startovní listina'!$B$5:$F$141,4)),\"\",VLOOKUP(C20,'Startovní listina'!$B$5:$F$141,4))","v":""},null,null,{"$f":"IF((H20=0),\"\",H20+H21)","v":""},null,{"$f":"IF(ISERROR(VLOOKUP(C20,'Startovní listina'!$B$5:$F$141,5)),\"\",VLOOKUP(C20,'Startovní listina'!$B$5:$F$141,5))","v":""}]
[null,null,null,{"$f":"IF(ISERROR(VLOOKUP(C21,'Startovní listina'!$B$5:$F$141,2)),\"\",VLOOKUP(C21,'Startovní listina'!$B$5:$F$141,2))","v":""},{"$f":"IF(ISERROR(VLOOKUP(C21,'Startovní listina'!$B$5:$F$141,3)),\"\",VLOOKUP(C21,'Startovní listina'!$B$5:$F$141,3))","v":""},{"$f":"IF(ISERROR(VLOOKUP(C21,'Startovní listina'!$B$5:$F$141,4)),\"\",VLOOKUP(C21,'Startovní listina'!$B$5:$F$141,4))","v":""},null,null,null,null,{"$f":"IF(ISERROR(VLOOKUP(C21,'Startovní listina'!$B$5:$F$141,5)),\"\",VLOOKUP(C21,'Startovní listina'!$B$5:$F$141,5))","v":""}]
[null,"10.",null,{"$f":"IF(ISERROR(VLOOKUP(C22,'Startovní listina'!$B$5:$F$141,2)),\"\",VLOOKUP(C22,'Startovní listina'!$B$5:$F$141,2))","v":""},{"$f":"IF(ISERROR(VLOOKUP(C22,'Startovní listina'!$B$5:$F$141,3)),\"\",VLOOKUP(C22,'Startovní listina'!$B$5:$F$141,3))","v":""},{"$f":"IF(ISERROR(VLOOKUP(C22,'Startovní listina'!$B$5:$F$141,4)),\"\",VLOOKUP(C22,'Startovní listina'!$B$5:$F$141,4))","v":""},null,null,{"$f":"IF((H22=0),\"\",H22+H23)","v":""},null,{"$f":"IF(ISERROR(VLOOKUP(C22,'Startovní listina'!$B$5:$F$141,5)),\"\",VLOOKUP(C22,'Startovní listina'!$B$5:$F$141,5))","v":""}]
[null,null,null,{"$f":"IF(ISERROR(VLOOKUP(C23,'Startovní listina'!$B$5:$F$141,2)),\"\",VLOOKUP(C23,'Startovní listina'!$B$5:$F$141,2))","v":""},{"$f":"IF(ISERROR(VLOOKUP(C23,'Startovní listina'!$B$5:$F$141,3)),\"\",VLOOKUP(C23,'Startovní listina'!$B$5:$F$141,3))","v":""},{"$f":"IF(ISERROR(VLOOKUP(C23,'Startovní listina'!$B$5:$F$141,4)),\"\",VLOOKUP(C23,'Startovní listina'!$B$5:$F$141,4))","v":""},null,null,null,null,{"$f":"IF(ISERROR(VLOOKUP(C23,'Startovní listina'!$B$5:$F$141,5)),\"\",VLOOKUP(C23,'Startovní listina'!$B$5:$F$141,5))","v":""}]
[null,"11.",null,{"$f":"IF(ISERROR(VLOOKUP(C24,'Startovní listina'!$B$5:$F$141,2)),\"\",VLOOKUP(C24,'Startovní listina'!$B$5:$F$141,2))","v":""},{"$f":"IF(ISERROR(VLOOKUP(C24,'Startovní listina'!$B$5:$F$141,3)),\"\",VLOOKUP(C24,'Startovní listina'!$B$5:$F$141,3))","v":""},{"$f":"IF(ISERROR(VLOOKUP(C24,'Startovní listina'!$B$5:$F$141,4)),\"\",VLOOKUP(C24,'Startovní listina'!$B$5:$F$141,4))","v":""},null,null,{"$f":"IF((H24=0),\"\",H24+H25)","v":""},null,{"$f":"IF(ISERROR(VLOOKUP(C24,'Startovní listina'!$B$5:$F$141,5)),\"\",VLOOKUP(C24,'Startovní listina'!$B$5:$F$141,5))","v":""}]
[null,null,null,{"$f":"IF(ISERROR(VLOOKUP(C25,'Startovní listina'!$B$5:$F$141,2)),\"\",VLOOKUP(C25,'Startovní listina'!$B$5:$F$141,2))","v":""},{"$f":"IF(ISERROR(VLOOKUP(C25,'Startovní listina'!$B$5:$F$141,3)),\"\",VLOOKUP(C25,'Startovní listina'!$B$5:$F$141,3))","v":""},{"$f":"IF(ISERROR(VLOOKUP(C25,'Startovní listina'!$B$5:$F$141,4)),\"\",VLOOKUP(C25,'Startovní listina'!$B$5:$F$141,4))","v":""},null,null,null,null,{"$f":"IF(ISERROR(VLOOKUP(C25,'Startovní listina'!$B$5:$F$141,5)),\"\",VLOOKUP(C25,'Startovní listina'!$B$5:$F$141,5))","v":""}]

{"sheet":"Běh Vírem","index":5,"n_rows":31,"n_cols":12,"rows_kept":31,"cut":false,"hidden":false,"merged":[[0,0,0,7],[2,3,2,4],[1,3,1,4]]}
[{"$f":"\"Běh Vírem \"&'Prezenční listina'!O2","v":"Běh Vírem 2018"}]
[null,null,null,{"$f":"'Startovní listina'!$A$2","v":"2018-08-25"},{"$f":"'Startovní listina'!$A$2","v":"2018-08-25"}]
[null,null,null,{"$f":"'Prezenční listina'!$O$2-1966&\" . ročník\"","v":"52 . ročník"}]
["#","Příjmení","Jméno","Narození","Oddíl / Bydliště","Startovní číslo","Čas","Pohlaví"]
[1,"Coural","Jaroslav",2002,"Vír",149,"00:11:14",{"$f":"IF(LEN(B5)=0,\" \",IF(MID(B5,LEN(B5),1)=\"á\",\"Ž\",\"M\"))","v":"M"}]
[2,"Dobrovský","Michal",2004,"Biatlon Blansko",130,"00:12:10","M"]
[3,"Lorenčík","Kryštof",2004,"Atletika Chrudim",142,"00:12:23","M"]
[4,"Jílek","František",2004,"Velké Tresné",138,"00:12:37","M"]
[5,"Píbil","Patrik",2005,"Chotěboř",129,"00:12:53","M"]
[6,"Zeman","Martin",2008,"Moravany u Brna",134,"00:13:51","M"]
[]
[1,"Křenková","Kateřina",2001,"Plzeň Petřín",143,"00:11:46","Ž"]
[2,"Lorenčíková","Adéla",2000,"AC Čáslav",145,"00:13:16","Ž",null,null,null,";"]
[3,"Dostálová","Daniela",2003,"Nyklovice",144,"00:14:30","Ž"]
[4,"Kostyšynová","Zora",2005,"Náchod",148,"00:15:26","Ž"]
[null,null,null,null,null,null,null," "]
[null,null,null,null,null,null,null," "]
[null,null,null,null,null,null,null," "]
[null,null,null,null,null,null,null," "]
[null,null,null,null,null,null,null," "]
[null,null,null,null,null,null,null," "]
[null,null,null,null,null,null,null," "]
[null,null,null,null,null,null,null," "]
[null,null,null,null,null,null,null," "]
[null,null,null,null,null,null,null," "]
[null,null,null,null,null,null,null," ",null,null,","]
[null,null,null,null,null,null,null," "]
[null,null,null,null,null,null,null," "]
[null,null,null,null,null,null,null," "]
[null,null,null,null,null,null,null," "]
[null,null,null,null,null,null,null," "]

{"sheet":"mezičasy 2017","index":6,"n_rows":30,"n_cols":8,"rows_kept":30,"cut":false,"hidden":true,"merged":[[0,0,0,1],[0,2,0,3],[0,4,0,5],[0,6,0,7]]}
["5. km",null,"10. km",null,"16. km",null,"25. km"]
["číslo","čas","číslo","čas","číslo","čas","číslo","čas"]
[82,"00:17:36",82,"00:35:34",82,"00:57:57",64,"01:34:10"]
[64,"00:17:53",64,"00:35:50",64,"00:57:57",82,"01:34:40"]
[48,"00:18:54",48,"00:37:43",48,"01:00:45",48,"01:37:47"]
[19,"00:18:59",19,"00:39:11",49,"01:03:42",19,"01:44:00"]
[49,"00:19:14",49,"00:39:28",19,"01:03:56",49,"01:44:00"]
[18,"00:19:52",18,"00:39:57",8,"01:05:23",8,"01:44:10"]
["77/8","00:20:11",null,":      :",77,"01:05:50",79,"01:46:00"]
[null,":      :",null,":      :",79,"01:06:02",null,":      :"]
[22,"00:20:46",22,"00:41:55",22,"01:07:23",22,"01:46:00"]
[46,"00:21:27",null,":      :",null,":      :",null,":      :"]
[null,":      :",null,":      :",null,":      :",null,":      :"]
[null,":      :",null,":      :",null,":      :",null,":      :"]
[null,":      :",null,":      :",null,":      :",null,":      :"]
[null,":      :",null,":      :",null,":      :",null,":      :"]
[null,":      :",null,":      :",null,":      :",null,":      :"]
[null,":      :",null,":      :",null,":      :",null,":      :"]
[null,":      :",null,":      :",null,":      :",null,":      :"]
[null,":      :",null,":      :",null,":      :",null,":      :"]
[null,":      :",null,":      :",null,":      :",null,":      :"]
[null,":      :",null,":      :",null,":      :",null,":      :"]
[null,":      :",null,":      :",null,":      :",null,":      :"]
[null,":      :",null,":      :",null,":      :",null,":      :"]
[null,":      :",null,":      :",null,":      :",null,":      :"]
[null,":      :",null,":      :",null,":      :",null,":      :"]
[null,":      :",null,":      :",null,":      :",null,":      :"]
[null,":      :",null,":      :",null,":      :",null,":      :"]
[null,":      :",null,":      :",null,":      :",null,":      :"]
[null,":      :",null,":      :",null,":      :",null,":      :"]

{"sheet":"mezičasy 2018","index":7,"n_rows":30,"n_cols":8,"rows_kept":30,"cut":false,"hidden":true,"merged":[[0,0,0,1],[0,2,0,3],[0,4,0,5],[0,6,0,7]]}
["5. km",null,"10. km",null,"16. km",null,"25. km"]
["číslo","čas","číslo","čas","číslo","čas","číslo","čas"]
[63,"00:18:04",63,"00:36:48",63,"00:59:44","63,45,62","01:34:34"]
["45,62,43,30,36","00:18:51","45,62,43,36","00:37:33",45.62,"00:59:59",36,"01:35:57"]
[49,"00:19:50",30,"00:37:45",36,"01:00:24",43,"01:39:38"]
[6,"00:20:39",49,"00:40:11",43,"01:01:19",null,":      :"]
["40,37,25","00:20:50",null,":      :",30,"01:01:40",null,":      :"]
[null,":      :",null,":      :",49,"01:04:54",null,":      :"]
[null,":      :",null,":      :",null,":      :",null,":      :"]
[31,"00:21:30",31,"00:43:23",31,"01:09:30",null,":      :"]
["26,44,28","00:22:51",null,":      :",null,":      :",null,":      :"]
[null,":      :",null,":      :",null,":      :",null,":      :"]
[null,":      :",null,":      :",null,":      :",null,":      :"]
[null,":      :",null,":      :",null,":      :",null,":      :"]
[null,":      :",null,":      :",null,":      :",null,":      :"]
[null,":      :",null,":      :",null,":      :",null,":      :"]
[null,":      :",null,":      :",null,":      :",null,":      :"]
[null,":      :",null,":      :",null,":      :",null,":      :"]
[null,":      :",null,":      :",null,":      :",null,":      :"]
[null,":      :",null,":      :",null,":      :",null,":      :"]
[null,":      :",null,":      :",null,":      :",null,":      :"]
[null,":      :",null,":      :",null,":      :",null,":      :"]
[null,":      :",null,":      :",null,":      :",null,":      :"]
[null,":      :",null,":      :",null,":      :",null,":      :"]
[null,":      :",null,":      :",null,":      :",null,":      :"]
[null,":      :",null,":      :",null,":      :",null,":      :"]
[null,":      :",null,":      :",null,":      :",null,":      :"]
[null,":      :",null,":      :",null,":      :",null,":      :"]
[null,":      :",null,":      :",null,":      :",null,":      :"]
[null,":      :",null,":      :",null,":      :",null,":      :"]

{"sheet":"Diplom MSM A5","index":8,"n_rows":36,"n_cols":13,"rows_kept":36,"cut":false,"hidden":true,"merged":[[26,3,28,10],[29,6,31,6],[31,3,34,3],[32,12,33,13],[35,6,36,9]]}
[]
[]
[]
[]
[]
[]
[]
[]
[]
[]
[]
[]
[]
[]
[]
[]
[]
[]
[]
[]
[]
[]
[]
[]
[]
[]
[null,null,null,{"$f":"'Výsledková listina'!E5&\" \"&'Výsledková listina'!F5","v":"Kohut Jan"}]
[]
[]
[null,null,null,null,null,null,{"$f":"'Výsledková listina'!B5&\".\"","v":"1."}]
[]
[null,null,null,{"$f":"'Výsledková listina'!C5","v":"A"}]
[null,null,null,null,null,null,null,null,null,null,null,null,{"$f":"'Výsledková listina'!I5","v":"02:02:02"}]
[]
[]
[null,null,null,null,null,null,"20. srpna 2016"]

{"sheet":"Diplom MSM A5 (2)","index":9,"n_rows":36,"n_cols":13,"rows_kept":36,"cut":false,"hidden":true,"merged":[[26,3,28,10],[29,6,31,6],[31,3,34,3],[32,12,33,13],[35,6,36,9]]}
[]
[]
[]
[]
[]
[]
[]
[]
[]
[]
[]
[]
[]
[]
[]
[]
[]
[]
[]
[]
[]
[]
[]
[]
[]
[]
[null,null,null,{"$f":"'Výsledková listina'!E6&\" \"&'Výsledková listina'!F6","v":"Exner Jakub"}]
[]
[]
[null,null,null,null,null,null,{"$f":"'Výsledková listina'!B6&\".\"","v":"2."}]
[]
[null,null,null,{"$f":"'Výsledková listina'!C6","v":"A"}]
[null,null,null,null,null,null,null,null,null,null,null,null,{"$f":"'Výsledková listina'!I6","v":"02:02:03"}]
[]
[]
[null,null,null,null,null,null,"20. srpna 2016"]

{"sheet":"Družstva (prac.)","index":10,"n_rows":21,"n_cols":11,"rows_kept":21,"cut":false,"hidden":true,"merged":[[5,1,6,1],[5,6,6,6],[5,8,6,8],[0,1,0,8],[1,1,1,8],[3,1,4,1],[3,6,4,6],[3,8,4,8],[7,1,8,1],[7,6,8,6],[7,8,8,8],[9,1,10,1],[9,6,10,6],[9,8,10,8],[11,1,12,1],[11,6,12,6],[11,8,12,8],[13,1,14,1],[13,6,14,6],[13,8,14,8],[19,1,20,1],[19,6,20,6],[19,8,20,8],[15,1,16,1],[15,6,16,6],[15,8,16,8],[17,1,18,1],[17,6,18,6],[17,8,18,8]]}
[null,{"$f":"\"Výsledková listina - Malý svratecký maratón \"&'Prezenční listina'!O2&\" - družstva\"","v":"Výsledková listina - Malý svratecký maratón 2018 - družstva"}]
[null,{"$f":"'Prezenční listina'!O2-1953&\". ročník\"","v":"65. ročník"}]
[null,"Pořadí","Startovní číslo","Příjmení","Jméno","Narození","Oddíl / Bydliště","Čas","Výsledný čas"]
[null,"1.",3,{"$f":"IF(ISERROR(VLOOKUP(C4,'Startovní listina'!$B$5:$F$141,2)),\"\",VLOOKUP(C4,'Startovní listina'!$B$5:$F$141,2))","v":"Mlčáková"},{"$f":"IF(ISERROR(VLOOKUP(C4,'Startovní listina'!$B$5:$F$141,3)),\"\",VLOOKUP(C4,'Startovní listina'!$B$5:$F$141,3))","v":"Hana"},{"$f":"IF(ISERROR(VLOOKUP(C4,'Startovní listina'!$B$5:$F$141,4)),\"\",VLOOKUP(C4,'Startovní listina'!$B$5:$F$141,4))","v":1981},{"$f":"IF(K4=K5,K4,\"RŮZNÉ ODDÍLY !!!\")","v":"RŮZNÉ ODDÍLY !!!"},"03:07:50",{"$f":"IF((H4=0),\"\",H4+H5)","v":"05:48:15"},null,{"$f":"IF(ISERROR(VLOOKUP(C4,'Startovní listina'!$B$5:$F$141,5)),\"\",VLOOKUP(C4,'Startovní listina'!$B$5:$F$141,5))","v":"Strážnice"}]
[null,null,2,{"$f":"IF(ISERROR(VLOOKUP(C5,'Startovní listina'!$B$5:$F$141,2)),\"\",VLOOKUP(C5,'Startovní listina'!$B$5:$F$141,2))","v":"Ptáček"},{"$f":"IF(ISERROR(VLOOKUP(C5,'Startovní listina'!$B$5:$F$141,3)),\"\",VLOOKUP(C5,'Startovní listina'!$B$5:$F$141,3))","v":"Michal "},{"$f":"IF(ISERROR(VLOOKUP(C5,'Startovní listina'!$B$5:$F$141,4)),\"\",VLOOKUP(C5,'Startovní listina'!$B$5:$F$141,4))","v":1986},null,"02:40:25",null,null,{"$f":"IF(ISERROR(VLOOKUP(C5,'Startovní listina'!$B$5:$F$141,5)),\"\",VLOOKUP(C5,'Startovní listina'!$B$5:$F$141,5))","v":" Hrdá Ves "}]
[null,"2.",11,{"$f":"IF(ISERROR(VLOOKUP(C6,'Startovní listina'!$B$5:$F$141,2)),\"\",VLOOKUP(C6,'Startovní listina'!$B$5:$F$141,2))","v":"Holý"},{"$f":"IF(ISERROR(VLOOKUP(C6,'Startovní listina'!$B$5:$F$141,3)),\"\",VLOOKUP(C6,'Startovní listina'!$B$5:$F$141,3))","v":"Josef"},{"$f":"IF(ISERROR(VLOOKUP(C6,'Startovní listina'!$B$5:$F$141,4)),\"\",VLOOKUP(C6,'Startovní listina'!$B$5:$F$141,4))","v":1941},{"$f":"IF(K6=K7,K6,\"RŮZNÉ ODDÍLY !!!\")","v":"RŮZNÉ ODDÍLY !!!"},"02:01:16",{"$f":"IF((H6=0),\"\",H6+H7)","v":"04:06:56"},null,{"$f":"IF(ISERROR(VLOOKUP(C6,'Startovní listina'!$B$5:$F$141,5)),\"\",VLOOKUP(C6,'Startovní listina'!$B$5:$F$141,5))","v":"AC Moravská Slavia Brno"}]
[null,null,8,{"$f":"IF(ISERROR(VLOOKUP(C7,'Startovní listina'!$B$5:$F$141,2)),\"\",VLOOKUP(C7,'Startovní listina'!$B$5:$F$141,2))","v":"Pichová"},{"$f":"IF(ISERROR(VLOOKUP(C7,'Startovní listina'!$B$5:$F$141,3)),\"\",VLOOKUP(C7,'Startovní listina'!$B$5:$F$141,3))","v":"Dagmar"},{"$f":"IF(ISERROR(VLOOKUP(C7,'Startovní listina'!$B$5:$F$141,4)),\"\",VLOOKUP(C7,'Startovní listina'!$B$5:$F$141,4))","v":1977},null,"02:05:40",null,null,{"$f":"IF(ISERROR(VLOOKUP(C7,'Startovní listina'!$B$5:$F$141,5)),\"\",VLOOKUP(C7,'Startovní listina'!$B$5:$F$141,5))","v":"Brno"}]
[null,"3.",9,{"$f":"IF(ISERROR(VLOOKUP(C8,'Startovní listina'!$B$5:$F$141,2)),\"\",VLOOKUP(C8,'Startovní listina'!$B$5:$F$141,2))","v":"Tesařová"},{"$f":"IF(ISERROR(VLOOKUP(C8,'Startovní listina'!$B$5:$F$141,3)),\"\",VLOOKUP(C8,'Startovní listina'!$B$5:$F$141,3))","v":"Marie"},{"$f":"IF(ISERROR(VLOOKUP(C8,'Startovní listina'!$B$5:$F$141,4)),\"\",VLOOKUP(C8,'Startovní listina'!$B$5:$F$141,4))","v":1954},{"$f":"IF(K8=K9,K8,\"RŮZNÉ ODDÍLY !!!\")","v":"RŮZNÉ ODDÍLY !!!"},"02:40:16",{"$f":"IF((H8=0),\"\",H8+H9)","v":"05:12:53"},null,{"$f":"IF(ISERROR(VLOOKUP(C8,'Startovní listina'!$B$5:$F$141,5)),\"\",VLOOKUP(C8,'Startovní listina'!$B$5:$F$141,5))","v":"Křižanov"}]
[null,null,10,{"$f":"IF(ISERROR(VLOOKUP(C9,'Startovní listina'!$B$5:$F$141,2)),\"\",VLOOKUP(C9,'Startovní listina'!$B$5:$F$141,2))","v":"Kopečný"},{"$f":"IF(ISERROR(VLOOKUP(C9,'Startovní listina'!$B$5:$F$141,3)),\"\",VLOOKUP(C9,'Startovní listina'!$B$5:$F$141,3))","v":"Dušan"},{"$f":"IF(ISERROR(VLOOKUP(C9,'Startovní listina'!$B$5:$F$141,4)),\"\",VLOOKUP(C9,'Startovní listina'!$B$5:$F$141,4))","v":1973},null,"02:32:37",null,null,{"$f":"IF(ISERROR(VLOOKUP(C9,'Startovní listina'!$B$5:$F$141,5)),\"\",VLOOKUP(C9,'Startovní listina'!$B$5:$F$141,5))","v":"Liga 100 Olomouc"}]
[null,"4.",23,{"$f":"IF(ISERROR(VLOOKUP(C10,'Startovní listina'!$B$5:$F$141,2)),\"\",VLOOKUP(C10,'Startovní listina'!$B$5:$F$141,2))","v":"Koutský"},{"$f":"IF(ISERROR(VLOOKUP(C10,'Startovní listina'!$B$5:$F$141,3)),\"\",VLOOKUP(C10,'Startovní listina'!$B$5:$F$141,3))","v":"Tomáš"},{"$f":"IF(ISERROR(VLOOKUP(C10,'Startovní listina'!$B$5:$F$141,4)),\"\",VLOOKUP(C10,'Startovní listina'!$B$5:$F$141,4))","v":1987},{"$f":"IF(K10=K11,K10,\"RŮZNÉ ODDÍLY !!!\")","v":"RŮZNÉ ODDÍLY !!!"},"03:04:10",{"$f":"IF((H10=0),\"\",H10+H11)","v":"06:10:48"},null,{"$f":"IF(ISERROR(VLOOKUP(C10,'Startovní listina'!$B$5:$F$141,5)),\"\",VLOOKUP(C10,'Startovní listina'!$B$5:$F$141,5))","v":"Ledová stěna Vír"}]
[null,null,24,{"$f":"IF(ISERROR(VLOOKUP(C11,'Startovní listina'!$B$5:$F$141,2)),\"\",VLOOKUP(C11,'Startovní listina'!$B$5:$F$141,2))","v":"Skula"},{"$f":"IF(ISERROR(VLOOKUP(C11,'Startovní listina'!$B$5:$F$141,3)),\"\",VLOOKUP(C11,'Startovní listina'!$B$5:$F$141,3))","v":"Miroslav"},{"$f":"IF(ISERROR(VLOOKUP(C11,'Startovní listina'!$B$5:$F$141,4)),\"\",VLOOKUP(C11,'Startovní listina'!$B$5:$F$141,4))","v":1988},null,"03:06:38",null,null,{"$f":"IF(ISERROR(VLOOKUP(C11,'Startovní listina'!$B$5:$F$141,5)),\"\",VLOOKUP(C11,'Startovní listina'!$B$5:$F$141,5))","v":"SRTG Žďár nad Sázavou"}]
[null,"5.",35,{"$f":"IF(ISERROR(VLOOKUP(C12,'Startovní listina'!$B$5:$F$141,2)),\"\",VLOOKUP(C12,'Startovní listina'!$B$5:$F$141,2))","v":"Hýbl"},{"$f":"IF(ISERROR(VLOOKUP(C12,'Startovní listina'!$B$5:$F$141,3)),\"\",VLOOKUP(C12,'Startovní listina'!$B$5:$F$141,3))","v":"Jiří"},{"$f":"IF(ISERROR(VLOOKUP(C12,'Startovní listina'!$B$5:$F$141,4)),\"\",VLOOKUP(C12,'Startovní listina'!$B$5:$F$141,4))","v":1967},{"$f":"IF(K12=K13,K12,\"RŮZNÉ ODDÍLY !!!\")","v":"RŮZNÉ ODDÍLY !!!"},"02:31:40",{"$f":"IF((H12=0),\"\",H12+H13)","v":"06:21:15"},null,{"$f":"IF(ISERROR(VLOOKUP(C12,'Startovní listina'!$B$5:$F$141,5)),\"\",VLOOKUP(C12,'Startovní listina'!$B$5:$F$141,5))","v":"Hrušovany u Brna"}]
[null,null,36,{"$f":"IF(ISERROR(VLOOKUP(C13,'Startovní listina'!$B$5:$F$141,2)),\"\",VLOOKUP(C13,'Startovní listina'!$B$5:$F$141,2))","v":"Nováček"},{"$f":"IF(ISERROR(VLOOKUP(C13,'Startovní listina'!$B$5:$F$141,3)),\"\",VLOOKUP(C13,'Startovní listina'!$B$5:$F$141,3))","v":"Tomáš"},{"$f":"IF(ISERROR(VLOOKUP(C13,'Startovní listina'!$B$5:$F$141,4)),\"\",VLOOKUP(C13,'Startovní listina'!$B$5:$F$141,4))","v":1983},null,"03:49:35",null,null,{"$f":"IF(ISERROR(VLOOKUP(C13,'Startovní listina'!$B$5:$F$141,5)),\"\",VLOOKUP(C13,'Startovní listina'!$B$5:$F$141,5))","v":"SDH Kamenná"}]
[null,"6.",82,{"$f":"IF(ISERROR(VLOOKUP(C14,'Startovní listina'!$B$5:$F$141,2)),\"\",VLOOKUP(C14,'Startovní listina'!$B$5:$F$141,2))","v":"Příhoda"},{"$f":"IF(ISERROR(VLOOKUP(C14,'Startovní listina'!$B$5:$F$141,3)),\"\",VLOOKUP(C14,'Startovní listina'!$B$5:$F$141,3))","v":"Jan"},{"$f":"IF(ISERROR(VLOOKUP(C14,'Startovní listina'!$B$5:$F$141,4)),\"\",VLOOKUP(C14,'Startovní listina'!$B$5:$F$141,4))","v":1983},{"$f":"IF(K14=K15,K14,\"RŮZNÉ ODDÍLY !!!\")","v":"Ždánice"},"02:11:00",{"$f":"IF((H14=0),\"\",H14+H15)","v":"04:05:34"},null,{"$f":"IF(ISERROR(VLOOKUP(C14,'Startovní listina'!$B$5:$F$141,5)),\"\",VLOOKUP(C14,'Startovní listina'!$B$5:$F$141,5))","v":"Ždánice"}]
[null,null,107,{"$f":"IF(ISERROR(VLOOKUP(C15,'Startovní listina'!$B$5:$F$141,2)),\"\",VLOOKUP(C15,'Startovní listina'!$B$5:$F$141,2))","v":"Příhoda"},{"$f":"IF(ISERROR(VLOOKUP(C15,'Startovní listina'!$B$5:$F$141,3)),\"\",VLOOKUP(C15,'Startovní listina'!$B$5:$F$141,3))","v":"Jan"},{"$f":"IF(ISERROR(VLOOKUP(C15,'Startovní listina'!$B$5:$F$141,4)),\"\",VLOOKUP(C15,'Startovní listina'!$B$5:$F$141,4))","v":1983},null,"01:54:34",null,null,{"$f":"IF(ISERROR(VLOOKUP(C15,'Startovní listina'!$B$5:$F$141,5)),\"\",VLOOKUP(C15,'Startovní listina'!$B$5:$F$141,5))","v":"Ždánice"}]
[null,"7.",28,{"$f":"IF(ISERROR(VLOOKUP(C16,'Startovní listina'!$B$5:$F$141,2)),\"\",VLOOKUP(C16,'Startovní listina'!$B$5:$F$141,2))","v":"Hanslová"},{"$f":"IF(ISERROR(VLOOKUP(C16,'Startovní listina'!$B$5:$F$141,3)),\"\",VLOOKUP(C16,'Startovní listina'!$B$5:$F$141,3))","v":"Lenka"},{"$f":"IF(ISERROR(VLOOKUP(C16,'Startovní listina'!$B$5:$F$141,4)),\"\",VLOOKUP(C16,'Startovní listina'!$B$5:$F$141,4))","v":1973},{"$f":"IF(K16=K17,K16,\"RŮZNÉ ODDÍLY !!!\")","v":"RŮZNÉ ODDÍLY !!!"},"02:19:07",{"$f":"IF((H16=0),\"\",H16+H17)","v":"04:24:14"},null,{"$f":"IF(ISERROR(VLOOKUP(C16,'Startovní listina'!$B$5:$F$141,5)),\"\",VLOOKUP(C16,'Startovní listina'!$B$5:$F$141,5))","v":"Žďár nad Sázavou"}]
[null,null,26,{"$f":"IF(ISERROR(VLOOKUP(C17,'Startovní listina'!$B$5:$F$141,2)),\"\",VLOOKUP(C17,'Startovní listina'!$B$5:$F$141,2))","v":"Bartoňková"},{"$f":"IF(ISERROR(VLOOKUP(C17,'Startovní listina'!$B$5:$F$141,3)),\"\",VLOOKUP(C17,'Startovní listina'!$B$5:$F$141,3))","v":"Nina"},{"$f":"IF(ISERROR(VLOOKUP(C17,'Startovní listina'!$B$5:$F$141,4)),\"\",VLOOKUP(C17,'Startovní listina'!$B$5:$F$141,4))","v":1990},null,"02:05:07",null,null,{"$f":"IF(ISERROR(VLOOKUP(C17,'Startovní listina'!$B$5:$F$141,5)),\"\",VLOOKUP(C17,'Startovní listina'!$B$5:$F$141,5))","v":"AK Drnovice"}]
[null,"8.",null,{"$f":"IF(ISERROR(VLOOKUP(C18,'Startovní listina'!$B$5:$F$141,2)),\"\",VLOOKUP(C18,'Startovní listina'!$B$5:$F$141,2))","v":""},{"$f":"IF(ISERROR(VLOOKUP(C18,'Startovní listina'!$B$5:$F$141,3)),\"\",VLOOKUP(C18,'Startovní listina'!$B$5:$F$141,3))","v":""},{"$f":"IF(ISERROR(VLOOKUP(C18,'Startovní listina'!$B$5:$F$141,4)),\"\",VLOOKUP(C18,'Startovní listina'!$B$5:$F$141,4))","v":""},{"$f":"IF(K18=K19,K18,\"RŮZNÉ ODDÍLY !!!\")","v":""},null,{"$f":"IF((H18=0),\"\",H18+H19)","v":""},null,{"$f":"IF(ISERROR(VLOOKUP(C18,'Startovní listina'!$B$5:$F$141,5)),\"\",VLOOKUP(C18,'Startovní listina'!$B$5:$F$141,5))","v":""}]
[null,null,null,{"$f":"IF(ISERROR(VLOOKUP(C19,'Startovní listina'!$B$5:$F$141,2)),\"\",VLOOKUP(C19,'Startovní listina'!$B$5:$F$141,2))","v":""},{"$f":"IF(ISERROR(VLOOKUP(C19,'Startovní listina'!$B$5:$F$141,3)),\"\",VLOOKUP(C19,'Startovní listina'!$B$5:$F$141,3))","v":""},{"$f":"IF(ISERROR(VLOOKUP(C19,'Startovní listina'!$B$5:$F$141,4)),\"\",VLOOKUP(C19,'Startovní listina'!$B$5:$F$141,4))","v":""},null,null,null,null,{"$f":"IF(ISERROR(VLOOKUP(C19,'Startovní listina'!$B$5:$F$141,5)),\"\",VLOOKUP(C19,'Startovní listina'!$B$5:$F$141,5))","v":""}]
[null,"9.",null,{"$f":"IF(ISERROR(VLOOKUP(C20,'Startovní listina'!$B$5:$F$141,2)),\"\",VLOOKUP(C20,'Startovní listina'!$B$5:$F$141,2))","v":""},{"$f":"IF(ISERROR(VLOOKUP(C20,'Startovní listina'!$B$5:$F$141,3)),\"\",VLOOKUP(C20,'Startovní listina'!$B$5:$F$141,3))","v":""},{"$f":"IF(ISERROR(VLOOKUP(C20,'Startovní listina'!$B$5:$F$141,4)),\"\",VLOOKUP(C20,'Startovní listina'!$B$5:$F$141,4))","v":""},{"$f":"IF(K20=K21,K20,\"RŮZNÉ ODDÍLY !!!\")","v":""},null,{"$f":"IF((H20=0),\"\",H20+H21)","v":""},null,{"$f":"IF(ISERROR(VLOOKUP(C20,'Startovní listina'!$B$5:$F$141,5)),\"\",VLOOKUP(C20,'Startovní listina'!$B$5:$F$141,5))","v":""}]
[null,null,null,{"$f":"IF(ISERROR(VLOOKUP(C21,'Startovní listina'!$B$5:$F$141,2)),\"\",VLOOKUP(C21,'Startovní listina'!$B$5:$F$141,2))","v":""},{"$f":"IF(ISERROR(VLOOKUP(C21,'Startovní listina'!$B$5:$F$141,3)),\"\",VLOOKUP(C21,'Startovní listina'!$B$5:$F$141,3))","v":""},{"$f":"IF(ISERROR(VLOOKUP(C21,'Startovní listina'!$B$5:$F$141,4)),\"\",VLOOKUP(C21,'Startovní listina'!$B$5:$F$141,4))","v":""},null,null,null,null,{"$f":"IF(ISERROR(VLOOKUP(C21,'Startovní listina'!$B$5:$F$141,5)),\"\",VLOOKUP(C21,'Startovní listina'!$B$5:$F$141,5))","v":""}]

{"sheet":"Výsledková listina (2)","index":11,"n_rows":103,"n_cols":11,"rows_kept":103,"cut":false,"hidden":true,"merged":[[0,0,0,8],[1,0,1,8],[1,10,12,14],[2,0,2,8]]}
[{"$f":"\"Výsledková listina - Malý svratecký maraton \"&'Prezenční listina'!O2","v":"Výsledková listina - Malý svratecký maraton 2018"}]
["2015-08-22",null,null,null,null,null,null,null,null,null,"\nPoté, co jsou dopsány časy VŠECH běžců, stisknout tlačítko 1.řazení \n\n\nVe sloupci B (Pořadí v kategorii) vytvořit posloupnou číselnou řadu pro každou kategorii a poté stisknout tlačítko 2.řazení\n\n\n                      !!! POZOR!!!\n\n               Použití tlačítek je nevratný krok!"]
[{"$f":"'Prezenční listina'!O2-1953&\". ročník\"","v":"65. ročník"}]
["Celkové pořadí","Pořadí v kategorii","Kategorie","Startovní číslo","Příjmení","Jméno","Narození","Oddíl / Bydliště","Čas"]
[1,1,{"$f":"'Startovní listina'!G47","v":"B"},{"$f":"'Startovní listina'!B47","v":43},{"$f":"'Startovní listina'!C47","v":"Kocur"},{"$f":"'Startovní listina'!D47","v":"Lukáš"},{"$f":"'Startovní listina'!E47","v":1977},{"$f":"'Startovní listina'!F47","v":"Orel Šitbořice"},"02:19:48"]
[{"$f":"IF('Výsledková listina (2)'!D5<>\"\",A5+1,\"\")","v":2},null,{"$f":"'Startovní listina'!G71","v":"A"},{"$f":"'Startovní listina'!B71","v":67},{"$f":"'Startovní listina'!C71","v":"Příhoda"},{"$f":"'Startovní listina'!D71","v":"Jan"},{"$f":"'Startovní listina'!E71","v":1983},{"$f":"'Startovní listina'!F71","v":"Ždánice"},"02:47:00"]
[{"$f":"IF('Výsledková listina (2)'!D6<>\"\",A6+1,\"\")","v":3},null,{"$f":"'Startovní listina'!G5","v":"G"},{"$f":"'Startovní listina'!B5","v":1},{"$f":"'Startovní listina'!C5","v":"Komárková"},{"$f":"'Startovní listina'!D5","v":"Zdeňka"},{"$f":"'Startovní listina'!E5","v":1974},{"$f":"'Startovní listina'!F5","v":"SDH Bolešín"},"03:02:17"]
[{"$f":"IF('Výsledková listina (2)'!D7<>\"\",A7+1,\"\")","v":4},null,{"$f":"'Startovní listina'!G85","v":""},{"$f":"'Startovní listina'!B85","v":""},{"$f":"'Startovní listina'!C85","v":""},{"$f":"'Startovní listina'!D85","v":""},{"$f":"'Startovní listina'!E85","v":""},{"$f":"'Startovní listina'!F85","v":""},"03:28:11"]
[{"$f":"IF('Výsledková listina (2)'!D8<>\"\",A8+1,\"\")","v":""},null,{"$f":"'Startovní listina'!G59","v":"F"},{"$f":"'Startovní listina'!B59","v":55},{"$f":"'Startovní listina'!C59","v":"Jamrichová"},{"$f":"'Startovní listina'!D59","v":"Kristina"},{"$f":"'Startovní listina'!E59","v":1987},{"$f":"'Startovní listina'!F59","v":"Brno"},"02:23:11"]
[{"$f":"IF('Výsledková listina (2)'!D9<>\"\",A9+1,\"\")","v":{"$error":"#VALUE!"}},null,{"$f":"'Startovní listina'!G46","v":"D"},{"$f":"'Startovní listina'!B46","v":42},{"$f":"'Startovní listina'!C46","v":"Mareš"},{"$f":"'Startovní listina'!D46","v":"Bohumil"},{"$f":"'Startovní listina'!E46","v":1951},{"$f":"'Startovní listina'!F46","v":"Posilovna Průvan Brno"},"02:50:33"]
[{"$f":"IF('Výsledková listina (2)'!D10<>\"\",A10+1,\"\")","v":{"$error":"#VALUE!"}},null,{"$f":"'Startovní listina'!G28","v":"A"},{"$f":"'Startovní listina'!B28","v":24},{"$f":"'Startovní listina'!C28","v":"Skula"},{"$f":"'Startovní listina'!D28","v":"Miroslav"},{"$f":"'Startovní listina'!E28","v":1988},{"$f":"'Startovní listina'!F28","v":"SRTG Žďár nad Sázavou"},"02:26:07"]
[{"$f":"IF('Výsledková listina (2)'!D11<>\"\",A11+1,\"\")","v":{"$error":"#VALUE!"}},null,{"$f":"'Startovní listina'!G67","v":"B"},{"$f":"'Startovní listina'!B67","v":63},{"$f":"'Startovní listina'!C67","v":"Orálek"},{"$f":"'Startovní listina'!D67","v":"Daniel"},{"$f":"'Startovní listina'!E67","v":1970},{"$f":"'Startovní listina'!F67","v":"behejbrno.com"},"02:34:42"]
[{"$f":"IF('Výsledková listina (2)'!D12<>\"\",A12+1,\"\")","v":{"$error":"#VALUE!"}},null,{"$f":"'Startovní listina'!G68","v":"B"},{"$f":"'Startovní listina'!B68","v":64},{"$f":"'Startovní listina'!C68","v":"Kratochvíl"},{"$f":"'Startovní listina'!D68","v":"Jaroslav"},{"$f":"'Startovní listina'!E68","v":1977},{"$f":"'Startovní listina'!F68","v":"SDH Hluboké"},"02:42:43"]
[{"$f":"IF('Výsledková listina (2)'!D13<>\"\",A13+1,\"\")","v":{"$error":"#VALUE!"}},null,{"$f":"'Startovní listina'!G62","v":"A"},{"$f":"'Startovní listina'!B62","v":58},{"$f":"'Startovní listina'!C62","v":"Paleček"},{"$f":"'Startovní listina'!D62","v":"Miloš"},{"$f":"'Startovní listina'!E62","v":1985},{"$f":"'Startovní listina'!F62","v":"BIKEŘI ROVE"},"02:42:35"]
[{"$f":"IF('Výsledková listina (2)'!D14<>\"\",A14+1,\"\")","v":{"$error":"#VALUE!"}},null,{"$f":"'Startovní listina'!G55","v":"F"},{"$f":"'Startovní listina'!B55","v":51},{"$f":"'Startovní listina'!C55","v":"Vondrová"},{"$f":"'Startovní listina'!D55","v":"Ludmila"},{"$f":"'Startovní listina'!E55","v":1986},{"$f":"'Startovní listina'!F55","v":"Dalečín"},"02:40:36"]
[{"$f":"IF('Výsledková listina (2)'!D15<>\"\",A15+1,\"\")","v":{"$error":"#VALUE!"}},null,{"$f":"'Startovní listina'!G60","v":"B"},{"$f":"'Startovní listina'!B60","v":56},{"$f":"'Startovní listina'!C60","v":"Benc"},{"$f":"'Startovní listina'!D60","v":"Karel"},{"$f":"'Startovní listina'!E60","v":1975},{"$f":"'Startovní listina'!F60","v":"Pivonice"},"02:38:54"]
[{"$f":"IF('Výsledková listina (2)'!D16<>\"\",A16+1,\"\")","v":{"$error":"#VALUE!"}},null,{"$f":"'Startovní listina'!G7","v":"G"},{"$f":"'Startovní listina'!B7","v":3},{"$f":"'Startovní listina'!C7","v":"Mlčáková"},{"$f":"'Startovní listina'!D7","v":"Hana"},{"$f":"'Startovní listina'!E7","v":1981},{"$f":"'Startovní listina'!F7","v":"Strážnice"},"03:07:50"]
[{"$f":"IF('Výsledková listina (2)'!D17<>\"\",A17+1,\"\")","v":{"$error":"#VALUE!"}},null,{"$f":"'Startovní listina'!G63","v":"B"},{"$f":"'Startovní listina'!B63","v":59},{"$f":"'Startovní listina'!C63","v":"Pokorný"},{"$f":"'Startovní listina'!D63","v":"Václav"},{"$f":"'Startovní listina'!E63","v":1978},{"$f":"'Startovní listina'!F63","v":"Brno"},"02:39:15"]
[{"$f":"IF('Výsledková listina (2)'!D18<>\"\",A18+1,\"\")","v":{"$error":"#VALUE!"}},null,{"$f":"'Startovní listina'!G49","v":"A"},{"$f":"'Startovní listina'!B49","v":45},{"$f":"'Startovní listina'!C49","v":"Kohut"},{"$f":"'Startovní listina'!D49","v":"Jan"},{"$f":"'Startovní listina'!E49","v":1985},{"$f":"'Startovní listina'!F49","v":"Univerzita Brno"},"02:13:13"]
[{"$f":"IF('Výsledková listina (2)'!D19<>\"\",A19+1,\"\")","v":{"$error":"#VALUE!"}},null,{"$f":"'Startovní listina'!G14","v":"B"},{"$f":"'Startovní listina'!B14","v":10},{"$f":"'Startovní listina'!C14","v":"Kopečný"},{"$f":"'Startovní listina'!D14","v":"Dušan"},{"$f":"'Startovní listina'!E14","v":1973},{"$f":"'Startovní listina'!F14","v":"Liga 100 Olomouc"},"02:32:37"]
[{"$f":"IF('Výsledková listina (2)'!D20<>\"\",A20+1,\"\")","v":{"$error":"#VALUE!"}},null,{"$f":"'Startovní listina'!G42","v":"A"},{"$f":"'Startovní listina'!B42","v":38},{"$f":"'Startovní listina'!C42","v":"Košek"},{"$f":"'Startovní listina'!D42","v":"Martin"},{"$f":"'Startovní listina'!E42","v":1984},{"$f":"'Startovní listina'!F42","v":"Brno"},"02:49:46"]
[{"$f":"IF('Výsledková listina (2)'!D22<>\"\",A21+1,\"\")","v":""},null,{"$f":"'Startovní listina'!G79","v":""},{"$f":"'Startovní listina'!B79","v":""},{"$f":"'Startovní listina'!C79","v":""},{"$f":"'Startovní listina'!D79","v":""},{"$f":"'Startovní listina'!E79","v":""},{"$f":"'Startovní listina'!F79","v":""},"02:13:29"]
[{"$f":"IF('Výsledková listina (2)'!D21<>\"\",A22+1,\"\")","v":{"$error":"#VALUE!"}},null,{"$f":"'Startovní listina'!G15","v":"E"},{"$f":"'Startovní listina'!B15","v":11},{"$f":"'Startovní listina'!C15","v":"Holý"},{"$f":"'Startovní listina'!D15","v":"Josef"},{"$f":"'Startovní listina'!E15","v":1941},{"$f":"'Startovní listina'!F15","v":"AC Moravská Slavia Brno"},"02:01:16"]
[{"$f":"IF('Výsledková listina (2)'!D23<>\"\",A23+1,\"\")","v":{"$error":"#VALUE!"}},null,{"$f":"'Startovní listina'!G91","v":""},{"$f":"'Startovní listina'!B91","v":""},{"$f":"'Startovní listina'!C91","v":""},{"$f":"'Startovní listina'!D91","v":""},{"$f":"'Startovní listina'!E91","v":""},{"$f":"'Startovní listina'!F91","v":""},"02:30:31"]
[{"$f":"IF('Výsledková listina (2)'!D24<>\"\",A24+1,\"\")","v":""},null,{"$f":"'Startovní listina'!G74","v":""},{"$f":"'Startovní listina'!B74","v":""},{"$f":"'Startovní listina'!C74","v":""},{"$f":"'Startovní listina'!D74","v":""},{"$f":"'Startovní listina'!E74","v":""},{"$f":"'Startovní listina'!F74","v":""},"02:11:00"]
[{"$f":"IF('Výsledková listina (2)'!D25<>\"\",A25+1,\"\")","v":""},null,{"$f":"'Startovní listina'!G44","v":"B"},{"$f":"'Startovní listina'!B44","v":40},{"$f":"'Startovní listina'!C44","v":"Viščor"},{"$f":"'Startovní listina'!D44","v":"Pavel"},{"$f":"'Startovní listina'!E44","v":1974},{"$f":"'Startovní listina'!F44","v":"Brno"},"03:10:37"]
[{"$f":"IF('Výsledková listina (2)'!D26<>\"\",A26+1,\"\")","v":{"$error":"#VALUE!"}},null,{"$f":"'Startovní listina'!G84","v":""},{"$f":"'Startovní listina'!B84","v":""},{"$f":"'Startovní listina'!C84","v":""},{"$f":"'Startovní listina'!D84","v":""},{"$f":"'Startovní listina'!E84","v":""},{"$f":"'Startovní listina'!F84","v":""},"02:28:22"]
[{"$f":"IF('Výsledková listina (2)'!D27<>\"\",A27+1,\"\")","v":""},null,{"$f":"'Startovní listina'!G87","v":""},{"$f":"'Startovní listina'!B87","v":""},{"$f":"'Startovní listina'!C87","v":""},{"$f":"'Startovní listina'!D87","v":""},{"$f":"'Startovní listina'!E87","v":""},{"$f":"'Startovní listina'!F87","v":""},"02:29:21"]
[{"$f":"IF('Výsledková listina (2)'!D28<>\"\",A28+1,\"\")","v":""},null,{"$f":"'Startovní listina'!G75","v":""},{"$f":"'Startovní listina'!B75","v":""},{"$f":"'Startovní listina'!C75","v":""},{"$f":"'Startovní listina'!D75","v":""},{"$f":"'Startovní listina'!E75","v":""},{"$f":"'Startovní listina'!F75","v":""},"03:01:37"]
[{"$f":"IF('Výsledková listina (2)'!D29<>\"\",A29+1,\"\")","v":""},null,{"$f":"'Startovní listina'!G18","v":"A"},{"$f":"'Startovní listina'!B18","v":14},{"$f":"'Startovní listina'!C18","v":"Juránek"},{"$f":"'Startovní listina'!D18","v":"Jakub"},{"$f":"'Startovní listina'!E18","v":1995},{"$f":"'Startovní listina'!F18","v":"S.U.P.I.  Martinice"}]
[{"$f":"IF('Výsledková listina (2)'!D30<>\"\",A30+1,\"\")","v":{"$error":"#VALUE!"}},null,{"$f":"'Startovní listina'!G41","v":"C"},{"$f":"'Startovní listina'!B41","v":37},{"$f":"'Startovní listina'!C41","v":"Svoboda"},{"$f":"'Startovní listina'!D41","v":"Petr"},{"$f":"'Startovní listina'!E41","v":1968},{"$f":"'Startovní listina'!F41","v":"AC Moravská Slavia Brno"},"02:16:46"]
[{"$f":"IF('Výsledková listina (2)'!D31<>\"\",A31+1,\"\")","v":{"$error":"#VALUE!"}},null,{"$f":"'Startovní listina'!G23","v":"A"},{"$f":"'Startovní listina'!B23","v":19},{"$f":"'Startovní listina'!C23","v":"Pivec"},{"$f":"'Startovní listina'!D23","v":"Jan"},{"$f":"'Startovní listina'!E23","v":1981},{"$f":"'Startovní listina'!F23","v":"HAL3000"}]
[{"$f":"IF('Výsledková listina (2)'!D32<>\"\",A32+1,\"\")","v":{"$error":"#VALUE!"}},null,{"$f":"'Startovní listina'!G57","v":"G"},{"$f":"'Startovní listina'!B57","v":53},{"$f":"'Startovní listina'!C57","v":"Kuncová"},{"$f":"'Startovní listina'!D57","v":"Markéta"},{"$f":"'Startovní listina'!E57","v":1982},{"$f":"'Startovní listina'!F57","v":"Rožná"},"02:42:39"]
[{"$f":"IF('Výsledková listina (2)'!D33<>\"\",A33+1,\"\")","v":{"$error":"#VALUE!"}},null,{"$f":"'Startovní listina'!G40","v":"A"},{"$f":"'Startovní listina'!B40","v":36},{"$f":"'Startovní listina'!C40","v":"Nováček"},{"$f":"'Startovní listina'!D40","v":"Tomáš"},{"$f":"'Startovní listina'!E40","v":1983},{"$f":"'Startovní listina'!F40","v":"SDH Kamenná"},"02:10:10"]
[{"$f":"IF('Výsledková listina (2)'!D34<>\"\",A34+1,\"\")","v":{"$error":"#VALUE!"}},null,{"$f":"'Startovní listina'!G9","v":"G"},{"$f":"'Startovní listina'!B9","v":5},{"$f":"'Startovní listina'!C9","v":"Ježová"},{"$f":"'Startovní listina'!D9","v":"Martina"},{"$f":"'Startovní listina'!E9","v":1975},{"$f":"'Startovní listina'!F9","v":"Brno"},"02:05:55"]
[{"$f":"IF('Výsledková listina (2)'!D35<>\"\",A35+1,\"\")","v":{"$error":"#VALUE!"}},null,{"$f":"'Startovní listina'!G77","v":""},{"$f":"'Startovní listina'!B77","v":""},{"$f":"'Startovní listina'!C77","v":""},{"$f":"'Startovní listina'!D77","v":""},{"$f":"'Startovní listina'!E77","v":""},{"$f":"'Startovní listina'!F77","v":""}]
[{"$f":"IF('Výsledková listina (2)'!D36<>\"\",A36+1,\"\")","v":""},null,{"$f":"'Startovní listina'!G81","v":""},{"$f":"'Startovní listina'!B81","v":""},{"$f":"'Startovní listina'!C81","v":""},{"$f":"'Startovní listina'!D81","v":""},{"$f":"'Startovní listina'!E81","v":""},{"$f":"'Startovní listina'!F81","v":""},"03:24:59"]
[{"$f":"IF('Výsledková listina (2)'!D37<>\"\",A37+1,\"\")","v":""},null,{"$f":"'Startovní listina'!G54","v":"D"},{"$f":"'Startovní listina'!B54","v":50},{"$f":"'Startovní listina'!C54","v":"Král"},{"$f":"'Startovní listina'!D54","v":"Josef"},{"$f":"'Startovní listina'!E54","v":1958},{"$f":"'Startovní listina'!F54","v":"SDH Bystré"},"02:37:38"]
[{"$f":"IF('Výsledková listina (2)'!D38<>\"\",A38+1,\"\")","v":{"$error":"#VALUE!"}},null,{"$f":"'Startovní listina'!G94","v":""},{"$f":"'Startovní listina'!B94","v":""},{"$f":"'Startovní listina'!C94","v":""},{"$f":"'Startovní listina'!D94","v":""},{"$f":"'Startovní listina'!E94","v":""},{"$f":"'Startovní listina'!F94","v":""},"03:13:50"]
[{"$f":"IF('Výsledková listina (2)'!D39<>\"\",A39+1,\"\")","v":""},null,{"$f":"'Startovní listina'!G20","v":"A"},{"$f":"'Startovní listina'!B20","v":16},{"$f":"'Startovní listina'!C20","v":"Král"},{"$f":"'Startovní listina'!D20","v":"Jan"},{"$f":"'Startovní listina'!E20","v":1981},{"$f":"'Startovní listina'!F20","v":"Brno"},"02:43:21"]
[{"$f":"IF('Výsledková listina (2)'!D40<>\"\",A40+1,\"\")","v":{"$error":"#VALUE!"}},null,{"$f":"'Startovní listina'!G19","v":"D"},{"$f":"'Startovní listina'!B19","v":15},{"$f":"'Startovní listina'!C19","v":"Bělehrádek"},{"$f":"'Startovní listina'!D19","v":"Pavel"},{"$f":"'Startovní listina'!E19","v":1958},{"$f":"'Startovní listina'!F19","v":"TJ ČOLEK"},"03:01:04"]
[{"$f":"IF('Výsledková listina (2)'!D41<>\"\",A41+1,\"\")","v":{"$error":"#VALUE!"}},null,{"$f":"'Startovní listina'!G69","v":"B"},{"$f":"'Startovní listina'!B69","v":65},{"$f":"'Startovní listina'!C69","v":"Konečný"},{"$f":"'Startovní listina'!D69","v":"Libor"},{"$f":"'Startovní listina'!E69","v":1971},{"$f":"'Startovní listina'!F69","v":"Kuřim"},"DNF"]
[{"$f":"IF('Výsledková listina (2)'!D42<>\"\",A42+1,\"\")","v":{"$error":"#VALUE!"}},null,{"$f":"'Startovní listina'!G38","v":"C"},{"$f":"'Startovní listina'!B38","v":34},{"$f":"'Startovní listina'!C38","v":"Šimunek"},{"$f":"'Startovní listina'!D38","v":"Martin"},{"$f":"'Startovní listina'!E38","v":1966},{"$f":"'Startovní listina'!F38","v":"Botanka Running Modřice"},"02:26:38"]
[{"$f":"IF('Výsledková listina (2)'!D43<>\"\",A43+1,\"\")","v":{"$error":"#VALUE!"}},null,{"$f":"'Startovní listina'!G80","v":""},{"$f":"'Startovní listina'!B80","v":""},{"$f":"'Startovní listina'!C80","v":""},{"$f":"'Startovní listina'!D80","v":""},{"$f":"'Startovní listina'!E80","v":""},{"$f":"'Startovní listina'!F80","v":""},"02:45:32"]
[{"$f":"IF('Výsledková listina (2)'!D44<>\"\",A44+1,\"\")","v":""},null,{"$f":"'Startovní listina'!G53","v":"A"},{"$f":"'Startovní listina'!B53","v":49},{"$f":"'Startovní listina'!C53","v":"Glier"},{"$f":"'Startovní listina'!D53","v":"Michal"},{"$f":"'Startovní listina'!E53","v":1982},{"$f":"'Startovní listina'!F53","v":"SDH Doubravník"},"02:46:25"]
[{"$f":"IF('Výsledková listina (2)'!D45<>\"\",A45+1,\"\")","v":{"$error":"#VALUE!"}},null,{"$f":"'Startovní listina'!G11","v":"A"},{"$f":"'Startovní listina'!B11","v":7},{"$f":"'Startovní listina'!C11","v":"Podsedník"},{"$f":"'Startovní listina'!D11","v":"Marek"},{"$f":"'Startovní listina'!E11","v":1985},{"$f":"'Startovní listina'!F11","v":"Brno"},"02:45:37"]
[{"$f":"IF('Výsledková listina (2)'!D46<>\"\",A46+1,\"\")","v":{"$error":"#VALUE!"}},null,{"$f":"'Startovní listina'!G89","v":""},{"$f":"'Startovní listina'!B89","v":""},{"$f":"'Startovní listina'!C89","v":""},{"$f":"'Startovní listina'!D89","v":""},{"$f":"'Startovní listina'!E89","v":""},{"$f":"'Startovní listina'!F89","v":""},"02:23:07"]
[{"$f":"IF('Výsledková listina (2)'!D47<>\"\",A47+1,\"\")","v":""},null,{"$f":"'Startovní listina'!G93","v":""},{"$f":"'Startovní listina'!B93","v":""},{"$f":"'Startovní listina'!C93","v":""},{"$f":"'Startovní listina'!D93","v":""},{"$f":"'Startovní listina'!E93","v":""},{"$f":"'Startovní listina'!F93","v":""}]
[{"$f":"IF('Výsledková listina (2)'!D48<>\"\",A48+1,\"\")","v":""},null,{"$f":"'Startovní listina'!G78","v":""},{"$f":"'Startovní listina'!B78","v":""},{"$f":"'Startovní listina'!C78","v":""},{"$f":"'Startovní listina'!D78","v":""},{"$f":"'Startovní listina'!E78","v":""},{"$f":"'Startovní listina'!F78","v":""},"02:49:04"]
[{"$f":"IF('Výsledková listina (2)'!D49<>\"\",A49+1,\"\")","v":""},null,{"$f":"'Startovní listina'!G35","v":"F"},{"$f":"'Startovní listina'!B35","v":31},{"$f":"'Startovní listina'!C35","v":"Pešáková"},{"$f":"'Startovní listina'!D35","v":"Mirka"},{"$f":"'Startovní listina'!E35","v":1985},{"$f":"'Startovní listina'!F35","v":"AC RACERS, Tetčice"},"02:31:40"]
[{"$f":"IF('Výsledková listina (2)'!D50<>\"\",A50+1,\"\")","v":{"$error":"#VALUE!"}},null,{"$f":"'Startovní listina'!G36","v":"A"},{"$f":"'Startovní listina'!B36","v":32},{"$f":"'Startovní listina'!C36","v":"Sinkule"},{"$f":"'Startovní listina'!D36","v":"Pavel"},{"$f":"'Startovní listina'!E36","v":1981},{"$f":"'Startovní listina'!F36","v":"SRTG Brno"}]
[{"$f":"IF('Výsledková listina (2)'!D51<>\"\",A51+1,\"\")","v":{"$error":"#VALUE!"}},null,{"$f":"'Startovní listina'!G29","v":"B"},{"$f":"'Startovní listina'!B29","v":25},{"$f":"'Startovní listina'!C29","v":"Klíma"},{"$f":"'Startovní listina'!D29","v":"Miroslav"},{"$f":"'Startovní listina'!E29","v":1975},{"$f":"'Startovní listina'!F29","v":"Emanovy červené trenýrky Brno"},"02:19:07"]
[{"$f":"IF('Výsledková listina (2)'!D52<>\"\",A52+1,\"\")","v":{"$error":"#VALUE!"}},null,{"$f":"'Startovní listina'!G86","v":""},{"$f":"'Startovní listina'!B86","v":""},{"$f":"'Startovní listina'!C86","v":""},{"$f":"'Startovní listina'!D86","v":""},{"$f":"'Startovní listina'!E86","v":""},{"$f":"'Startovní listina'!F86","v":""},"02:21:00"]
[{"$f":"IF('Výsledková listina (2)'!D53<>\"\",A53+1,\"\")","v":""},null,{"$f":"'Startovní listina'!G17","v":"C"},{"$f":"'Startovní listina'!B17","v":13},{"$f":"'Startovní listina'!C17","v":"Kresta"},{"$f":"'Startovní listina'!D17","v":"Roman"},{"$f":"'Startovní listina'!E17","v":1965},{"$f":"'Startovní listina'!F17","v":"Orel Židenice"},"03:06:22"]
[{"$f":"IF('Výsledková listina (2)'!D54<>\"\",A54+1,\"\")","v":{"$error":"#VALUE!"}},null,{"$f":"'Startovní listina'!G37","v":"A"},{"$f":"'Startovní listina'!B37","v":33},{"$f":"'Startovní listina'!C37","v":"Komárek"},{"$f":"'Startovní listina'!D37","v":"Michal"},{"$f":"'Startovní listina'!E37","v":1981},{"$f":"'Startovní listina'!F37","v":"Bystřice nad Pernštejnem"},"02:32:28"]
[{"$f":"IF('Výsledková listina (2)'!D55<>\"\",A55+1,\"\")","v":{"$error":"#VALUE!"}},null,{"$f":"'Startovní listina'!G32","v":"H"},{"$f":"'Startovní listina'!B32","v":28},{"$f":"'Startovní listina'!C32","v":"Hanslová"},{"$f":"'Startovní listina'!D32","v":"Lenka"},{"$f":"'Startovní listina'!E32","v":1973},{"$f":"'Startovní listina'!F32","v":"Žďár nad Sázavou"},"02:59:30"]
[{"$f":"IF('Výsledková listina (2)'!D56<>\"\",A56+1,\"\")","v":{"$error":"#VALUE!"}},null,{"$f":"'Startovní listina'!G58","v":"A"},{"$f":"'Startovní listina'!B58","v":54},{"$f":"'Startovní listina'!C58","v":"Pavlásek"},{"$f":"'Startovní listina'!D58","v":"Michal"},{"$f":"'Startovní listina'!E58","v":1983},{"$f":"'Startovní listina'!F58","v":"Brno"},"02:07:54"]
[{"$f":"IF('Výsledková listina (2)'!D57<>\"\",A57+1,\"\")","v":{"$error":"#VALUE!"}},null,{"$f":"'Startovní listina'!G26","v":"B"},{"$f":"'Startovní listina'!B26","v":22},{"$f":"'Startovní listina'!C26","v":"Faja"},{"$f":"'Startovní listina'!D26","v":"Ondřej"},{"$f":"'Startovní listina'!E26","v":1976},{"$f":"'Startovní listina'!F26","v":"Brno"},"03:06:38"]
[{"$f":"IF('Výsledková listina (2)'!D58<>\"\",A58+1,\"\")","v":{"$error":"#VALUE!"}},null,{"$f":"'Startovní listina'!G52","v":"F"},{"$f":"'Startovní listina'!B52","v":48},{"$f":"'Startovní listina'!C52","v":"Glierová"},{"$f":"'Startovní listina'!D52","v":"Renata"},{"$f":"'Startovní listina'!E52","v":1985},{"$f":"'Startovní listina'!F52","v":"SDH Doubravník"},"03:14:48"]
[{"$f":"IF('Výsledková listina (2)'!D59<>\"\",A59+1,\"\")","v":{"$error":"#VALUE!"}},null,{"$f":"'Startovní listina'!G66","v":"A"},{"$f":"'Startovní listina'!B66","v":62},{"$f":"'Startovní listina'!C66","v":"Exner"},{"$f":"'Startovní listina'!D66","v":"Jakub"},{"$f":"'Startovní listina'!E66","v":1983},{"$f":"'Startovní listina'!F66","v":"P-Team"},"02:46:48"]
[{"$f":"IF('Výsledková listina (2)'!D60<>\"\",A60+1,\"\")","v":{"$error":"#VALUE!"}},null,{"$f":"'Startovní listina'!G31","v":"B"},{"$f":"'Startovní listina'!B31","v":27},{"$f":"'Startovní listina'!C31","v":"Fanfrdla"},{"$f":"'Startovní listina'!D31","v":"Dalimil"},{"$f":"'Startovní listina'!E31","v":1973},{"$f":"'Startovní listina'!F31","v":"Matyteam Brno"},"02:38:44"]
[{"$f":"IF('Výsledková listina (2)'!D61<>\"\",A61+1,\"\")","v":{"$error":"#VALUE!"}},null,{"$f":"'Startovní listina'!G92","v":""},{"$f":"'Startovní listina'!B92","v":""},{"$f":"'Startovní listina'!C92","v":""},{"$f":"'Startovní listina'!D92","v":""},{"$f":"'Startovní listina'!E92","v":""},{"$f":"'Startovní listina'!F92","v":""},"03:04:27"]
[{"$f":"IF('Výsledková listina (2)'!D62<>\"\",A62+1,\"\")","v":""},null,{"$f":"'Startovní listina'!G45","v":"B"},{"$f":"'Startovní listina'!B45","v":41},{"$f":"'Startovní listina'!C45","v":"Žličař"},{"$f":"'Startovní listina'!D45","v":"Karel"},{"$f":"'Startovní listina'!E45","v":1977},{"$f":"'Startovní listina'!F45","v":"Železárny Štěpánov"},"03:21:11"]
[{"$f":"IF('Výsledková listina (2)'!D63<>\"\",A63+1,\"\")","v":{"$error":"#VALUE!"}},null,{"$f":"'Startovní listina'!G34","v":"B"},{"$f":"'Startovní listina'!B34","v":30},{"$f":"'Startovní listina'!C34","v":"Vintrlík"},{"$f":"'Startovní listina'!D34","v":"Martin"},{"$f":"'Startovní listina'!E34","v":1977},{"$f":"'Startovní listina'!F34","v":"Triatlon křepice"},"03:00:59"]
[{"$f":"IF('Výsledková listina (2)'!D64<>\"\",A64+1,\"\")","v":{"$error":"#VALUE!"}},null,{"$f":"'Startovní listina'!G8","v":"A"},{"$f":"'Startovní listina'!B8","v":4},{"$f":"'Startovní listina'!C8","v":"Kalich"},{"$f":"'Startovní listina'!D8","v":"Radim"},{"$f":"'Startovní listina'!E8","v":1985},{"$f":"'Startovní listina'!F8","v":"Odranec"},"03:30:08"]
[{"$f":"IF('Výsledková listina (2)'!D65<>\"\",A65+1,\"\")","v":{"$error":"#VALUE!"}},null,{"$f":"'Startovní listina'!G73","v":""},{"$f":"'Startovní listina'!B73","v":""},{"$f":"'Startovní listina'!C73","v":""},{"$f":"'Startovní listina'!D73","v":""},{"$f":"'Startovní listina'!E73","v":""},{"$f":"'Startovní listina'!F73","v":""},"03:01:32"]
[{"$f":"IF('Výsledková listina (2)'!D66<>\"\",A66+1,\"\")","v":""},null,{"$f":"'Startovní listina'!G27","v":"A"},{"$f":"'Startovní listina'!B27","v":23},{"$f":"'Startovní listina'!C27","v":"Koutský"},{"$f":"'Startovní listina'!D27","v":"Tomáš"},{"$f":"'Startovní listina'!E27","v":1987},{"$f":"'Startovní listina'!F27","v":"Ledová stěna Vír"},"02:05:07"]
[{"$f":"IF('Výsledková listina (2)'!D67<>\"\",A67+1,\"\")","v":{"$error":"#VALUE!"}},null,{"$f":"'Startovní listina'!G70","v":"C"},{"$f":"'Startovní listina'!B70","v":66},{"$f":"'Startovní listina'!C70","v":"Zourek"},{"$f":"'Startovní listina'!D70","v":"Karel"},{"$f":"'Startovní listina'!E70","v":1959},{"$f":"'Startovní listina'!F70","v":"Bedřichovice"},"02:57:35"]
[{"$f":"IF('Výsledková listina (2)'!D68<>\"\",A68+1,\"\")","v":{"$error":"#VALUE!"}},null,{"$f":"'Startovní listina'!G51","v":"B"},{"$f":"'Startovní listina'!B51","v":47},{"$f":"'Startovní listina'!C51","v":"Fric"},{"$f":"'Startovní listina'!D51","v":"Petr"},{"$f":"'Startovní listina'!E51","v":1970},{"$f":"'Startovní listina'!F51","v":"Bystré"},"02:19:36"]
[{"$f":"IF('Výsledková listina (2)'!D69<>\"\",A69+1,\"\")","v":{"$error":"#VALUE!"}},null,{"$f":"'Startovní listina'!G98","v":""},{"$f":"'Startovní listina'!B98","v":""},{"$f":"'Startovní listina'!C98","v":""},{"$f":"'Startovní listina'!D98","v":""},{"$f":"'Startovní listina'!E98","v":""},{"$f":"'Startovní listina'!F98","v":""},"01:54:34"]
[{"$f":"IF('Výsledková listina (2)'!D70<>\"\",A70+1,\"\")","v":""},null,{"$f":"'Startovní listina'!G50","v":"C"},{"$f":"'Startovní listina'!B50","v":46},{"$f":"'Startovní listina'!C50","v":"Dvořáček"},{"$f":"'Startovní listina'!D50","v":"Jiří"},{"$f":"'Startovní listina'!E50","v":1968},{"$f":"'Startovní listina'!F50","v":"Univerzita Brno"},"02:21:57"]
[{"$f":"IF('Výsledková listina (2)'!D71<>\"\",A71+1,\"\")","v":{"$error":"#VALUE!"}},null,{"$f":"'Startovní listina'!G21","v":"C"},{"$f":"'Startovní listina'!B21","v":17},{"$f":"'Startovní listina'!C21","v":"Bečička"},{"$f":"'Startovní listina'!D21","v":"Petr"},{"$f":"'Startovní listina'!E21","v":1960},{"$f":"'Startovní listina'!F21","v":"HAL3000"}]
[{"$f":"IF('Výsledková listina (2)'!D72<>\"\",A72+1,\"\")","v":{"$error":"#VALUE!"}},null,{"$f":"'Startovní listina'!G6","v":"A"},{"$f":"'Startovní listina'!B6","v":2},{"$f":"'Startovní listina'!C6","v":"Ptáček"},{"$f":"'Startovní listina'!D6","v":"Michal "},{"$f":"'Startovní listina'!E6","v":1986},{"$f":"'Startovní listina'!F6","v":" Hrdá Ves "},"02:40:25"]
[{"$f":"IF('Výsledková listina (2)'!D73<>\"\",A73+1,\"\")","v":{"$error":"#VALUE!"}},null,{"$f":"'Startovní listina'!G48","v":"F"},{"$f":"'Startovní listina'!B48","v":44},{"$f":"'Startovní listina'!C48","v":"Johaníková"},{"$f":"'Startovní listina'!D48","v":"Lucie"},{"$f":"'Startovní listina'!E48","v":1986},{"$f":"'Startovní listina'!F48","v":"AC Moravská Slavia Brno"},"02:21:35"]
[{"$f":"IF('Výsledková listina (2)'!D74<>\"\",A74+1,\"\")","v":{"$error":"#VALUE!"}},null,{"$f":"'Startovní listina'!G97","v":""},{"$f":"'Startovní listina'!B97","v":""},{"$f":"'Startovní listina'!C97","v":""},{"$f":"'Startovní listina'!D97","v":""},{"$f":"'Startovní listina'!E97","v":""},{"$f":"'Startovní listina'!F97","v":""},"03:14:54"]
[{"$f":"IF('Výsledková listina (2)'!D75<>\"\",A75+1,\"\")","v":""},null,{"$f":"'Startovní listina'!G22","v":"G"},{"$f":"'Startovní listina'!B22","v":18},{"$f":"'Startovní listina'!C22","v":"Dostálová"},{"$f":"'Startovní listina'!D22","v":"Vendula"},{"$f":"'Startovní listina'!E22","v":1981},{"$f":"'Startovní listina'!F22","v":"HAL3000"},"02:25:09"]
[{"$f":"IF('Výsledková listina (2)'!D76<>\"\",A76+1,\"\")","v":{"$error":"#VALUE!"}},null,{"$f":"'Startovní listina'!G82","v":""},{"$f":"'Startovní listina'!B82","v":""},{"$f":"'Startovní listina'!C82","v":""},{"$f":"'Startovní listina'!D82","v":""},{"$f":"'Startovní listina'!E82","v":""},{"$f":"'Startovní listina'!F82","v":""},"02:50:59"]
[{"$f":"IF('Výsledková listina (2)'!D77<>\"\",A77+1,\"\")","v":""},null,{"$f":"'Startovní listina'!G96","v":""},{"$f":"'Startovní listina'!B96","v":""},{"$f":"'Startovní listina'!C96","v":""},{"$f":"'Startovní listina'!D96","v":""},{"$f":"'Startovní listina'!E96","v":""},{"$f":"'Startovní listina'!F96","v":""},"03:12:26"]
[{"$f":"IF('Výsledková listina (2)'!D78<>\"\",A78+1,\"\")","v":""},null,{"$f":"'Startovní listina'!G30","v":"F"},{"$f":"'Startovní listina'!B30","v":26},{"$f":"'Startovní listina'!C30","v":"Bartoňková"},{"$f":"'Startovní listina'!D30","v":"Nina"},{"$f":"'Startovní listina'!E30","v":1990},{"$f":"'Startovní listina'!F30","v":"AK Drnovice"},"02:37:53"]
[{"$f":"IF('Výsledková listina (2)'!D79<>\"\",A79+1,\"\")","v":{"$error":"#VALUE!"}},null,{"$f":"'Startovní listina'!G64","v":"B"},{"$f":"'Startovní listina'!B64","v":60},{"$f":"'Startovní listina'!C64","v":"Tyleček"},{"$f":"'Startovní listina'!D64","v":"Pavel"},{"$f":"'Startovní listina'!E64","v":1973},{"$f":"'Startovní listina'!F64","v":"Jundrováci"},"03:18:47"]
[{"$f":"IF('Výsledková listina (2)'!D80<>\"\",A80+1,\"\")","v":{"$error":"#VALUE!"}},null,{"$f":"'Startovní listina'!G39","v":"C"},{"$f":"'Startovní listina'!B39","v":35},{"$f":"'Startovní listina'!C39","v":"Hýbl"},{"$f":"'Startovní listina'!D39","v":"Jiří"},{"$f":"'Startovní listina'!E39","v":1967},{"$f":"'Startovní listina'!F39","v":"Hrušovany u Brna"},"02:07:35"]
[{"$f":"IF('Výsledková listina (2)'!D81<>\"\",A81+1,\"\")","v":{"$error":"#VALUE!"}},null,{"$f":"'Startovní listina'!G56","v":"B"},{"$f":"'Startovní listina'!B56","v":52},{"$f":"'Startovní listina'!C56","v":"Lorenčík"},{"$f":"'Startovní listina'!D56","v":"Aleš"},{"$f":"'Startovní listina'!E56","v":1973},{"$f":"'Startovní listina'!F56","v":"Chrudim"},"02:24:19"]
[{"$f":"IF('Výsledková listina (2)'!D82<>\"\",A82+1,\"\")","v":{"$error":"#VALUE!"}},null,{"$f":"'Startovní listina'!G83","v":""},{"$f":"'Startovní listina'!B83","v":""},{"$f":"'Startovní listina'!C83","v":""},{"$f":"'Startovní listina'!D83","v":""},{"$f":"'Startovní listina'!E83","v":""},{"$f":"'Startovní listina'!F83","v":""},"02:31:15"]
[{"$f":"IF('Výsledková listina (2)'!D83<>\"\",A83+1,\"\")","v":""},null,{"$f":"'Startovní listina'!G61","v":"C"},{"$f":"'Startovní listina'!B61","v":57},{"$f":"'Startovní listina'!C61","v":"Kříž"},{"$f":"'Startovní listina'!D61","v":"Miloslav"},{"$f":"'Startovní listina'!E61","v":1961},{"$f":"'Startovní listina'!F61","v":"Aspire Dobrochov"},"02:27:55"]
[{"$f":"IF('Výsledková listina (2)'!D84<>\"\",A84+1,\"\")","v":{"$error":"#VALUE!"}},null,{"$f":"'Startovní listina'!G95","v":""},{"$f":"'Startovní listina'!B95","v":""},{"$f":"'Startovní listina'!C95","v":""},{"$f":"'Startovní listina'!D95","v":""},{"$f":"'Startovní listina'!E95","v":""},{"$f":"'Startovní listina'!F95","v":""},"02:34:44"]
[{"$f":"IF('Výsledková listina (2)'!D85<>\"\",A85+1,\"\")","v":""},null,{"$f":"'Startovní listina'!G65","v":"H"},{"$f":"'Startovní listina'!B65","v":61},{"$f":"'Startovní listina'!C65","v":"Podmelová"},{"$f":"'Startovní listina'!D65","v":"Vilma"},{"$f":"'Startovní listina'!E65","v":1962},{"$f":"'Startovní listina'!F65","v":"AC Moravská Slavia Brno"},"02:58:55"]
[{"$f":"IF('Výsledková listina (2)'!D86<>\"\",A86+1,\"\")","v":{"$error":"#VALUE!"}},null,{"$f":"'Startovní listina'!G43","v":"B"},{"$f":"'Startovní listina'!B43","v":39},{"$f":"'Startovní listina'!C43","v":"Řezníček"},{"$f":"'Startovní listina'!D43","v":"Petr"},{"$f":"'Startovní listina'!E43","v":1973},{"$f":"'Startovní listina'!F43","v":"Polnička"},"02:32:49"]
[{"$f":"IF('Výsledková listina (2)'!D87<>\"\",A87+1,\"\")","v":{"$error":"#VALUE!"}},null,{"$f":"'Startovní listina'!G33","v":"B"},{"$f":"'Startovní listina'!B33","v":29},{"$f":"'Startovní listina'!C33","v":"Dvořák"},{"$f":"'Startovní listina'!D33","v":"Vojtěch"},{"$f":"'Startovní listina'!E33","v":1975},{"$f":"'Startovní listina'!F33","v":"Brno"}]
[{"$f":"IF('Výsledková listina (2)'!D88<>\"\",A88+1,\"\")","v":{"$error":"#VALUE!"}},null,{"$f":"'Startovní listina'!G76","v":""},{"$f":"'Startovní listina'!B76","v":""},{"$f":"'Startovní listina'!C76","v":""},{"$f":"'Startovní listina'!D76","v":""},{"$f":"'Startovní listina'!E76","v":""},{"$f":"'Startovní listina'!F76","v":""},"03:18:56"]
[{"$f":"IF('Výsledková listina (2)'!D89<>\"\",A89+1,\"\")","v":""},null,{"$f":"'Startovní listina'!G12","v":"G"},{"$f":"'Startovní listina'!B12","v":8},{"$f":"'Startovní listina'!C12","v":"Pichová"},{"$f":"'Startovní listina'!D12","v":"Dagmar"},{"$f":"'Startovní listina'!E12","v":1977},{"$f":"'Startovní listina'!F12","v":"Brno"},"02:05:40"]
[{"$f":"IF('Výsledková listina (2)'!D90<>\"\",A90+1,\"\")","v":{"$error":"#VALUE!"}},null,{"$f":"'Startovní listina'!G24","v":"A"},{"$f":"'Startovní listina'!B24","v":20},{"$f":"'Startovní listina'!C24","v":"Forýtek"},{"$f":"'Startovní listina'!D24","v":"Michal"},{"$f":"'Startovní listina'!E24","v":1982},{"$f":"'Startovní listina'!F24","v":"HAL3000"},"02:08:44"]
[{"$f":"IF('Výsledková listina (2)'!D91<>\"\",A91+1,\"\")","v":{"$error":"#VALUE!"}},null,{"$f":"'Startovní listina'!G16","v":"D"},{"$f":"'Startovní listina'!B16","v":12},{"$f":"'Startovní listina'!C16","v":"Zejda"},{"$f":"'Startovní listina'!D16","v":"Ivo"},{"$f":"'Startovní listina'!E16","v":1958},{"$f":"'Startovní listina'!F16","v":"AC Moravská Slavia Brno"}]
[{"$f":"IF('Výsledková listina (2)'!D92<>\"\",A92+1,\"\")","v":{"$error":"#VALUE!"}},null,{"$f":"'Startovní listina'!G88","v":""},{"$f":"'Startovní listina'!B88","v":""},{"$f":"'Startovní listina'!C88","v":""},{"$f":"'Startovní listina'!D88","v":""},{"$f":"'Startovní listina'!E88","v":""},{"$f":"'Startovní listina'!F88","v":""},"02:53:55"]
[{"$f":"IF('Výsledková listina (2)'!D93<>\"\",A93+1,\"\")","v":""},null,{"$f":"'Startovní listina'!G90","v":""},{"$f":"'Startovní listina'!B90","v":""},{"$f":"'Startovní listina'!C90","v":""},{"$f":"'Startovní listina'!D90","v":""},{"$f":"'Startovní listina'!E90","v":""},{"$f":"'Startovní listina'!F90","v":""},"02:55:52"]
[{"$f":"IF('Výsledková listina (2)'!D94<>\"\",A94+1,\"\")","v":""},null,{"$f":"'Startovní listina'!G25","v":"F"},{"$f":"'Startovní listina'!B25","v":21},{"$f":"'Startovní listina'!C25","v":"Trefilová"},{"$f":"'Startovní listina'!D25","v":"Ester"},{"$f":"'Startovní listina'!E25","v":1993},{"$f":"'Startovní listina'!F25","v":"Vír"},"03:04:10"]
[{"$f":"IF('Výsledková listina (2)'!D95<>\"\",A95+1,\"\")","v":{"$error":"#VALUE!"}},null,{"$f":"'Startovní listina'!G72","v":""},{"$f":"'Startovní listina'!B72","v":""},{"$f":"'Startovní listina'!C72","v":""},{"$f":"'Startovní listina'!D72","v":""},{"$f":"'Startovní listina'!E72","v":""},{"$f":"'Startovní listina'!F72","v":""}]
[{"$f":"IF('Výsledková listina (2)'!D96<>\"\",A96+1,\"\")","v":""},null,{"$f":"'Startovní listina'!G13","v":"H"},{"$f":"'Startovní listina'!B13","v":9},{"$f":"'Startovní listina'!C13","v":"Tesařová"},{"$f":"'Startovní listina'!D13","v":"Marie"},{"$f":"'Startovní listina'!E13","v":1954},{"$f":"'Startovní listina'!F13","v":"Křižanov"},"02:40:16"]
[{"$f":"IF('Výsledková listina (2)'!D97<>\"\",A97+1,\"\")","v":{"$error":"#VALUE!"}},null,{"$f":"'Startovní listina'!G10","v":"B"},{"$f":"'Startovní listina'!B10","v":6},{"$f":"'Startovní listina'!C10","v":"Šerák"},{"$f":"'Startovní listina'!D10","v":"Martin"},{"$f":"'Startovní listina'!E10","v":1978},{"$f":"'Startovní listina'!F10","v":"Liga 100 Olomouc"},"03:00:21"]
[{"$f":"IF('Výsledková listina (2)'!D98<>\"\",A98+1,\"\")","v":{"$error":"#VALUE!"}},null,{"$f":"'Startovní listina'!G99","v":""},{"$f":"'Startovní listina'!B99","v":""},{"$f":"'Startovní listina'!C99","v":""},{"$f":"'Startovní listina'!D99","v":""},{"$f":"'Startovní listina'!E99","v":""},{"$f":"'Startovní listina'!F99","v":""}]
[{"$f":"IF('Výsledková listina (2)'!D99<>\"\",A99+1,\"\")","v":""},null,{"$f":"'Startovní listina'!G100","v":""},{"$f":"'Startovní listina'!B100","v":""},{"$f":"'Startovní listina'!C100","v":""},{"$f":"'Startovní listina'!D100","v":""},{"$f":"'Startovní listina'!E100","v":""},{"$f":"'Startovní listina'!F100","v":""}]
[{"$f":"IF('Výsledková listina (2)'!D100<>\"\",A100+1,\"\")","v":""},null,{"$f":"'Startovní listina'!G101","v":""},{"$f":"'Startovní listina'!B101","v":""},{"$f":"'Startovní listina'!C101","v":""},{"$f":"'Startovní listina'!D101","v":""},{"$f":"'Startovní listina'!E101","v":""},{"$f":"'Startovní listina'!F101","v":""}]
[{"$f":"IF('Výsledková listina (2)'!D101<>\"\",A101+1,\"\")","v":""},null,{"$f":"'Startovní listina'!G102","v":""},{"$f":"'Startovní listina'!B102","v":""},{"$f":"'Startovní listina'!C102","v":""},{"$f":"'Startovní listina'!D102","v":""},{"$f":"'Startovní listina'!E102","v":""},{"$f":"'Startovní listina'!F102","v":""}]
[{"$f":"IF('Výsledková listina (2)'!D102<>\"\",A102+1,\"\")","v":""},null,{"$f":"'Startovní listina'!G103","v":""},{"$f":"'Startovní listina'!B103","v":""},{"$f":"'Startovní listina'!C103","v":""},{"$f":"'Startovní listina'!D103","v":""},{"$f":"'Startovní listina'!E103","v":""},{"$f":"'Startovní listina'!F103","v":""}]